{"text_format":"3","workbook":"xlsx","n_sheets":5,"sheets":["ANFANG","GEPLANTE KOSTEN","TATSÄCHLICHE KOSTEN","KOSTENABWEICHUNGEN","AUSGABENANALYSE"],"not_rendered":{"charts":2,"images":3,"defined_names":1},"read":"whole","date_system":"1900"}

{"sheet":"ANFANG","index":0,"n_rows":8,"n_cols":2,"rows_kept":8}
[null,"ÜBER DIESE VORLAGE"]
[null,"Verwenden Sie diese Geschäftskostenbudget-Arbeitsmappe zum Nachverfolgen geplanter und tatsächlicher Kosten und Abweichungen."]
[null,"Setzen Sie den Firmenname ein, und fügen Sie Ihr Logo hinzu."]
[null,"Geben Sie Details auf dem Arbeitsblatt \"Geplante Kosten\" und dem Arbeitsblatt \"Tatsächliche Kosten\" ein."]
[null,"Die Tabellen auf dem Arbeitsblatt \"Kostenabweichungen\" und die Diagramme auf dem Arbeitsblatt \"Ausgabenanalyse\" werden automatisch aktualisiert."]
[null,"Anmerkung: "]
[null,"Weitere Anweisungen wurden in Spalte A auf jedem Arbeitsblatt bereitgestellt. Diese Texte wurden absichtlich ausgeblendet. Um die Texte zu entfernen, wählen Sie Spalte A und dann ENTF aus. Um die Texte einzublenden, wählen Sie Spalte A aus, und ändern Sie die Schriftfarbe."]
[null,"Um mehr über Tabellen zu erfahren, drücken Sie die UMSCHALTTASTE und dann F10 innerhalb einer Tabelle, und wählen Sie die Option TABELLE und dann ALTERNATIVTEXT aus."]

{"sheet":"GEPLANTE KOSTEN","index":1,"n_rows":37,"n_cols":16,"rows_kept":37,"merged":[[1,10,1,12],[2,10,2,12],[3,17,12,19]]}
[{"$nulls":15}," "]
[null,"Firmenname",{"$nulls":8},"Detaillierte Kostenschätzungen"]
[{"$nulls":10},"Schattierte Zellen stellen Berechnungen dar."]
[null,"GEPLANTE KOSTEN","JAN","FEB","MRZ","APR","MAI","JUN","JUL","AUG","SEP","OKT","NOV","DEZ","JAHR"]
[null,"Mitarbeiterkosten","Jan","Feb","Mrz","Apr","Mai","Jun","Jul","Aug","Sep","Okt","Nov","Dez","JAHR"]
[null,"Gehälter",{"v":85000,"d":"85,000.00 €"},{"v":85000,"d":"85,000.00 €"},{"v":85000,"d":"85,000.00 €"},{"v":87500,"d":"87,500.00 €"},{"v":87500,"d":"87,500.00 €"},{"v":87500,"d":"87,500.00 €"},{"v":87500,"d":"87,500.00 €"},{"v":92400,"d":"92,400.00 €"},{"v":92400,"d":"92,400.00 €"},{"v":92400,"d":"92,400.00 €"},{"v":92400,"d":"92,400.00 €"},{"v":92400,"d":"92,400.00 €"},{"$f":"SUM(C6:N6)","v":{"v":1067000,"d":"1,067,000.00 €"}}]
[null,"Vorteile",{"$f":"C6*0.27","v":{"v":22950,"d":"22,950.00 €"}},{"v":22950,"d":"22,950.00 €"},{"v":22950,"d":"22,950.00 €"},{"v":23625,"d":"23,625.00 €"},{"v":23625,"d":"23,625.00 €"},{"v":23625,"d":"23,625.00 €"},{"v":23625,"d":"23,625.00 €"},{"v":24948,"d":"24,948.00 €"},{"v":24948,"d":"24,948.00 €"},{"v":24948,"d":"24,948.00 €"},{"v":24948,"d":"24,948.00 €"},{"v":24948,"d":"24,948.00 €"},{"$f":"SUM(C7:N7)","v":{"v":288090,"d":"288,090.00 €"}}]
[null,"Zwischensumme",{"$f":"SUBTOTAL(109,MitarbeiterPlan[Jan])","v":{"v":107950,"d":"107,950.00 €"}},{"$f":"SUBTOTAL(109,MitarbeiterPlan[Feb])","v":{"v":107950,"d":"107,950.00 €"}},{"$f":"SUBTOTAL(109,MitarbeiterPlan[Mrz])","v":{"v":107950,"d":"107,950.00 €"}},{"$f":"SUBTOTAL(109,MitarbeiterPlan[Apr])","v":{"v":111125,"d":"111,125.00 €"}},{"$f":"SUBTOTAL(109,MitarbeiterPlan[Mai])","v":{"v":111125,"d":"111,125.00 €"}},{"$f":"SUBTOTAL(109,MitarbeiterPlan[Jun])","v":{"v":111125,"d":"111,125.00 €"}},{"$f":"SUBTOTAL(109,MitarbeiterPlan[Jul])","v":{"v":111125,"d":"111,125.00 €"}},{"$f":"SUBTOTAL(109,MitarbeiterPlan[Aug])","v":{"v":117348,"d":"117,348.00 €"}},{"$f":"SUBTOTAL(109,MitarbeiterPlan[Sep])","v":{"v":117348,"d":"117,348.00 €"}},{"$f":"SUBTOTAL(109,MitarbeiterPlan[Okt])","v":{"v":117348,"d":"117,348.00 €"}},{"$f":"SUBTOTAL(109,MitarbeiterPlan[Nov])","v":{"v":117348,"d":"117,348.00 €"}},{"$f":"SUBTOTAL(109,MitarbeiterPlan[Dez])","v":{"v":117348,"d":"117,348.00 €"}},{"$f":"SUBTOTAL(109,MitarbeiterPlan[JAHR])","v":{"v":1355090,"d":"1,355,090.00 €"}}]
[]
[null,"Bürokosten","Jan","Feb","Mrz","Apr","Mai","Jun","Jul","Aug","Sep","Okt","Nov","Dez","JAHR"]
[null,"Büromiete",{"v":9800,"d":"9,800.00 €"},{"v":9800,"d":"9,800.00 €"},{"v":9800,"d":"9,800.00 €"},{"v":9800,"d":"9,800.00 €"},{"v":9800,"d":"9,800.00 €"},{"v":9800,"d":"9,800.00 €"},{"v":9800,"d":"9,800.00 €"},{"v":9800,"d":"9,800.00 €"},{"v":9800,"d":"9,800.00 €"},{"v":9800,"d":"9,800.00 €"},{"v":9800,"d":"9,800.00 €"},{"v":9800,"d":"9,800.00 €"},{"$f":"SUM(C11:N11)","v":{"v":117600,"d":"117,600.00 €"}}]
[null,"Gas",null,{"v":400,"d":"400.00 €"},{"v":400,"d":"400.00 €"},{"v":100,"d":"100.00 €"},{"v":100,"d":"100.00 €"},{"v":100,"d":"100.00 €"},{"v":100,"d":"100.00 €"},{"v":100,"d":"100.00 €"},{"v":100,"d":"100.00 €"},{"v":100,"d":"100.00 €"},{"v":400,"d":"400.00 €"},{"v":400,"d":"400.00 €"},{"v":2300,"d":"2,300.00 €"}]
[null,"Strom",{"v":300,"d":"300.00 €"},{"v":300,"d":"300.00 €"},{"v":300,"d":"300.00 €"},{"v":300,"d":"300.00 €"},{"v":300,"d":"300.00 €"},{"v":300,"d":"300.00 €"},{"v":300,"d":"300.00 €"},{"v":300,"d":"300.00 €"},{"v":300,"d":"300.00 €"},{"v":300,"d":"300.00 €"},{"v":300,"d":"300.00 €"},{"v":300,"d":"300.00 €"},{"v":3600,"d":"3,600.00 €"}]
[null,"Wasser",{"v":40,"d":"40.00 €"},{"v":40,"d":"40.00 €"},{"v":40,"d":"40.00 €"},{"v":40,"d":"40.00 €"},{"v":40,"d":"40.00 €"},{"v":40,"d":"40.00 €"},{"v":40,"d":"40.00 €"},{"v":40,"d":"40.00 €"},{"v":40,"d":"40.00 €"},{"v":40,"d":"40.00 €"},{"v":40,"d":"40.00 €"},{"v":40,"d":"40.00 €"},{"v":480,"d":"480.00 €"}]
[null,"Telefon",{"v":250,"d":"250.00 €"},{"v":250,"d":"250.00 €"},{"v":250,"d":"250.00 €"},{"v":250,"d":"250.00 €"},{"v":250,"d":"250.00 €"},{"v":250,"d":"250.00 €"},{"v":250,"d":"250.00 €"},{"v":250,"d":"250.00 €"},{"v":250,"d":"250.00 €"},{"v":250,"d":"250.00 €"},{"v":250,"d":"250.00 €"},{"v":250,"d":"250.00 €"},{"v":3000,"d":"3,000.00 €"}]
[null,"Internetzugang",{"v":180,"d":"180.00 €"},{"v":180,"d":"180.00 €"},{"v":180,"d":"180.00 €"},{"v":180,"d":"180.00 €"},{"v":180,"d":"180.00 €"},{"v":180,"d":"180.00 €"},{"v":180,"d":"180.00 €"},{"v":180,"d":"180.00 €"},{"v":180,"d":"180.00 €"},{"v":180,"d":"180.00 €"},{"v":180,"d":"180.00 €"},{"v":180,"d":"180.00 €"},{"v":2160,"d":"2,160.00 €"}]
[null,"Büromaterial",{"v":200,"d":"200.00 €"},{"v":200,"d":"200.00 €"},{"v":200,"d":"200.00 €"},{"v":200,"d":"200.00 €"},{"v":200,"d":"200.00 €"},{"v":200,"d":"200.00 €"},{"v":200,"d":"200.00 €"},{"v":200,"d":"200.00 €"},{"v":200,"d":"200.00 €"},{"v":200,"d":"200.00 €"},{"v":200,"d":"200.00 €"},{"v":200,"d":"200.00 €"},{"v":2400,"d":"2,400.00 €"}]
[null,"Sicherheit",{"v":600,"d":"600.00 €"},{"v":600,"d":"600.00 €"},{"v":600,"d":"600.00 €"},{"v":600,"d":"600.00 €"},{"v":600,"d":"600.00 €"},{"v":600,"d":"600.00 €"},{"v":600,"d":"600.00 €"},{"v":600,"d":"600.00 €"},{"v":600,"d":"600.00 €"},{"v":600,"d":"600.00 €"},{"v":600,"d":"600.00 €"},{"v":600,"d":"600.00 €"},{"v":7200,"d":"7,200.00 €"}]
[null,"Zwischensumme",{"$f":"SUBTOTAL(109,BüroPlan[Jan])","v":{"v":11370,"d":"11,370.00 €"}},{"$f":"SUBTOTAL(109,BüroPlan[Feb])","v":{"v":11770,"d":"11,770.00 €"}},{"$f":"SUBTOTAL(109,BüroPlan[Mrz])","v":{"v":11770,"d":"11,770.00 €"}},{"$f":"SUBTOTAL(109,BüroPlan[Apr])","v":{"v":11470,"d":"11,470.00 €"}},{"$f":"SUBTOTAL(109,BüroPlan[Mai])","v":{"v":11470,"d":"11,470.00 €"}},{"$f":"SUBTOTAL(109,BüroPlan[Jun])","v":{"v":11470,"d":"11,470.00 €"}},{"$f":"SUBTOTAL(109,BüroPlan[Jul])","v":{"v":11470,"d":"11,470.00 €"}},{"$f":"SUBTOTAL(109,BüroPlan[Aug])","v":{"v":11470,"d":"11,470.00 €"}},{"$f":"SUBTOTAL(109,BüroPlan[Sep])","v":{"v":11470,"d":"11,470.00 €"}},{"$f":"SUBTOTAL(109,BüroPlan[Okt])","v":{"v":11470,"d":"11,470.00 €"}},{"$f":"SUBTOTAL(109,BüroPlan[Nov])","v":{"v":11770,"d":"11,770.00 €"}},{"$f":"SUBTOTAL(109,BüroPlan[Dez])","v":{"v":11770,"d":"11,770.00 €"}},{"$f":"SUBTOTAL(109,BüroPlan[JAHR])","v":{"v":138740,"d":"138,740.00 €"}}]
[]
[null,"Marketingkosten","Jan","Feb","Mrz","Apr","Mai","Jun","Jul","Aug","Sep","Okt","Nov","Dez","JAHR"]
[null,"Websitehosting",{"v":500,"d":"500.00 €"},{"v":500,"d":"500.00 €"},{"v":500,"d":"500.00 €"},{"v":500,"d":"500.00 €"},{"v":500,"d":"500.00 €"},{"v":500,"d":"500.00 €"},{"v":500,"d":"500.00 €"},{"v":500,"d":"500.00 €"},{"v":500,"d":"500.00 €"},{"v":500,"d":"500.00 €"},{"v":500,"d":"500.00 €"},{"v":500,"d":"500.00 €"},{"$f":"SUM(C22:N22)","v":{"v":6000,"d":"6,000.00 €"}}]
[null,"Websiteaktualisierungen",{"v":200,"d":"200.00 €"},{"v":200,"d":"200.00 €"},{"v":200,"d":"200.00 €"},{"v":200,"d":"200.00 €"},{"v":200,"d":"200.00 €"},{"v":1000,"d":"1,000.00 €"},{"v":200,"d":"200.00 €"},{"v":200,"d":"200.00 €"},{"v":200,"d":"200.00 €"},{"v":200,"d":"200.00 €"},{"v":200,"d":"200.00 €"},{"v":1000,"d":"1,000.00 €"},{"v":4000,"d":"4,000.00 €"}]
[null,"Vorbereitung von Begleitmaterialien",{"v":5000,"d":"5,000.00 €"},{"v":0,"d":"0.00 €"},{"v":0,"d":"0.00 €"},{"v":5000,"d":"5,000.00 €"},{"v":0,"d":"0.00 €"},{"v":0,"d":"0.00 €"},{"v":5000,"d":"5,000.00 €"},{"v":0,"d":"0.00 €"},{"v":0,"d":"0.00 €"},{"v":5000,"d":"5,000.00 €"},{"v":0,"d":"0.00 €"},{"v":0,"d":"0.00 €"},{"v":20000,"d":"20,000.00 €"}]
[null,"Druck von Begleitmaterialien",{"v":200,"d":"200.00 €"},{"v":200,"d":"200.00 €"},{"v":200,"d":"200.00 €"},{"v":200,"d":"200.00 €"},{"v":200,"d":"200.00 €"},{"v":200,"d":"200.00 €"},{"v":200,"d":"200.00 €"},{"v":200,"d":"200.00 €"},{"v":200,"d":"200.00 €"},{"v":200,"d":"200.00 €"},{"v":200,"d":"200.00 €"},{"v":200,"d":"200.00 €"},{"v":2400,"d":"2,400.00 €"}]
[null,"Marketingveranstaltungen",{"v":2000,"d":"2,000.00 €"},{"v":2000,"d":"2,000.00 €"},{"v":2000,"d":"2,000.00 €"},{"v":5000,"d":"5,000.00 €"},{"v":2000,"d":"2,000.00 €"},{"v":2000,"d":"2,000.00 €"},{"v":2000,"d":"2,000.00 €"},{"v":5000,"d":"5,000.00 €"},{"v":2000,"d":"2,000.00 €"},{"v":2000,"d":"2,000.00 €"},{"v":2000,"d":"2,000.00 €"},{"v":5000,"d":"5,000.00 €"},{"v":33000,"d":"33,000.00 €"}]
[null,"Sonstige Ausgaben",{"v":200,"d":"200.00 €"},{"v":200,"d":"200.00 €"},{"v":200,"d":"200.00 €"},{"v":200,"d":"200.00 €"},{"v":200,"d":"200.00 €"},{"v":200,"d":"200.00 €"},{"v":200,"d":"200.00 €"},{"v":200,"d":"200.00 €"},{"v":200,"d":"200.00 €"},{"v":200,"d":"200.00 €"},{"v":200,"d":"200.00 €"},{"v":200,"d":"200.00 €"},{"v":2400,"d":"2,400.00 €"}]
[null,"Zwischensumme",{"$f":"SUBTOTAL(109,MarketingPlan[Jan])","v":{"v":8100,"d":"8,100.00 €"}},{"$f":"SUBTOTAL(109,MarketingPlan[Feb])","v":{"v":3100,"d":"3,100.00 €"}},{"$f":"SUBTOTAL(109,MarketingPlan[Mrz])","v":{"v":3100,"d":"3,100.00 €"}},{"$f":"SUBTOTAL(109,MarketingPlan[Apr])","v":{"v":11100,"d":"11,100.00 €"}},{"$f":"SUBTOTAL(109,MarketingPlan[Mai])","v":{"v":3100,"d":"3,100.00 €"}},{"$f":"SUBTOTAL(109,MarketingPlan[Jun])","v":{"v":3900,"d":"3,900.00 €"}},{"$f":"SUBTOTAL(109,MarketingPlan[Jul])","v":{"v":8100,"d":"8,100.00 €"}},{"$f":"SUBTOTAL(109,MarketingPlan[Aug])","v":{"v":6100,"d":"6,100.00 €"}},{"$f":"SUBTOTAL(109,MarketingPlan[Sep])","v":{"v":3100,"d":"3,100.00 €"}},{"$f":"SUBTOTAL(109,MarketingPlan[Okt])","v":{"v":8100,"d":"8,100.00 €"}},{"$f":"SUBTOTAL(109,MarketingPlan[Nov])","v":{"v":3100,"d":"3,100.00 €"}},{"$f":"SUBTOTAL(109,MarketingPlan[Dez])","v":{"v":6900,"d":"6,900.00 €"}},{"$f":"SUBTOTAL(109,MarketingPlan[JAHR])","v":{"v":67800,"d":"67,800.00 €"}}]
[]
[null,"Schulung/Reisen","Jan","Feb","Mrz","Apr","Mai","Jun","Jul","Aug","Sep","Okt","Nov","Dez","JAHR"]
[null,"Schulungskurse",{"v":2000,"d":"2,000.00 €"},{"v":2000,"d":"2,000.00 €"},{"v":2000,"d":"2,000.00 €"},{"v":2000,"d":"2,000.00 €"},{"v":2000,"d":"2,000.00 €"},{"v":2000,"d":"2,000.00 €"},{"v":2000,"d":"2,000.00 €"},{"v":2000,"d":"2,000.00 €"},{"v":2000,"d":"2,000.00 €"},{"v":2000,"d":"2,000.00 €"},{"v":2000,"d":"2,000.00 €"},{"v":2000,"d":"2,000.00 €"},{"$f":"SUM(C31:N31)","v":{"v":24000,"d":"24,000.00 €"}}]
[null,"Schulungsbezogene Reisekosten",{"v":2000,"d":"2,000.00 €"},{"v":2000,"d":"2,000.00 €"},{"v":2000,"d":"2,000.00 €"},{"v":2000,"d":"2,000.00 €"},{"v":2000,"d":"2,000.00 €"},{"v":2000,"d":"2,000.00 €"},{"v":2000,"d":"2,000.00 €"},{"v":2000,"d":"2,000.00 €"},{"v":2000,"d":"2,000.00 €"},{"v":2000,"d":"2,000.00 €"},{"v":2000,"d":"2,000.00 €"},{"v":2000,"d":"2,000.00 €"},{"$f":"SUM(C32:N32)","v":{"v":24000,"d":"24,000.00 €"}}]
[null,"Zwischensumme",{"$f":"SUBTOTAL(109,SchulungUndReisePlan[Jan])","v":{"v":4000,"d":"4,000.00 €"}},{"$f":"SUBTOTAL(109,SchulungUndReisePlan[Feb])","v":{"v":4000,"d":"4,000.00 €"}},{"$f":"SUBTOTAL(109,SchulungUndReisePlan[Mrz])","v":{"v":4000,"d":"4,000.00 €"}},{"$f":"SUBTOTAL(109,SchulungUndReisePlan[Apr])","v":{"v":4000,"d":"4,000.00 €"}},{"$f":"SUBTOTAL(109,SchulungUndReisePlan[Mai])","v":{"v":4000,"d":"4,000.00 €"}},{"$f":"SUBTOTAL(109,SchulungUndReisePlan[Jun])","v":{"v":4000,"d":"4,000.00 €"}},{"$f":"SUBTOTAL(109,SchulungUndReisePlan[Jul])","v":{"v":4000,"d":"4,000.00 €"}},{"$f":"SUBTOTAL(109,SchulungUndReisePlan[Aug])","v":{"v":4000,"d":"4,000.00 €"}},{"$f":"SUBTOTAL(109,SchulungUndReisePlan[Sep])","v":{"v":4000,"d":"4,000.00 €"}},{"$f":"SUBTOTAL(109,SchulungUndReisePlan[Okt])","v":{"v":4000,"d":"4,000.00 €"}},{"$f":"SUBTOTAL(109,SchulungUndReisePlan[Nov])","v":{"v":4000,"d":"4,000.00 €"}},{"$f":"SUBTOTAL(109,SchulungUndReisePlan[Dez])","v":{"v":4000,"d":"4,000.00 €"}},{"$f":"SUBTOTAL(109,SchulungUndReisePlan[JAHR])","v":{"v":48000,"d":"48,000.00 €"}}]
[]
[null,"SUMMEN","Jan","Feb","Mrz","Apr","Mai","Jun","Jul","Aug","Sep","Okt","Nov","Dez","Jahr"]
[null,"Geplante monatliche Kosten",{"$f":"SchulungUndReisePlan[[#Totals],[Jan]]+MarketingPlan[[#Totals],[Jan]]+BüroPlan[[#Totals],[Jan]]+MitarbeiterPlan[[#Totals],[Jan]]","v":{"v":131420,"d":"131,420.00 €"}},{"$f":"SchulungUndReisePlan[[#Totals],[Feb]]+MarketingPlan[[#Totals],[Feb]]+BüroPlan[[#Totals],[Feb]]+MitarbeiterPlan[[#Totals],[Feb]]","v":{"v":126820,"d":"126,820.00 €"}},{"$f":"SchulungUndReisePlan[[#Totals],[Mrz]]+MarketingPlan[[#Totals],[Mrz]]+BüroPlan[[#Totals],[Mrz]]+MitarbeiterPlan[[#Totals],[Mrz]]","v":{"v":126820,"d":"126,820.00 €"}},{"$f":"SchulungUndReisePlan[[#Totals],[Apr]]+MarketingPlan[[#Totals],[Apr]]+BüroPlan[[#Totals],[Apr]]+MitarbeiterPlan[[#Totals],[Apr]]","v":{"v":137695,"d":"137,695.00 €"}},{"$f":"SchulungUndReisePlan[[#Totals],[Mai]]+MarketingPlan[[#Totals],[Mai]]+BüroPlan[[#Totals],[Mai]]+MitarbeiterPlan[[#Totals],[Mai]]","v":{"v":129695,"d":"129,695.00 €"}},{"$f":"SchulungUndReisePlan[[#Totals],[Jun]]+MarketingPlan[[#Totals],[Jun]]+BüroPlan[[#Totals],[Jun]]+MitarbeiterPlan[[#Totals],[Jun]]","v":{"v":130495,"d":"130,495.00 €"}},{"$f":"SchulungUndReisePlan[[#Totals],[Jul]]+MarketingPlan[[#Totals],[Jul]]+BüroPlan[[#Totals],[Jul]]+MitarbeiterPlan[[#Totals],[Jul]]","v":{"v":134695,"d":"134,695.00 €"}},{"$f":"SchulungUndReisePlan[[#Totals],[Aug]]+MarketingPlan[[#Totals],[Aug]]+BüroPlan[[#Totals],[Aug]]+MitarbeiterPlan[[#Totals],[Aug]]","v":{"v":138918,"d":"138,918.00 €"}},{"$f":"SchulungUndReisePlan[[#Totals],[Sep]]+MarketingPlan[[#Totals],[Sep]]+BüroPlan[[#Totals],[Sep]]+MitarbeiterPlan[[#Totals],[Sep]]","v":{"v":135918,"d":"135,918.00 €"}},{"$f":"SchulungUndReisePlan[[#Totals],[Okt]]+MarketingPlan[[#Totals],[Okt]]+BüroPlan[[#Totals],[Okt]]+MitarbeiterPlan[[#Totals],[Okt]]","v":{"v":140918,"d":"140,918.00 €"}},{"$f":"SchulungUndReisePlan[[#Totals],[Nov]]+MarketingPlan[[#Totals],[Nov]]+BüroPlan[[#Totals],[Nov]]+MitarbeiterPlan[[#Totals],[Nov]]","v":{"v":136218,"d":"136,218.00 €"}},{"$f":"SchulungUndReisePlan[[#Totals],[Dez]]+MarketingPlan[[#Totals],[Dez]]+BüroPlan[[#Totals],[Dez]]+MitarbeiterPlan[[#Totals],[Dez]]","v":{"v":140018,"d":"140,018.00 €"}},{"$f":"SchulungUndReisePlan[[#Totals],[JAHR]]+MarketingPlan[[#Totals],[JAHR]]+BüroPlan[[#Totals],[JAHR]]+MitarbeiterPlan[[#Totals],[JAHR]]","v":{"v":1609630,"d":"1,609,630.00 €"}}]
[null,"Summe der geplanten Kosten",{"$f":"SUM($C$36:C36)","v":{"v":131420,"d":"131,420.00 €"}},{"$f":"SUM($C$36:D36)","v":{"v":258240,"d":"258,240.00 €"}},{"$f":"SUM($C$36:E36)","v":{"v":385060,"d":"385,060.00 €"}},{"$f":"SUM($C$36:F36)","v":{"v":522755,"d":"522,755.00 €"}},{"$f":"SUM($C$36:G36)","v":{"v":652450,"d":"652,450.00 €"}},{"$f":"SUM($C$36:H36)","v":{"v":782945,"d":"782,945.00 €"}},{"$f":"SUM($C$36:I36)","v":{"v":917640,"d":"917,640.00 €"}},{"$f":"SUM($C$36:J36)","v":{"v":1056558,"d":"1,056,558.00 €"}},{"$f":"SUM($C$36:K36)","v":{"v":1192476,"d":"1,192,476.00 €"}},{"$f":"SUM($C$36:L36)","v":{"v":1333394,"d":"1,333,394.00 €"}},{"$f":"SUM($C$36:M36)","v":{"v":1469612,"d":"1,469,612.00 €"}},{"$f":"SUM($C$36:N36)","v":{"v":1609630,"d":"1,609,630.00 €"}}]

{"sheet":"TATSÄCHLICHE KOSTEN","index":2,"n_rows":37,"n_cols":16,"rows_kept":37,"merged":[[1,10,1,12],[2,10,2,12]]}
[{"$nulls":15}," "]
[null,{"$f":"'GEPLANTE KOSTEN'!B2:D3","v":"Firmenname"},{"$nulls":8},{"$f":"worksheet_title","v":"Detaillierte Kostenschätzungen"}]
[{"$nulls":10},"Schattierte Zellen stellen Berechnungen dar."]
[null,"TATSÄCHLICHE KOSTEN","JAN","FEB","MRZ","APR","MAI","JUN","JUL","AUG","SEP","OKT","NOV","DEZ","JAHR"]
[null,"Mitarbeiterkosten","Jan","Feb","Mrz","Apr","Mai","Jun","Jul","Aug","Sep","Okt","Nov","Dez","JAHR"]
[null,"Gehälter",{"v":85000,"d":"85,000.00 €"},{"v":85000,"d":"85,000.00 €"},{"v":85000,"d":"85,000.00 €"},{"v":88000,"d":"88,000.00 €"},{"v":88000,"d":"88,000.00 €"},{"v":88000,"d":"88,000.00 €"},{"$nulls":6},{"$f":"SUM(C6:N6)","v":{"v":519000,"d":"519,000.00 €"}}]
[null,"Vorteile",{"$f":"C6*0.27","v":{"v":22950,"d":"22,950.00 €"}},{"v":22950,"d":"22,950.00 €"},{"v":22950,"d":"22,950.00 €"},{"v":23760,"d":"23,760.00 €"},{"v":23760,"d":"23,760.00 €"},{"v":23760,"d":"23,760.00 €"},{"v":0,"d":"0.00 €"},{"v":0,"d":"0.00 €"},{"v":0,"d":"0.00 €"},{"v":0,"d":"0.00 €"},{"v":0,"d":"0.00 €"},{"v":0,"d":"0.00 €"},{"$f":"SUM(C7:N7)","v":{"v":140130,"d":"140,130.00 €"}}]
[null,"Zwischensumme",{"$f":"SUBTOTAL(109,MitarbeiterTatsächlich[Jan])","v":{"v":107950,"d":"107,950.00 €"}},{"$f":"SUBTOTAL(109,MitarbeiterTatsächlich[Feb])","v":{"v":107950,"d":"107,950.00 €"}},{"$f":"SUBTOTAL(109,MitarbeiterTatsächlich[Mrz])","v":{"v":107950,"d":"107,950.00 €"}},{"$f":"SUBTOTAL(109,MitarbeiterTatsächlich[Apr])","v":{"v":111760,"d":"111,760.00 €"}},{"$f":"SUBTOTAL(109,MitarbeiterTatsächlich[Mai])","v":{"v":111760,"d":"111,760.00 €"}},{"$f":"SUBTOTAL(109,MitarbeiterTatsächlich[Jun])","v":{"v":111760,"d":"111,760.00 €"}},{"$f":"SUBTOTAL(109,MitarbeiterTatsächlich[Jul])","v":{"v":0,"d":"0.00 €"}},{"$f":"SUBTOTAL(109,MitarbeiterTatsächlich[Aug])","v":{"v":0,"d":"0.00 €"}},{"$f":"SUBTOTAL(109,MitarbeiterTatsächlich[Sep])","v":{"v":0,"d":"0.00 €"}},{"$f":"SUBTOTAL(109,MitarbeiterTatsächlich[Okt])","v":{"v":0,"d":"0.00 €"}},{"$f":"SUBTOTAL(109,MitarbeiterTatsächlich[Nov])","v":{"v":0,"d":"0.00 €"}},{"$f":"SUBTOTAL(109,MitarbeiterTatsächlich[Dez])","v":{"v":0,"d":"0.00 €"}},{"$f":"SUBTOTAL(109,MitarbeiterTatsächlich[JAHR])","v":{"v":659130,"d":"659,130.00 €"}}]
[]
[null,"Bürokosten","Jan","Feb","Mrz","Apr","Mai","Jun","Jul","Aug","Sep","Okt","Nov","Dez","JAHR"]
[null,"Büromiete",{"v":9800,"d":"9,800.00 €"},{"v":9800,"d":"9,800.00 €"},{"v":9800,"d":"9,800.00 €"},{"v":9800,"d":"9,800.00 €"},{"v":9800,"d":"9,800.00 €"},{"v":9800,"d":"9,800.00 €"},{"$nulls":6},{"$f":"SUM(C11:N11)","v":{"v":58800,"d":"58,800.00 €"}}]
[null,"Gas",{"v":4,"d":"4.00 €"},{"v":430,"d":"430.00 €"},{"v":385,"d":"385.00 €"},{"v":230,"d":"230.00 €"},{"v":87,"d":"87.00 €"},{"v":88,"d":"88.00 €"},{"$nulls":6},{"v":1224,"d":"1,224.00 €"}]
[null,"Strom",{"v":288,"d":"288.00 €"},{"v":278,"d":"278.00 €"},{"v":268,"d":"268.00 €"},{"v":299,"d":"299.00 €"},{"v":306,"d":"306.00 €"},{"v":290,"d":"290.00 €"},{"$nulls":6},{"v":1729,"d":"1,729.00 €"}]
[null,"Wasser",{"v":35,"d":"35.00 €"},{"v":33,"d":"33.00 €"},{"v":34,"d":"34.00 €"},{"v":36,"d":"36.00 €"},{"v":34,"d":"34.00 €"},{"v":36,"d":"36.00 €"},{"$nulls":6},{"v":208,"d":"208.00 €"}]
[null,"Telefon",{"v":224,"d":"224.00 €"},{"v":235,"d":"235.00 €"},{"v":265,"d":"265.00 €"},{"v":245,"d":"245.00 €"},{"v":245,"d":"245.00 €"},{"v":220,"d":"220.00 €"},{"$nulls":6},{"v":1434,"d":"1,434.00 €"}]
[null,"Internetzugang",{"v":180,"d":"180.00 €"},{"v":180,"d":"180.00 €"},{"v":180,"d":"180.00 €"},{"v":180,"d":"180.00 €"},{"v":180,"d":"180.00 €"},{"v":180,"d":"180.00 €"},{"$nulls":6},{"v":1080,"d":"1,080.00 €"}]
[null,"Büromaterial",{"v":256,"d":"256.00 €"},{"v":142,"d":"142.00 €"},{"v":160,"d":"160.00 €"},{"v":221,"d":"221.00 €"},{"v":256,"d":"256.00 €"},{"v":240,"d":"240.00 €"},{"$nulls":6},{"v":1275,"d":"1,275.00 €"}]
[null,"Sicherheit",{"v":600,"d":"600.00 €"},{"v":600,"d":"600.00 €"},{"v":600,"d":"600.00 €"},{"v":600,"d":"600.00 €"},{"v":600,"d":"600.00 €"},{"v":600,"d":"600.00 €"},{"$nulls":6},{"v":3600,"d":"3,600.00 €"}]
[null,"Zwischensumme",{"$f":"SUBTOTAL(109,BüroTatsächlich[Jan])","v":{"v":11387,"d":"11,387.00 €"}},{"$f":"SUBTOTAL(109,BüroTatsächlich[Feb])","v":{"v":11698,"d":"11,698.00 €"}},{"$f":"SUBTOTAL(109,BüroTatsächlich[Mrz])","v":{"v":11692,"d":"11,692.00 €"}},{"$f":"SUBTOTAL(109,BüroTatsächlich[Apr])","v":{"v":11611,"d":"11,611.00 €"}},{"$f":"SUBTOTAL(109,BüroTatsächlich[Mai])","v":{"v":11508,"d":"11,508.00 €"}},{"$f":"SUBTOTAL(109,BüroTatsächlich[Jun])","v":{"v":11454,"d":"11,454.00 €"}},{"$f":"SUBTOTAL(109,BüroTatsächlich[Jul])","v":{"v":0,"d":"0.00 €"}},{"$f":"SUBTOTAL(109,BüroTatsächlich[Aug])","v":{"v":0,"d":"0.00 €"}},{"$f":"SUBTOTAL(109,BüroTatsächlich[Sep])","v":{"v":0,"d":"0.00 €"}},{"$f":"SUBTOTAL(109,BüroTatsächlich[Okt])","v":{"v":0,"d":"0.00 €"}},{"$f":"SUBTOTAL(109,BüroTatsächlich[Nov])","v":{"v":0,"d":"0.00 €"}},{"$f":"SUBTOTAL(109,BüroTatsächlich[Dez])","v":{"v":0,"d":"0.00 €"}},{"$f":"SUBTOTAL(109,BüroTatsächlich[JAHR])","v":{"v":69350,"d":"69,350.00 €"}}]
[]
[null,"Marketingkosten","Jan","Feb","Mrz","Apr","Mai","Jun","Jul","Aug","Sep","Okt","Nov","Dez","JAHR"]
[null,"Websitehosting",{"v":500,"d":"500.00 €"},{"v":500,"d":"500.00 €"},{"v":500,"d":"500.00 €"},{"v":500,"d":"500.00 €"},{"v":500,"d":"500.00 €"},{"v":500,"d":"500.00 €"},{"$nulls":6},{"$f":"SUM(C22:N22)","v":{"v":3000,"d":"3,000.00 €"}}]
[null,"Websiteaktualisierungen",{"v":200,"d":"200.00 €"},{"v":200,"d":"200.00 €"},{"v":200,"d":"200.00 €"},{"v":200,"d":"200.00 €"},{"v":200,"d":"200.00 €"},{"v":1500,"d":"1,500.00 €"},{"$nulls":6},{"v":2500,"d":"2,500.00 €"}]
[null,"Vorbereitung von Begleitmaterialien",{"v":4800,"d":"4,800.00 €"},{"v":0,"d":"0.00 €"},{"v":0,"d":"0.00 €"},{"v":5500,"d":"5,500.00 €"},{"v":0,"d":"0.00 €"},{"v":0,"d":"0.00 €"},{"$nulls":6},{"v":10300,"d":"10,300.00 €"}]
[null,"Druck von Begleitmaterialien",{"v":100,"d":"100.00 €"},{"v":500,"d":"500.00 €"},{"v":100,"d":"100.00 €"},{"v":100,"d":"100.00 €"},{"v":600,"d":"600.00 €"},{"v":180,"d":"180.00 €"},{"$nulls":6},{"v":1580,"d":"1,580.00 €"}]
[null,"Marketingveranstaltungen",{"v":1800,"d":"1,800.00 €"},{"v":2200,"d":"2,200.00 €"},{"v":2200,"d":"2,200.00 €"},{"v":4700,"d":"4,700.00 €"},{"v":1500,"d":"1,500.00 €"},{"v":2300,"d":"2,300.00 €"},{"$nulls":6},{"v":14700,"d":"14,700.00 €"}]
[null,"Sonstige Ausgaben",{"v":145,"d":"145.00 €"},{"v":156,"d":"156.00 €"},{"v":123,"d":"123.00 €"},{"v":223,"d":"223.00 €"},{"v":187,"d":"187.00 €"},{"v":245,"d":"245.00 €"},{"$nulls":6},{"v":1079,"d":"1,079.00 €"}]
[null,"Zwischensumme",{"$f":"SUBTOTAL(109,MarketingTatsächlich[Jan])","v":{"v":7545,"d":"7,545.00 €"}},{"$f":"SUBTOTAL(109,MarketingTatsächlich[Feb])","v":{"v":3556,"d":"3,556.00 €"}},{"$f":"SUBTOTAL(109,MarketingTatsächlich[Mrz])","v":{"v":3123,"d":"3,123.00 €"}},{"$f":"SUBTOTAL(109,MarketingTatsächlich[Apr])","v":{"v":11223,"d":"11,223.00 €"}},{"$f":"SUBTOTAL(109,MarketingTatsächlich[Mai])","v":{"v":2987,"d":"2,987.00 €"}},{"$f":"SUBTOTAL(109,MarketingTatsächlich[Jun])","v":{"v":4725,"d":"4,725.00 €"}},{"$f":"SUBTOTAL(109,MarketingTatsächlich[Jul])","v":{"v":0,"d":"0.00 €"}},{"$f":"SUBTOTAL(109,MarketingTatsächlich[Aug])","v":{"v":0,"d":"0.00 €"}},{"$f":"SUBTOTAL(109,MarketingTatsächlich[Sep])","v":{"v":0,"d":"0.00 €"}},{"$f":"SUBTOTAL(109,MarketingTatsächlich[Okt])","v":{"v":0,"d":"0.00 €"}},{"$f":"SUBTOTAL(109,MarketingTatsächlich[Nov])","v":{"v":0,"d":"0.00 €"}},{"$f":"SUBTOTAL(109,MarketingTatsächlich[Dez])","v":{"v":0,"d":"0.00 €"}},{"$f":"SUBTOTAL(109,MarketingTatsächlich[JAHR])","v":{"v":33159,"d":"33,159.00 €"}}]
[]
[null,"Schulung/Reisen","Jan","Feb","Mrz","Apr","Mai","Jun","Jul","Aug","Sep","Okt","Nov","Dez","JAHR"]
[null,"Schulungskurse",{"v":1600,"d":"1,600.00 €"},{"v":2400,"d":"2,400.00 €"},{"v":1400,"d":"1,400.00 €"},{"v":1600,"d":"1,600.00 €"},{"v":1200,"d":"1,200.00 €"},{"v":2800,"d":"2,800.00 €"},{"$nulls":6},{"$f":"SUM(C31:N31)","v":{"v":11000,"d":"11,000.00 €"}}]
[null,"Schulungsbezogene Reisekosten",{"v":1200,"d":"1,200.00 €"},{"v":2200,"d":"2,200.00 €"},{"v":1400,"d":"1,400.00 €"},{"v":1200,"d":"1,200.00 €"},{"v":800,"d":"800.00 €"},{"v":3500,"d":"3,500.00 €"},{"$nulls":6},{"$f":"SUM(C32:N32)","v":{"v":10300,"d":"10,300.00 €"}}]
[null,"Zwischensumme",{"$f":"SUBTOTAL(109,SchulungUndReiseTatsächlich[Jan])","v":{"v":2800,"d":"2,800.00 €"}},{"$f":"SUBTOTAL(109,SchulungUndReiseTatsächlich[Feb])","v":{"v":4600,"d":"4,600.00 €"}},{"$f":"SUBTOTAL(109,SchulungUndReiseTatsächlich[Mrz])","v":{"v":2800,"d":"2,800.00 €"}},{"$f":"SUBTOTAL(109,SchulungUndReiseTatsächlich[Apr])","v":{"v":2800,"d":"2,800.00 €"}},{"$f":"SUBTOTAL(109,SchulungUndReiseTatsächlich[Mai])","v":{"v":2000,"d":"2,000.00 €"}},{"$f":"SUBTOTAL(109,SchulungUndReiseTatsächlich[Jun])","v":{"v":6300,"d":"6,300.00 €"}},{"$f":"SUBTOTAL(109,SchulungUndReiseTatsächlich[Jul])","v":{"v":0,"d":"0.00 €"}},{"$f":"SUBTOTAL(109,SchulungUndReiseTatsächlich[Aug])","v":{"v":0,"d":"0.00 €"}},{"$f":"SUBTOTAL(109,SchulungUndReiseTatsächlich[Sep])","v":{"v":0,"d":"0.00 €"}},{"$f":"SUBTOTAL(109,SchulungUndReiseTatsächlich[Okt])","v":{"v":0,"d":"0.00 €"}},{"$f":"SUBTOTAL(109,SchulungUndReiseTatsächlich[Nov])","v":{"v":0,"d":"0.00 €"}},{"$f":"SUBTOTAL(109,SchulungUndReiseTatsächlich[Dez])","v":{"v":0,"d":"0.00 €"}},{"$f":"SUBTOTAL(109,SchulungUndReiseTatsächlich[JAHR])","v":{"v":21300,"d":"21,300.00 €"}}]
[]
[null,"Summe der geplanten Kosten","Jan","Feb","Mrz","Apr","Mai","Jun","Jul","Aug","Sep","Okt","Nov","Dez","Jahr"]
[null,"Tatsächliche monatliche Kosten",{"$f":"SchulungUndReiseTatsächlich[[#Totals],[Jan]]+MarketingTatsächlich[[#Totals],[Jan]]+BüroTatsächlich[[#Totals],[Jan]]+MitarbeiterTatsächlich[[#Totals],[Jan]]","v":{"v":129682,"d":"129,682.00 €"}},{"$f":"SchulungUndReiseTatsächlich[[#Totals],[Feb]]+MarketingTatsächlich[[#Totals],[Feb]]+BüroTatsächlich[[#Totals],[Feb]]+MitarbeiterTatsächlich[[#Totals],[Feb]]","v":{"v":127804,"d":"127,804.00 €"}},{"$f":"SchulungUndReiseTatsächlich[[#Totals],[Mrz]]+MarketingTatsächlich[[#Totals],[Mrz]]+BüroTatsächlich[[#Totals],[Mrz]]+MitarbeiterTatsächlich[[#Totals],[Mrz]]","v":{"v":125565,"d":"125,565.00 €"}},{"$f":"SchulungUndReiseTatsächlich[[#Totals],[Apr]]+MarketingTatsächlich[[#Totals],[Apr]]+BüroTatsächlich[[#Totals],[Apr]]+MitarbeiterTatsächlich[[#Totals],[Apr]]","v":{"v":137394,"d":"137,394.00 €"}},{"$f":"SchulungUndReiseTatsächlich[[#Totals],[Mai]]+MarketingTatsächlich[[#Totals],[Mai]]+BüroTatsächlich[[#Totals],[Mai]]+MitarbeiterTatsächlich[[#Totals],[Mai]]","v":{"v":128255,"d":"128,255.00 €"}},{"$f":"SchulungUndReiseTatsächlich[[#Totals],[Jun]]+MarketingTatsächlich[[#Totals],[Jun]]+BüroTatsächlich[[#Totals],[Jun]]+MitarbeiterTatsächlich[[#Totals],[Jun]]","v":{"v":134239,"d":"134,239.00 €"}},{"$f":"SchulungUndReiseTatsächlich[[#Totals],[Jul]]+MarketingTatsächlich[[#Totals],[Jul]]+BüroTatsächlich[[#Totals],[Jul]]+MitarbeiterTatsächlich[[#Totals],[Jul]]","v":{"v":0,"d":"0.00 €"}},{"$f":"SchulungUndReiseTatsächlich[[#Totals],[Aug]]+MarketingTatsächlich[[#Totals],[Aug]]+BüroTatsächlich[[#Totals],[Aug]]+MitarbeiterTatsächlich[[#Totals],[Aug]]","v":{"v":0,"d":"0.00 €"}},{"$f":"SchulungUndReiseTatsächlich[[#Totals],[Sep]]+MarketingTatsächlich[[#Totals],[Sep]]+BüroTatsächlich[[#Totals],[Sep]]+MitarbeiterTatsächlich[[#Totals],[Sep]]","v":{"v":0,"d":"0.00 €"}},{"$f":"SchulungUndReiseTatsächlich[[#Totals],[Okt]]+MarketingTatsächlich[[#Totals],[Okt]]+BüroTatsächlich[[#Totals],[Okt]]+MitarbeiterTatsächlich[[#Totals],[Okt]]","v":{"v":0,"d":"0.00 €"}},{"$f":"SchulungUndReiseTatsächlich[[#Totals],[Nov]]+MarketingTatsächlich[[#Totals],[Nov]]+BüroTatsächlich[[#Totals],[Nov]]+MitarbeiterTatsächlich[[#Totals],[Nov]]","v":{"v":0,"d":"0.00 €"}},{"$f":"SchulungUndReiseTatsächlich[[#Totals],[Dez]]+MarketingTatsächlich[[#Totals],[Dez]]+BüroTatsächlich[[#Totals],[Dez]]+MitarbeiterTatsächlich[[#Totals],[Dez]]","v":{"v":0,"d":"0.00 €"}},{"$f":"SchulungUndReiseTatsächlich[[#Totals],[JAHR]]+MarketingTatsächlich[[#Totals],[JAHR]]+BüroTatsächlich[[#Totals],[JAHR]]+MitarbeiterTatsächlich[[#Totals],[JAHR]]","v":{"v":782939,"d":"782,939.00 €"}}]
[null,"SUMME der tatsächlichen Kosten",{"$f":"SUM($C$36:C36)","v":{"v":129682,"d":"129,682.00 €"}},{"$f":"SUM($C$36:D36)","v":{"v":257486,"d":"257,486.00 €"}},{"$f":"SUM($C$36:E36)","v":{"v":383051,"d":"383,051.00 €"}},{"$f":"SUM($C$36:F36)","v":{"v":520445,"d":"520,445.00 €"}},{"$f":"SUM($C$36:G36)","v":{"v":648700,"d":"648,700.00 €"}},{"$f":"SUM($C$36:H36)","v":{"v":782939,"d":"782,939.00 €"}},{"$f":"SUM($C$36:I36)","v":{"v":782939,"d":"782,939.00 €"}},{"$f":"SUM($C$36:J36)","v":{"v":782939,"d":"782,939.00 €"}},{"$f":"SUM($C$36:K36)","v":{"v":782939,"d":"782,939.00 €"}},{"$f":"SUM($C$36:L36)","v":{"v":782939,"d":"782,939.00 €"}},{"$f":"SUM($C$36:M36)","v":{"v":782939,"d":"782,939.00 €"}},{"$f":"SUM($C$36:N36)","v":{"v":782939,"d":"782,939.00 €"}}]

{"sheet":"KOSTENABWEICHUNGEN","index":3,"n_rows":37,"n_cols":16,"rows_kept":37,"merged":[[1,10,1,12],[2,10,2,12]]}
[{"$nulls":15}," "]
[null,{"$f":"'GEPLANTE KOSTEN'!B2:D3","v":"Firmenname"},{"$nulls":8},{"$f":"worksheet_title","v":"Detaillierte Kostenschätzungen"}]
[{"$nulls":10},"Schattierte Zellen stellen Berechnungen dar."]
[null,"KOSTENABWEICHUNGEN","JAN","FEB","MRZ","APR","MAI","JUN","JUL","AUG","SEP","OKT","NOV","DEZ","JAHR"]
[null,"Mitarbeiterkosten","Jan","Feb","Mrz","Apr","Mai","Jun","Jul","Aug","Sep","Okt","Nov","Dez","JAHR"]
[null,"Gehälter",{"$f":"INDEX(MitarbeiterPlan[],MATCH(INDEX(MitarbeiterAbweichungen[],ROW()-ROW(MitarbeiterAbweichungen[[#Headers],[Jan]]),1),INDEX(MitarbeiterPlan[],,1),0),MATCH(MitarbeiterAbweichungen[[#Headers],[Jan]],MitarbeiterPlan[#Headers],0))-INDEX(MitarbeiterTatsächlich[],MATCH(INDEX(MitarbeiterAbweichungen[],ROW()-ROW(MitarbeiterAbweichungen[[#Headers],[Jan]]),1),INDEX(MitarbeiterPlan[],,1),0),MATCH(MitarbeiterAbweichungen[[#Headers],[Jan]],MitarbeiterTatsächlich[#Headers],0))","v":{"v":0,"d":"0.00 €"}},{"$f":"INDEX(MitarbeiterPlan[],MATCH(INDEX(MitarbeiterAbweichungen[],ROW()-ROW(MitarbeiterAbweichungen[[#Headers],[Feb]]),1),INDEX(MitarbeiterPlan[],,1),0),MATCH(MitarbeiterAbweichungen[[#Headers],[Feb]],MitarbeiterPlan[#Headers],0))-INDEX(MitarbeiterTatsächlich[],MATCH(INDEX(MitarbeiterAbweichungen[],ROW()-ROW(MitarbeiterAbweichungen[[#Headers],[Feb]]),1),INDEX(MitarbeiterPlan[],,1),0),MATCH(MitarbeiterAbweichungen[[#Headers],[Feb]],MitarbeiterTatsächlich[#Headers],0))","v":{"v":0,"d":"0.00 €"}},{"$f":"INDEX(MitarbeiterPlan[],MATCH(INDEX(MitarbeiterAbweichungen[],ROW()-ROW(MitarbeiterAbweichungen[[#Headers],[Mrz]]),1),INDEX(MitarbeiterPlan[],,1),0),MATCH(MitarbeiterAbweichungen[[#Headers],[Mrz]],MitarbeiterPlan[#Headers],0))-INDEX(MitarbeiterTatsächlich[],MATCH(INDEX(MitarbeiterAbweichungen[],ROW()-ROW(MitarbeiterAbweichungen[[#Headers],[Mrz]]),1),INDEX(MitarbeiterPlan[],,1),0),MATCH(MitarbeiterAbweichungen[[#Headers],[Mrz]],MitarbeiterTatsächlich[#Headers],0))","v":{"v":0,"d":"0.00 €"}},{"$f":"INDEX(MitarbeiterPlan[],MATCH(INDEX(MitarbeiterAbweichungen[],ROW()-ROW(MitarbeiterAbweichungen[[#Headers],[Apr]]),1),INDEX(MitarbeiterPlan[],,1),0),MATCH(MitarbeiterAbweichungen[[#Headers],[Apr]],MitarbeiterPlan[#Headers],0))-INDEX(MitarbeiterTatsächlich[],MATCH(INDEX(MitarbeiterAbweichungen[],ROW()-ROW(MitarbeiterAbweichungen[[#Headers],[Apr]]),1),INDEX(MitarbeiterPlan[],,1),0),MATCH(MitarbeiterAbweichungen[[#Headers],[Apr]],MitarbeiterTatsächlich[#Headers],0))","v":{"v":-500,"d":"-500.00 €"}},{"$f":"INDEX(MitarbeiterPlan[],MATCH(INDEX(MitarbeiterAbweichungen[],ROW()-ROW(MitarbeiterAbweichungen[[#Headers],[Mai]]),1),INDEX(MitarbeiterPlan[],,1),0),MATCH(MitarbeiterAbweichungen[[#Headers],[Mai]],MitarbeiterPlan[#Headers],0))-INDEX(MitarbeiterTatsächlich[],MATCH(INDEX(MitarbeiterAbweichungen[],ROW()-ROW(MitarbeiterAbweichungen[[#Headers],[Mai]]),1),INDEX(MitarbeiterPlan[],,1),0),MATCH(MitarbeiterAbweichungen[[#Headers],[Mai]],MitarbeiterTatsächlich[#Headers],0))","v":{"v":-500,"d":"-500.00 €"}},{"$f":"INDEX(MitarbeiterPlan[],MATCH(INDEX(MitarbeiterAbweichungen[],ROW()-ROW(MitarbeiterAbweichungen[[#Headers],[Jun]]),1),INDEX(MitarbeiterPlan[],,1),0),MATCH(MitarbeiterAbweichungen[[#Headers],[Jun]],MitarbeiterPlan[#Headers],0))-INDEX(MitarbeiterTatsächlich[],MATCH(INDEX(MitarbeiterAbweichungen[],ROW()-ROW(MitarbeiterAbweichungen[[#Headers],[Jun]]),1),INDEX(MitarbeiterPlan[],,1),0),MATCH(MitarbeiterAbweichungen[[#Headers],[Jun]],MitarbeiterTatsächlich[#Headers],0))","v":{"v":-500,"d":"-500.00 €"}},{"$f":"INDEX(MitarbeiterPlan[],MATCH(INDEX(MitarbeiterAbweichungen[],ROW()-ROW(MitarbeiterAbweichungen[[#Headers],[Jul]]),1),INDEX(MitarbeiterPlan[],,1),0),MATCH(MitarbeiterAbweichungen[[#Headers],[Jul]],MitarbeiterPlan[#Headers],0))-INDEX(MitarbeiterTatsächlich[],MATCH(INDEX(MitarbeiterAbweichungen[],ROW()-ROW(MitarbeiterAbweichungen[[#Headers],[Jul]]),1),INDEX(MitarbeiterPlan[],,1),0),MATCH(MitarbeiterAbweichungen[[#Headers],[Jul]],MitarbeiterTatsächlich[#Headers],0))","v":{"v":87500,"d":"87,500.00 €"}},{"$f":"INDEX(MitarbeiterPlan[],MATCH(INDEX(MitarbeiterAbweichungen[],ROW()-ROW(MitarbeiterAbweichungen[[#Headers],[Aug]]),1),INDEX(MitarbeiterPlan[],,1),0),MATCH(MitarbeiterAbweichungen[[#Headers],[Aug]],MitarbeiterPlan[#Headers],0))-INDEX(MitarbeiterTatsächlich[],MATCH(INDEX(MitarbeiterAbweichungen[],ROW()-ROW(MitarbeiterAbweichungen[[#Headers],[Aug]]),1),INDEX(MitarbeiterPlan[],,1),0),MATCH(MitarbeiterAbweichungen[[#Headers],[Aug]],MitarbeiterTatsächlich[#Headers],0))","v":{"v":92400,"d":"92,400.00 €"}},{"$f":"INDEX(MitarbeiterPlan[],MATCH(INDEX(MitarbeiterAbweichungen[],ROW()-ROW(MitarbeiterAbweichungen[[#Headers],[Sep]]),1),INDEX(MitarbeiterPlan[],,1),0),MATCH(MitarbeiterAbweichungen[[#Headers],[Sep]],MitarbeiterPlan[#Headers],0))-INDEX(MitarbeiterTatsächlich[],MATCH(INDEX(MitarbeiterAbweichungen[],ROW()-ROW(MitarbeiterAbweichungen[[#Headers],[Sep]]),1),INDEX(MitarbeiterPlan[],,1),0),MATCH(MitarbeiterAbweichungen[[#Headers],[Sep]],MitarbeiterTatsächlich[#Headers],0))","v":{"v":92400,"d":"92,400.00 €"}},{"$f":"INDEX(MitarbeiterPlan[],MATCH(INDEX(MitarbeiterAbweichungen[],ROW()-ROW(MitarbeiterAbweichungen[[#Headers],[Okt]]),1),INDEX(MitarbeiterPlan[],,1),0),MATCH(MitarbeiterAbweichungen[[#Headers],[Okt]],MitarbeiterPlan[#Headers],0))-INDEX(MitarbeiterTatsächlich[],MATCH(INDEX(MitarbeiterAbweichungen[],ROW()-ROW(MitarbeiterAbweichungen[[#Headers],[Okt]]),1),INDEX(MitarbeiterPlan[],,1),0),MATCH(MitarbeiterAbweichungen[[#Headers],[Okt]],MitarbeiterTatsächlich[#Headers],0))","v":{"v":92400,"d":"92,400.00 €"}},{"$f":"INDEX(MitarbeiterPlan[],MATCH(INDEX(MitarbeiterAbweichungen[],ROW()-ROW(MitarbeiterAbweichungen[[#Headers],[Nov]]),1),INDEX(MitarbeiterPlan[],,1),0),MATCH(MitarbeiterAbweichungen[[#Headers],[Nov]],MitarbeiterPlan[#Headers],0))-INDEX(MitarbeiterTatsächlich[],MATCH(INDEX(MitarbeiterAbweichungen[],ROW()-ROW(MitarbeiterAbweichungen[[#Headers],[Nov]]),1),INDEX(MitarbeiterPlan[],,1),0),MATCH(MitarbeiterAbweichungen[[#Headers],[Nov]],MitarbeiterTatsächlich[#Headers],0))","v":{"v":92400,"d":"92,400.00 €"}},{"$f":"INDEX(MitarbeiterPlan[],MATCH(INDEX(MitarbeiterAbweichungen[],ROW()-ROW(MitarbeiterAbweichungen[[#Headers],[Dez]]),1),INDEX(MitarbeiterPlan[],,1),0),MATCH(MitarbeiterAbweichungen[[#Headers],[Dez]],MitarbeiterPlan[#Headers],0))-INDEX(MitarbeiterTatsächlich[],MATCH(INDEX(MitarbeiterAbweichungen[],ROW()-ROW(MitarbeiterAbweichungen[[#Headers],[Dez]]),1),INDEX(MitarbeiterPlan[],,1),0),MATCH(MitarbeiterAbweichungen[[#Headers],[Dez]],MitarbeiterTatsächlich[#Headers],0))","v":{"v":92400,"d":"92,400.00 €"}},{"$f":"SUM(MitarbeiterAbweichungen[[#This Row],[Jan]:[Dez]])","v":{"v":548000,"d":"548,000.00 €"}}]
[null,"Vorteile",{"$f":"INDEX(MitarbeiterPlan[],MATCH(INDEX(MitarbeiterAbweichungen[],ROW()-ROW(MitarbeiterAbweichungen[[#Headers],[Jan]]),1),INDEX(MitarbeiterPlan[],,1),0),MATCH(MitarbeiterAbweichungen[[#Headers],[Jan]],MitarbeiterPlan[#Headers],0))-INDEX(MitarbeiterTatsächlich[],MATCH(INDEX(MitarbeiterAbweichungen[],ROW()-ROW(MitarbeiterAbweichungen[[#Headers],[Jan]]),1),INDEX(MitarbeiterPlan[],,1),0),MATCH(MitarbeiterAbweichungen[[#Headers],[Jan]],MitarbeiterTatsächlich[#Headers],0))","v":{"v":0,"d":"0.00 €"}},{"$f":"INDEX(MitarbeiterPlan[],MATCH(INDEX(MitarbeiterAbweichungen[],ROW()-ROW(MitarbeiterAbweichungen[[#Headers],[Feb]]),1),INDEX(MitarbeiterPlan[],,1),0),MATCH(MitarbeiterAbweichungen[[#Headers],[Feb]],MitarbeiterPlan[#Headers],0))-INDEX(MitarbeiterTatsächlich[],MATCH(INDEX(MitarbeiterAbweichungen[],ROW()-ROW(MitarbeiterAbweichungen[[#Headers],[Feb]]),1),INDEX(MitarbeiterPlan[],,1),0),MATCH(MitarbeiterAbweichungen[[#Headers],[Feb]],MitarbeiterTatsächlich[#Headers],0))","v":{"v":0,"d":"0.00 €"}},{"$f":"INDEX(MitarbeiterPlan[],MATCH(INDEX(MitarbeiterAbweichungen[],ROW()-ROW(MitarbeiterAbweichungen[[#Headers],[Mrz]]),1),INDEX(MitarbeiterPlan[],,1),0),MATCH(MitarbeiterAbweichungen[[#Headers],[Mrz]],MitarbeiterPlan[#Headers],0))-INDEX(MitarbeiterTatsächlich[],MATCH(INDEX(MitarbeiterAbweichungen[],ROW()-ROW(MitarbeiterAbweichungen[[#Headers],[Mrz]]),1),INDEX(MitarbeiterPlan[],,1),0),MATCH(MitarbeiterAbweichungen[[#Headers],[Mrz]],MitarbeiterTatsächlich[#Headers],0))","v":{"v":0,"d":"0.00 €"}},{"$f":"INDEX(MitarbeiterPlan[],MATCH(INDEX(MitarbeiterAbweichungen[],ROW()-ROW(MitarbeiterAbweichungen[[#Headers],[Apr]]),1),INDEX(MitarbeiterPlan[],,1),0),MATCH(MitarbeiterAbweichungen[[#Headers],[Apr]],MitarbeiterPlan[#Headers],0))-INDEX(MitarbeiterTatsächlich[],MATCH(INDEX(MitarbeiterAbweichungen[],ROW()-ROW(MitarbeiterAbweichungen[[#Headers],[Apr]]),1),INDEX(MitarbeiterPlan[],,1),0),MATCH(MitarbeiterAbweichungen[[#Headers],[Apr]],MitarbeiterTatsächlich[#Headers],0))","v":{"v":-135,"d":"-135.00 €"}},{"$f":"INDEX(MitarbeiterPlan[],MATCH(INDEX(MitarbeiterAbweichungen[],ROW()-ROW(MitarbeiterAbweichungen[[#Headers],[Mai]]),1),INDEX(MitarbeiterPlan[],,1),0),MATCH(MitarbeiterAbweichungen[[#Headers],[Mai]],MitarbeiterPlan[#Headers],0))-INDEX(MitarbeiterTatsächlich[],MATCH(INDEX(MitarbeiterAbweichungen[],ROW()-ROW(MitarbeiterAbweichungen[[#Headers],[Mai]]),1),INDEX(MitarbeiterPlan[],,1),0),MATCH(MitarbeiterAbweichungen[[#Headers],[Mai]],MitarbeiterTatsächlich[#Headers],0))","v":{"v":-135,"d":"-135.00 €"}},{"$f":"INDEX(MitarbeiterPlan[],MATCH(INDEX(MitarbeiterAbweichungen[],ROW()-ROW(MitarbeiterAbweichungen[[#Headers],[Jun]]),1),INDEX(MitarbeiterPlan[],,1),0),MATCH(MitarbeiterAbweichungen[[#Headers],[Jun]],MitarbeiterPlan[#Headers],0))-INDEX(MitarbeiterTatsächlich[],MATCH(INDEX(MitarbeiterAbweichungen[],ROW()-ROW(MitarbeiterAbweichungen[[#Headers],[Jun]]),1),INDEX(MitarbeiterPlan[],,1),0),MATCH(MitarbeiterAbweichungen[[#Headers],[Jun]],MitarbeiterTatsächlich[#Headers],0))","v":{"v":-135,"d":"-135.00 €"}},{"$f":"INDEX(MitarbeiterPlan[],MATCH(INDEX(MitarbeiterAbweichungen[],ROW()-ROW(MitarbeiterAbweichungen[[#Headers],[Jul]]),1),INDEX(MitarbeiterPlan[],,1),0),MATCH(MitarbeiterAbweichungen[[#Headers],[Jul]],MitarbeiterPlan[#Headers],0))-INDEX(MitarbeiterTatsächlich[],MATCH(INDEX(MitarbeiterAbweichungen[],ROW()-ROW(MitarbeiterAbweichungen[[#Headers],[Jul]]),1),INDEX(MitarbeiterPlan[],,1),0),MATCH(MitarbeiterAbweichungen[[#Headers],[Jul]],MitarbeiterTatsächlich[#Headers],0))","v":{"v":23625,"d":"23,625.00 €"}},{"$f":"INDEX(MitarbeiterPlan[],MATCH(INDEX(MitarbeiterAbweichungen[],ROW()-ROW(MitarbeiterAbweichungen[[#Headers],[Aug]]),1),INDEX(MitarbeiterPlan[],,1),0),MATCH(MitarbeiterAbweichungen[[#Headers],[Aug]],MitarbeiterPlan[#Headers],0))-INDEX(MitarbeiterTatsächlich[],MATCH(INDEX(MitarbeiterAbweichungen[],ROW()-ROW(MitarbeiterAbweichungen[[#Headers],[Aug]]),1),INDEX(MitarbeiterPlan[],,1),0),MATCH(MitarbeiterAbweichungen[[#Headers],[Aug]],MitarbeiterTatsächlich[#Headers],0))","v":{"v":24948,"d":"24,948.00 €"}},{"$f":"INDEX(MitarbeiterPlan[],MATCH(INDEX(MitarbeiterAbweichungen[],ROW()-ROW(MitarbeiterAbweichungen[[#Headers],[Sep]]),1),INDEX(MitarbeiterPlan[],,1),0),MATCH(MitarbeiterAbweichungen[[#Headers],[Sep]],MitarbeiterPlan[#Headers],0))-INDEX(MitarbeiterTatsächlich[],MATCH(INDEX(MitarbeiterAbweichungen[],ROW()-ROW(MitarbeiterAbweichungen[[#Headers],[Sep]]),1),INDEX(MitarbeiterPlan[],,1),0),MATCH(MitarbeiterAbweichungen[[#Headers],[Sep]],MitarbeiterTatsächlich[#Headers],0))","v":{"v":24948,"d":"24,948.00 €"}},{"$f":"INDEX(MitarbeiterPlan[],MATCH(INDEX(MitarbeiterAbweichungen[],ROW()-ROW(MitarbeiterAbweichungen[[#Headers],[Okt]]),1),INDEX(MitarbeiterPlan[],,1),0),MATCH(MitarbeiterAbweichungen[[#Headers],[Okt]],MitarbeiterPlan[#Headers],0))-INDEX(MitarbeiterTatsächlich[],MATCH(INDEX(MitarbeiterAbweichungen[],ROW()-ROW(MitarbeiterAbweichungen[[#Headers],[Okt]]),1),INDEX(MitarbeiterPlan[],,1),0),MATCH(MitarbeiterAbweichungen[[#Headers],[Okt]],MitarbeiterTatsächlich[#Headers],0))","v":{"v":24948,"d":"24,948.00 €"}},{"$f":"INDEX(MitarbeiterPlan[],MATCH(INDEX(MitarbeiterAbweichungen[],ROW()-ROW(MitarbeiterAbweichungen[[#Headers],[Nov]]),1),INDEX(MitarbeiterPlan[],,1),0),MATCH(MitarbeiterAbweichungen[[#Headers],[Nov]],MitarbeiterPlan[#Headers],0))-INDEX(MitarbeiterTatsächlich[],MATCH(INDEX(MitarbeiterAbweichungen[],ROW()-ROW(MitarbeiterAbweichungen[[#Headers],[Nov]]),1),INDEX(MitarbeiterPlan[],,1),0),MATCH(MitarbeiterAbweichungen[[#Headers],[Nov]],MitarbeiterTatsächlich[#Headers],0))","v":{"v":24948,"d":"24,948.00 €"}},{"$f":"INDEX(MitarbeiterPlan[],MATCH(INDEX(MitarbeiterAbweichungen[],ROW()-ROW(MitarbeiterAbweichungen[[#Headers],[Dez]]),1),INDEX(MitarbeiterPlan[],,1),0),MATCH(MitarbeiterAbweichungen[[#Headers],[Dez]],MitarbeiterPlan[#Headers],0))-INDEX(MitarbeiterTatsächlich[],MATCH(INDEX(MitarbeiterAbweichungen[],ROW()-ROW(MitarbeiterAbweichungen[[#Headers],[Dez]]),1),INDEX(MitarbeiterPlan[],,1),0),MATCH(MitarbeiterAbweichungen[[#Headers],[Dez]],MitarbeiterTatsächlich[#Headers],0))","v":{"v":24948,"d":"24,948.00 €"}},{"$f":"SUM(MitarbeiterAbweichungen[[#This Row],[Jan]:[Dez]])","v":{"v":147960,"d":"147,960.00 €"}}]
[null,"Zwischensumme",{"$f":"SUBTOTAL(109,MitarbeiterAbweichungen[Jan])","v":{"v":0,"d":"0.00 €"}},{"$f":"SUBTOTAL(109,MitarbeiterAbweichungen[Feb])","v":{"v":0,"d":"0.00 €"}},{"$f":"SUBTOTAL(109,MitarbeiterAbweichungen[Mrz])","v":{"v":0,"d":"0.00 €"}},{"$f":"SUBTOTAL(109,MitarbeiterAbweichungen[Apr])","v":{"v":-635,"d":"-635.00 €"}},{"$f":"SUBTOTAL(109,MitarbeiterAbweichungen[Mai])","v":{"v":-635,"d":"-635.00 €"}},{"$f":"SUBTOTAL(109,MitarbeiterAbweichungen[Jun])","v":{"v":-635,"d":"-635.00 €"}},{"$f":"SUBTOTAL(109,MitarbeiterAbweichungen[Jul])","v":{"v":111125,"d":"111,125.00 €"}},{"$f":"SUBTOTAL(109,MitarbeiterAbweichungen[Aug])","v":{"v":117348,"d":"117,348.00 €"}},{"$f":"SUBTOTAL(109,MitarbeiterAbweichungen[Sep])","v":{"v":117348,"d":"117,348.00 €"}},{"$f":"SUBTOTAL(109,MitarbeiterAbweichungen[Okt])","v":{"v":117348,"d":"117,348.00 €"}},{"$f":"SUBTOTAL(109,MitarbeiterAbweichungen[Nov])","v":{"v":117348,"d":"117,348.00 €"}},{"$f":"SUBTOTAL(109,MitarbeiterAbweichungen[Dez])","v":{"v":117348,"d":"117,348.00 €"}},{"$f":"SUBTOTAL(109,MitarbeiterAbweichungen[JAHR])","v":{"v":695960,"d":"695,960.00 €"}}]
[]
[null,"Bürokosten","Jan","Feb","Mrz","Apr","Mai","Jun","Jul","Aug","Sep","Okt","Nov","Dez","JAHR"]
[null,"Büromiete",{"$f":"INDEX(BüroPlan[],MATCH(INDEX(BüroAbweichungen[],ROW()-ROW(BüroAbweichungen[[#Headers],[Jan]]),1),INDEX(BüroPlan[],,1),0),MATCH(BüroAbweichungen[[#Headers],[Jan]],BüroPlan[#Headers],0))-INDEX(BüroTatsächlich[],MATCH(INDEX(BüroAbweichungen[],ROW()-ROW(BüroAbweichungen[[#Headers],[Jan]]),1),INDEX(BüroPlan[],,1),0),MATCH(BüroAbweichungen[[#Headers],[Jan]],BüroTatsächlich[#Headers],0))","v":{"v":0,"d":"0.00 €"}},{"$f":"INDEX(BüroPlan[],MATCH(INDEX(BüroAbweichungen[],ROW()-ROW(BüroAbweichungen[[#Headers],[Feb]]),1),INDEX(BüroPlan[],,1),0),MATCH(BüroAbweichungen[[#Headers],[Feb]],BüroPlan[#Headers],0))-INDEX(BüroTatsächlich[],MATCH(INDEX(BüroAbweichungen[],ROW()-ROW(BüroAbweichungen[[#Headers],[Feb]]),1),INDEX(BüroPlan[],,1),0),MATCH(BüroAbweichungen[[#Headers],[Feb]],BüroTatsächlich[#Headers],0))","v":{"v":0,"d":"0.00 €"}},{"$f":"INDEX(BüroPlan[],MATCH(INDEX(BüroAbweichungen[],ROW()-ROW(BüroAbweichungen[[#Headers],[Mrz]]),1),INDEX(BüroPlan[],,1),0),MATCH(BüroAbweichungen[[#Headers],[Mrz]],BüroPlan[#Headers],0))-INDEX(BüroTatsächlich[],MATCH(INDEX(BüroAbweichungen[],ROW()-ROW(BüroAbweichungen[[#Headers],[Mrz]]),1),INDEX(BüroPlan[],,1),0),MATCH(BüroAbweichungen[[#Headers],[Mrz]],BüroTatsächlich[#Headers],0))","v":{"v":0,"d":"0.00 €"}},{"$f":"INDEX(BüroPlan[],MATCH(INDEX(BüroAbweichungen[],ROW()-ROW(BüroAbweichungen[[#Headers],[Apr]]),1),INDEX(BüroPlan[],,1),0),MATCH(BüroAbweichungen[[#Headers],[Apr]],BüroPlan[#Headers],0))-INDEX(BüroTatsächlich[],MATCH(INDEX(BüroAbweichungen[],ROW()-ROW(BüroAbweichungen[[#Headers],[Apr]]),1),INDEX(BüroPlan[],,1),0),MATCH(BüroAbweichungen[[#Headers],[Apr]],BüroTatsächlich[#Headers],0))","v":{"v":0,"d":"0.00 €"}},{"$f":"INDEX(BüroPlan[],MATCH(INDEX(BüroAbweichungen[],ROW()-ROW(BüroAbweichungen[[#Headers],[Mai]]),1),INDEX(BüroPlan[],,1),0),MATCH(BüroAbweichungen[[#Headers],[Mai]],BüroPlan[#Headers],0))-INDEX(BüroTatsächlich[],MATCH(INDEX(BüroAbweichungen[],ROW()-ROW(BüroAbweichungen[[#Headers],[Mai]]),1),INDEX(BüroPlan[],,1),0),MATCH(BüroAbweichungen[[#Headers],[Mai]],BüroTatsächlich[#Headers],0))","v":{"v":0,"d":"0.00 €"}},{"$f":"INDEX(BüroPlan[],MATCH(INDEX(BüroAbweichungen[],ROW()-ROW(BüroAbweichungen[[#Headers],[Jun]]),1),INDEX(BüroPlan[],,1),0),MATCH(BüroAbweichungen[[#Headers],[Jun]],BüroPlan[#Headers],0))-INDEX(BüroTatsächlich[],MATCH(INDEX(BüroAbweichungen[],ROW()-ROW(BüroAbweichungen[[#Headers],[Jun]]),1),INDEX(BüroPlan[],,1),0),MATCH(BüroAbweichungen[[#Headers],[Jun]],BüroTatsächlich[#Headers],0))","v":{"v":0,"d":"0.00 €"}},{"$f":"INDEX(BüroPlan[],MATCH(INDEX(BüroAbweichungen[],ROW()-ROW(BüroAbweichungen[[#Headers],[Jul]]),1),INDEX(BüroPlan[],,1),0),MATCH(BüroAbweichungen[[#Headers],[Jul]],BüroPlan[#Headers],0))-INDEX(BüroTatsächlich[],MATCH(INDEX(BüroAbweichungen[],ROW()-ROW(BüroAbweichungen[[#Headers],[Jul]]),1),INDEX(BüroPlan[],,1),0),MATCH(BüroAbweichungen[[#Headers],[Jul]],BüroTatsächlich[#Headers],0))","v":{"v":9800,"d":"9,800.00 €"}},{"$f":"INDEX(BüroPlan[],MATCH(INDEX(BüroAbweichungen[],ROW()-ROW(BüroAbweichungen[[#Headers],[Aug]]),1),INDEX(BüroPlan[],,1),0),MATCH(BüroAbweichungen[[#Headers],[Aug]],BüroPlan[#Headers],0))-INDEX(BüroTatsächlich[],MATCH(INDEX(BüroAbweichungen[],ROW()-ROW(BüroAbweichungen[[#Headers],[Aug]]),1),INDEX(BüroPlan[],,1),0),MATCH(BüroAbweichungen[[#Headers],[Aug]],BüroTatsächlich[#Headers],0))","v":{"v":9800,"d":"9,800.00 €"}},{"$f":"INDEX(BüroPlan[],MATCH(INDEX(BüroAbweichungen[],ROW()-ROW(BüroAbweichungen[[#Headers],[Sep]]),1),INDEX(BüroPlan[],,1),0),MATCH(BüroAbweichungen[[#Headers],[Sep]],BüroPlan[#Headers],0))-INDEX(BüroTatsächlich[],MATCH(INDEX(BüroAbweichungen[],ROW()-ROW(BüroAbweichungen[[#Headers],[Sep]]),1),INDEX(BüroPlan[],,1),0),MATCH(BüroAbweichungen[[#Headers],[Sep]],BüroTatsächlich[#Headers],0))","v":{"v":9800,"d":"9,800.00 €"}},{"$f":"INDEX(BüroPlan[],MATCH(INDEX(BüroAbweichungen[],ROW()-ROW(BüroAbweichungen[[#Headers],[Okt]]),1),INDEX(BüroPlan[],,1),0),MATCH(BüroAbweichungen[[#Headers],[Okt]],BüroPlan[#Headers],0))-INDEX(BüroTatsächlich[],MATCH(INDEX(BüroAbweichungen[],ROW()-ROW(BüroAbweichungen[[#Headers],[Okt]]),1),INDEX(BüroPlan[],,1),0),MATCH(BüroAbweichungen[[#Headers],[Okt]],BüroTatsächlich[#Headers],0))","v":{"v":9800,"d":"9,800.00 €"}},{"$f":"INDEX(BüroPlan[],MATCH(INDEX(BüroAbweichungen[],ROW()-ROW(BüroAbweichungen[[#Headers],[Nov]]),1),INDEX(BüroPlan[],,1),0),MATCH(BüroAbweichungen[[#Headers],[Nov]],BüroPlan[#Headers],0))-INDEX(BüroTatsächlich[],MATCH(INDEX(BüroAbweichungen[],ROW()-ROW(BüroAbweichungen[[#Headers],[Nov]]),1),INDEX(BüroPlan[],,1),0),MATCH(BüroAbweichungen[[#Headers],[Nov]],BüroTatsächlich[#Headers],0))","v":{"v":9800,"d":"9,800.00 €"}},{"$f":"INDEX(BüroPlan[],MATCH(INDEX(BüroAbweichungen[],ROW()-ROW(BüroAbweichungen[[#Headers],[Dez]]),1),INDEX(BüroPlan[],,1),0),MATCH(BüroAbweichungen[[#Headers],[Dez]],BüroPlan[#Headers],0))-INDEX(BüroTatsächlich[],MATCH(INDEX(BüroAbweichungen[],ROW()-ROW(BüroAbweichungen[[#Headers],[Dez]]),1),INDEX(BüroPlan[],,1),0),MATCH(BüroAbweichungen[[#Headers],[Dez]],BüroTatsächlich[#Headers],0))","v":{"v":9800,"d":"9,800.00 €"}},{"$f":"SUM(BüroAbweichungen[[#This Row],[Jan]:[Dez]])","v":{"v":58800,"d":"58,800.00 €"}}]
[null,"Gas",{"$f":"INDEX(BüroPlan[],MATCH(INDEX(BüroAbweichungen[],ROW()-ROW(BüroAbweichungen[[#Headers],[Jan]]),1),INDEX(BüroPlan[],,1),0),MATCH(BüroAbweichungen[[#Headers],[Jan]],BüroPlan[#Headers],0))-INDEX(BüroTatsächlich[],MATCH(INDEX(BüroAbweichungen[],ROW()-ROW(BüroAbweichungen[[#Headers],[Jan]]),1),INDEX(BüroPlan[],,1),0),MATCH(BüroAbweichungen[[#Headers],[Jan]],BüroTatsächlich[#Headers],0))","v":{"v":-4,"d":"-4.00 €"}},{"$f":"INDEX(BüroPlan[],MATCH(INDEX(BüroAbweichungen[],ROW()-ROW(BüroAbweichungen[[#Headers],[Feb]]),1),INDEX(BüroPlan[],,1),0),MATCH(BüroAbweichungen[[#Headers],[Feb]],BüroPlan[#Headers],0))-INDEX(BüroTatsächlich[],MATCH(INDEX(BüroAbweichungen[],ROW()-ROW(BüroAbweichungen[[#Headers],[Feb]]),1),INDEX(BüroPlan[],,1),0),MATCH(BüroAbweichungen[[#Headers],[Feb]],BüroTatsächlich[#Headers],0))","v":{"v":-30,"d":"-30.00 €"}},{"$f":"INDEX(BüroPlan[],MATCH(INDEX(BüroAbweichungen[],ROW()-ROW(BüroAbweichungen[[#Headers],[Mrz]]),1),INDEX(BüroPlan[],,1),0),MATCH(BüroAbweichungen[[#Headers],[Mrz]],BüroPlan[#Headers],0))-INDEX(BüroTatsächlich[],MATCH(INDEX(BüroAbweichungen[],ROW()-ROW(BüroAbweichungen[[#Headers],[Mrz]]),1),INDEX(BüroPlan[],,1),0),MATCH(BüroAbweichungen[[#Headers],[Mrz]],BüroTatsächlich[#Headers],0))","v":{"v":15,"d":"15.00 €"}},{"$f":"INDEX(BüroPlan[],MATCH(INDEX(BüroAbweichungen[],ROW()-ROW(BüroAbweichungen[[#Headers],[Apr]]),1),INDEX(BüroPlan[],,1),0),MATCH(BüroAbweichungen[[#Headers],[Apr]],BüroPlan[#Headers],0))-INDEX(BüroTatsächlich[],MATCH(INDEX(BüroAbweichungen[],ROW()-ROW(BüroAbweichungen[[#Headers],[Apr]]),1),INDEX(BüroPlan[],,1),0),MATCH(BüroAbweichungen[[#Headers],[Apr]],BüroTatsächlich[#Headers],0))","v":{"v":-130,"d":"-130.00 €"}},{"$f":"INDEX(BüroPlan[],MATCH(INDEX(BüroAbweichungen[],ROW()-ROW(BüroAbweichungen[[#Headers],[Mai]]),1),INDEX(BüroPlan[],,1),0),MATCH(BüroAbweichungen[[#Headers],[Mai]],BüroPlan[#Headers],0))-INDEX(BüroTatsächlich[],MATCH(INDEX(BüroAbweichungen[],ROW()-ROW(BüroAbweichungen[[#Headers],[Mai]]),1),INDEX(BüroPlan[],,1),0),MATCH(BüroAbweichungen[[#Headers],[Mai]],BüroTatsächlich[#Headers],0))","v":{"v":13,"d":"13.00 €"}},{"$f":"INDEX(BüroPlan[],MATCH(INDEX(BüroAbweichungen[],ROW()-ROW(BüroAbweichungen[[#Headers],[Jun]]),1),INDEX(BüroPlan[],,1),0),MATCH(BüroAbweichungen[[#Headers],[Jun]],BüroPlan[#Headers],0))-INDEX(BüroTatsächlich[],MATCH(INDEX(BüroAbweichungen[],ROW()-ROW(BüroAbweichungen[[#Headers],[Jun]]),1),INDEX(BüroPlan[],,1),0),MATCH(BüroAbweichungen[[#Headers],[Jun]],BüroTatsächlich[#Headers],0))","v":{"v":12,"d":"12.00 €"}},{"$f":"INDEX(BüroPlan[],MATCH(INDEX(BüroAbweichungen[],ROW()-ROW(BüroAbweichungen[[#Headers],[Jul]]),1),INDEX(BüroPlan[],,1),0),MATCH(BüroAbweichungen[[#Headers],[Jul]],BüroPlan[#Headers],0))-INDEX(BüroTatsächlich[],MATCH(INDEX(BüroAbweichungen[],ROW()-ROW(BüroAbweichungen[[#Headers],[Jul]]),1),INDEX(BüroPlan[],,1),0),MATCH(BüroAbweichungen[[#Headers],[Jul]],BüroTatsächlich[#Headers],0))","v":{"v":100,"d":"100.00 €"}},{"$f":"INDEX(BüroPlan[],MATCH(INDEX(BüroAbweichungen[],ROW()-ROW(BüroAbweichungen[[#Headers],[Aug]]),1),INDEX(BüroPlan[],,1),0),MATCH(BüroAbweichungen[[#Headers],[Aug]],BüroPlan[#Headers],0))-INDEX(BüroTatsächlich[],MATCH(INDEX(BüroAbweichungen[],ROW()-ROW(BüroAbweichungen[[#Headers],[Aug]]),1),INDEX(BüroPlan[],,1),0),MATCH(BüroAbweichungen[[#Headers],[Aug]],BüroTatsächlich[#Headers],0))","v":{"v":100,"d":"100.00 €"}},{"$f":"INDEX(BüroPlan[],MATCH(INDEX(BüroAbweichungen[],ROW()-ROW(BüroAbweichungen[[#Headers],[Sep]]),1),INDEX(BüroPlan[],,1),0),MATCH(BüroAbweichungen[[#Headers],[Sep]],BüroPlan[#Headers],0))-INDEX(BüroTatsächlich[],MATCH(INDEX(BüroAbweichungen[],ROW()-ROW(BüroAbweichungen[[#Headers],[Sep]]),1),INDEX(BüroPlan[],,1),0),MATCH(BüroAbweichungen[[#Headers],[Sep]],BüroTatsächlich[#Headers],0))","v":{"v":100,"d":"100.00 €"}},{"$f":"INDEX(BüroPlan[],MATCH(INDEX(BüroAbweichungen[],ROW()-ROW(BüroAbweichungen[[#Headers],[Okt]]),1),INDEX(BüroPlan[],,1),0),MATCH(BüroAbweichungen[[#Headers],[Okt]],BüroPlan[#Headers],0))-INDEX(BüroTatsächlich[],MATCH(INDEX(BüroAbweichungen[],ROW()-ROW(BüroAbweichungen[[#Headers],[Okt]]),1),INDEX(BüroPlan[],,1),0),MATCH(BüroAbweichungen[[#Headers],[Okt]],BüroTatsächlich[#Headers],0))","v":{"v":100,"d":"100.00 €"}},{"$f":"INDEX(BüroPlan[],MATCH(INDEX(BüroAbweichungen[],ROW()-ROW(BüroAbweichungen[[#Headers],[Nov]]),1),INDEX(BüroPlan[],,1),0),MATCH(BüroAbweichungen[[#Headers],[Nov]],BüroPlan[#Headers],0))-INDEX(BüroTatsächlich[],MATCH(INDEX(BüroAbweichungen[],ROW()-ROW(BüroAbweichungen[[#Headers],[Nov]]),1),INDEX(BüroPlan[],,1),0),MATCH(BüroAbweichungen[[#Headers],[Nov]],BüroTatsächlich[#Headers],0))","v":{"v":400,"d":"400.00 €"}},{"$f":"INDEX(BüroPlan[],MATCH(INDEX(BüroAbweichungen[],ROW()-ROW(BüroAbweichungen[[#Headers],[Dez]]),1),INDEX(BüroPlan[],,1),0),MATCH(BüroAbweichungen[[#Headers],[Dez]],BüroPlan[#Headers],0))-INDEX(BüroTatsächlich[],MATCH(INDEX(BüroAbweichungen[],ROW()-ROW(BüroAbweichungen[[#Headers],[Dez]]),1),INDEX(BüroPlan[],,1),0),MATCH(BüroAbweichungen[[#Headers],[Dez]],BüroTatsächlich[#Headers],0))","v":{"v":400,"d":"400.00 €"}},{"$f":"SUM(BüroAbweichungen[[#This Row],[Jan]:[Dez]])","v":{"v":1076,"d":"1,076.00 €"}}]
[null,"Strom",{"$f":"INDEX(BüroPlan[],MATCH(INDEX(BüroAbweichungen[],ROW()-ROW(BüroAbweichungen[[#Headers],[Jan]]),1),INDEX(BüroPlan[],,1),0),MATCH(BüroAbweichungen[[#Headers],[Jan]],BüroPlan[#Headers],0))-INDEX(BüroTatsächlich[],MATCH(INDEX(BüroAbweichungen[],ROW()-ROW(BüroAbweichungen[[#Headers],[Jan]]),1),INDEX(BüroPlan[],,1),0),MATCH(BüroAbweichungen[[#Headers],[Jan]],BüroTatsächlich[#Headers],0))","v":{"v":12,"d":"12.00 €"}},{"$f":"INDEX(BüroPlan[],MATCH(INDEX(BüroAbweichungen[],ROW()-ROW(BüroAbweichungen[[#Headers],[Feb]]),1),INDEX(BüroPlan[],,1),0),MATCH(BüroAbweichungen[[#Headers],[Feb]],BüroPlan[#Headers],0))-INDEX(BüroTatsächlich[],MATCH(INDEX(BüroAbweichungen[],ROW()-ROW(BüroAbweichungen[[#Headers],[Feb]]),1),INDEX(BüroPlan[],,1),0),MATCH(BüroAbweichungen[[#Headers],[Feb]],BüroTatsächlich[#Headers],0))","v":{"v":22,"d":"22.00 €"}},{"$f":"INDEX(BüroPlan[],MATCH(INDEX(BüroAbweichungen[],ROW()-ROW(BüroAbweichungen[[#Headers],[Mrz]]),1),INDEX(BüroPlan[],,1),0),MATCH(BüroAbweichungen[[#Headers],[Mrz]],BüroPlan[#Headers],0))-INDEX(BüroTatsächlich[],MATCH(INDEX(BüroAbweichungen[],ROW()-ROW(BüroAbweichungen[[#Headers],[Mrz]]),1),INDEX(BüroPlan[],,1),0),MATCH(BüroAbweichungen[[#Headers],[Mrz]],BüroTatsächlich[#Headers],0))","v":{"v":32,"d":"32.00 €"}},{"$f":"INDEX(BüroPlan[],MATCH(INDEX(BüroAbweichungen[],ROW()-ROW(BüroAbweichungen[[#Headers],[Apr]]),1),INDEX(BüroPlan[],,1),0),MATCH(BüroAbweichungen[[#Headers],[Apr]],BüroPlan[#Headers],0))-INDEX(BüroTatsächlich[],MATCH(INDEX(BüroAbweichungen[],ROW()-ROW(BüroAbweichungen[[#Headers],[Apr]]),1),INDEX(BüroPlan[],,1),0),MATCH(BüroAbweichungen[[#Headers],[Apr]],BüroTatsächlich[#Headers],0))","v":{"v":1,"d":"1.00 €"}},{"$f":"INDEX(BüroPlan[],MATCH(INDEX(BüroAbweichungen[],ROW()-ROW(BüroAbweichungen[[#Headers],[Mai]]),1),INDEX(BüroPlan[],,1),0),MATCH(BüroAbweichungen[[#Headers],[Mai]],BüroPlan[#Headers],0))-INDEX(BüroTatsächlich[],MATCH(INDEX(BüroAbweichungen[],ROW()-ROW(BüroAbweichungen[[#Headers],[Mai]]),1),INDEX(BüroPlan[],,1),0),MATCH(BüroAbweichungen[[#Headers],[Mai]],BüroTatsächlich[#Headers],0))","v":{"v":-6,"d":"-6.00 €"}},{"$f":"INDEX(BüroPlan[],MATCH(INDEX(BüroAbweichungen[],ROW()-ROW(BüroAbweichungen[[#Headers],[Jun]]),1),INDEX(BüroPlan[],,1),0),MATCH(BüroAbweichungen[[#Headers],[Jun]],BüroPlan[#Headers],0))-INDEX(BüroTatsächlich[],MATCH(INDEX(BüroAbweichungen[],ROW()-ROW(BüroAbweichungen[[#Headers],[Jun]]),1),INDEX(BüroPlan[],,1),0),MATCH(BüroAbweichungen[[#Headers],[Jun]],BüroTatsächlich[#Headers],0))","v":{"v":10,"d":"10.00 €"}},{"$f":"INDEX(BüroPlan[],MATCH(INDEX(BüroAbweichungen[],ROW()-ROW(BüroAbweichungen[[#Headers],[Jul]]),1),INDEX(BüroPlan[],,1),0),MATCH(BüroAbweichungen[[#Headers],[Jul]],BüroPlan[#Headers],0))-INDEX(BüroTatsächlich[],MATCH(INDEX(BüroAbweichungen[],ROW()-ROW(BüroAbweichungen[[#Headers],[Jul]]),1),INDEX(BüroPlan[],,1),0),MATCH(BüroAbweichungen[[#Headers],[Jul]],BüroTatsächlich[#Headers],0))","v":{"v":300,"d":"300.00 €"}},{"$f":"INDEX(BüroPlan[],MATCH(INDEX(BüroAbweichungen[],ROW()-ROW(BüroAbweichungen[[#Headers],[Aug]]),1),INDEX(BüroPlan[],,1),0),MATCH(BüroAbweichungen[[#Headers],[Aug]],BüroPlan[#Headers],0))-INDEX(BüroTatsächlich[],MATCH(INDEX(BüroAbweichungen[],ROW()-ROW(BüroAbweichungen[[#Headers],[Aug]]),1),INDEX(BüroPlan[],,1),0),MATCH(BüroAbweichungen[[#Headers],[Aug]],BüroTatsächlich[#Headers],0))","v":{"v":300,"d":"300.00 €"}},{"$f":"INDEX(BüroPlan[],MATCH(INDEX(BüroAbweichungen[],ROW()-ROW(BüroAbweichungen[[#Headers],[Sep]]),1),INDEX(BüroPlan[],,1),0),MATCH(BüroAbweichungen[[#Headers],[Sep]],BüroPlan[#Headers],0))-INDEX(BüroTatsächlich[],MATCH(INDEX(BüroAbweichungen[],ROW()-ROW(BüroAbweichungen[[#Headers],[Sep]]),1),INDEX(BüroPlan[],,1),0),MATCH(BüroAbweichungen[[#Headers],[Sep]],BüroTatsächlich[#Headers],0))","v":{"v":300,"d":"300.00 €"}},{"$f":"INDEX(BüroPlan[],MATCH(INDEX(BüroAbweichungen[],ROW()-ROW(BüroAbweichungen[[#Headers],[Okt]]),1),INDEX(BüroPlan[],,1),0),MATCH(BüroAbweichungen[[#Headers],[Okt]],BüroPlan[#Headers],0))-INDEX(BüroTatsächlich[],MATCH(INDEX(BüroAbweichungen[],ROW()-ROW(BüroAbweichungen[[#Headers],[Okt]]),1),INDEX(BüroPlan[],,1),0),MATCH(BüroAbweichungen[[#Headers],[Okt]],BüroTatsächlich[#Headers],0))","v":{"v":300,"d":"300.00 €"}},{"$f":"INDEX(BüroPlan[],MATCH(INDEX(BüroAbweichungen[],ROW()-ROW(BüroAbweichungen[[#Headers],[Nov]]),1),INDEX(BüroPlan[],,1),0),MATCH(BüroAbweichungen[[#Headers],[Nov]],BüroPlan[#Headers],0))-INDEX(BüroTatsächlich[],MATCH(INDEX(BüroAbweichungen[],ROW()-ROW(BüroAbweichungen[[#Headers],[Nov]]),1),INDEX(BüroPlan[],,1),0),MATCH(BüroAbweichungen[[#Headers],[Nov]],BüroTatsächlich[#Headers],0))","v":{"v":300,"d":"300.00 €"}},{"$f":"INDEX(BüroPlan[],MATCH(INDEX(BüroAbweichungen[],ROW()-ROW(BüroAbweichungen[[#Headers],[Dez]]),1),INDEX(BüroPlan[],,1),0),MATCH(BüroAbweichungen[[#Headers],[Dez]],BüroPlan[#Headers],0))-INDEX(BüroTatsächlich[],MATCH(INDEX(BüroAbweichungen[],ROW()-ROW(BüroAbweichungen[[#Headers],[Dez]]),1),INDEX(BüroPlan[],,1),0),MATCH(BüroAbweichungen[[#Headers],[Dez]],BüroTatsächlich[#Headers],0))","v":{"v":300,"d":"300.00 €"}},{"$f":"SUM(BüroAbweichungen[[#This Row],[Jan]:[Dez]])","v":{"v":1871,"d":"1,871.00 €"}}]
[null,"Wasser",{"$f":"INDEX(BüroPlan[],MATCH(INDEX(BüroAbweichungen[],ROW()-ROW(BüroAbweichungen[[#Headers],[Jan]]),1),INDEX(BüroPlan[],,1),0),MATCH(BüroAbweichungen[[#Headers],[Jan]],BüroPlan[#Headers],0))-INDEX(BüroTatsächlich[],MATCH(INDEX(BüroAbweichungen[],ROW()-ROW(BüroAbweichungen[[#Headers],[Jan]]),1),INDEX(BüroPlan[],,1),0),MATCH(BüroAbweichungen[[#Headers],[Jan]],BüroTatsächlich[#Headers],0))","v":{"v":5,"d":"5.00 €"}},{"$f":"INDEX(BüroPlan[],MATCH(INDEX(BüroAbweichungen[],ROW()-ROW(BüroAbweichungen[[#Headers],[Feb]]),1),INDEX(BüroPlan[],,1),0),MATCH(BüroAbweichungen[[#Headers],[Feb]],BüroPlan[#Headers],0))-INDEX(BüroTatsächlich[],MATCH(INDEX(BüroAbweichungen[],ROW()-ROW(BüroAbweichungen[[#Headers],[Feb]]),1),INDEX(BüroPlan[],,1),0),MATCH(BüroAbweichungen[[#Headers],[Feb]],BüroTatsächlich[#Headers],0))","v":{"v":7,"d":"7.00 €"}},{"$f":"INDEX(BüroPlan[],MATCH(INDEX(BüroAbweichungen[],ROW()-ROW(BüroAbweichungen[[#Headers],[Mrz]]),1),INDEX(BüroPlan[],,1),0),MATCH(BüroAbweichungen[[#Headers],[Mrz]],BüroPlan[#Headers],0))-INDEX(BüroTatsächlich[],MATCH(INDEX(BüroAbweichungen[],ROW()-ROW(BüroAbweichungen[[#Headers],[Mrz]]),1),INDEX(BüroPlan[],,1),0),MATCH(BüroAbweichungen[[#Headers],[Mrz]],BüroTatsächlich[#Headers],0))","v":{"v":6,"d":"6.00 €"}},{"$f":"INDEX(BüroPlan[],MATCH(INDEX(BüroAbweichungen[],ROW()-ROW(BüroAbweichungen[[#Headers],[Apr]]),1),INDEX(BüroPlan[],,1),0),MATCH(BüroAbweichungen[[#Headers],[Apr]],BüroPlan[#Headers],0))-INDEX(BüroTatsächlich[],MATCH(INDEX(BüroAbweichungen[],ROW()-ROW(BüroAbweichungen[[#Headers],[Apr]]),1),INDEX(BüroPlan[],,1),0),MATCH(BüroAbweichungen[[#Headers],[Apr]],BüroTatsächlich[#Headers],0))","v":{"v":4,"d":"4.00 €"}},{"$f":"INDEX(BüroPlan[],MATCH(INDEX(BüroAbweichungen[],ROW()-ROW(BüroAbweichungen[[#Headers],[Mai]]),1),INDEX(BüroPlan[],,1),0),MATCH(BüroAbweichungen[[#Headers],[Mai]],BüroPlan[#Headers],0))-INDEX(BüroTatsächlich[],MATCH(INDEX(BüroAbweichungen[],ROW()-ROW(BüroAbweichungen[[#Headers],[Mai]]),1),INDEX(BüroPlan[],,1),0),MATCH(BüroAbweichungen[[#Headers],[Mai]],BüroTatsächlich[#Headers],0))","v":{"v":6,"d":"6.00 €"}},{"$f":"INDEX(BüroPlan[],MATCH(INDEX(BüroAbweichungen[],ROW()-ROW(BüroAbweichungen[[#Headers],[Jun]]),1),INDEX(BüroPlan[],,1),0),MATCH(BüroAbweichungen[[#Headers],[Jun]],BüroPlan[#Headers],0))-INDEX(BüroTatsächlich[],MATCH(INDEX(BüroAbweichungen[],ROW()-ROW(BüroAbweichungen[[#Headers],[Jun]]),1),INDEX(BüroPlan[],,1),0),MATCH(BüroAbweichungen[[#Headers],[Jun]],BüroTatsächlich[#Headers],0))","v":{"v":4,"d":"4.00 €"}},{"$f":"INDEX(BüroPlan[],MATCH(INDEX(BüroAbweichungen[],ROW()-ROW(BüroAbweichungen[[#Headers],[Jul]]),1),INDEX(BüroPlan[],,1),0),MATCH(BüroAbweichungen[[#Headers],[Jul]],BüroPlan[#Headers],0))-INDEX(BüroTatsächlich[],MATCH(INDEX(BüroAbweichungen[],ROW()-ROW(BüroAbweichungen[[#Headers],[Jul]]),1),INDEX(BüroPlan[],,1),0),MATCH(BüroAbweichungen[[#Headers],[Jul]],BüroTatsächlich[#Headers],0))","v":{"v":40,"d":"40.00 €"}},{"$f":"INDEX(BüroPlan[],MATCH(INDEX(BüroAbweichungen[],ROW()-ROW(BüroAbweichungen[[#Headers],[Aug]]),1),INDEX(BüroPlan[],,1),0),MATCH(BüroAbweichungen[[#Headers],[Aug]],BüroPlan[#Headers],0))-INDEX(BüroTatsächlich[],MATCH(INDEX(BüroAbweichungen[],ROW()-ROW(BüroAbweichungen[[#Headers],[Aug]]),1),INDEX(BüroPlan[],,1),0),MATCH(BüroAbweichungen[[#Headers],[Aug]],BüroTatsächlich[#Headers],0))","v":{"v":40,"d":"40.00 €"}},{"$f":"INDEX(BüroPlan[],MATCH(INDEX(BüroAbweichungen[],ROW()-ROW(BüroAbweichungen[[#Headers],[Sep]]),1),INDEX(BüroPlan[],,1),0),MATCH(BüroAbweichungen[[#Headers],[Sep]],BüroPlan[#Headers],0))-INDEX(BüroTatsächlich[],MATCH(INDEX(BüroAbweichungen[],ROW()-ROW(BüroAbweichungen[[#Headers],[Sep]]),1),INDEX(BüroPlan[],,1),0),MATCH(BüroAbweichungen[[#Headers],[Sep]],BüroTatsächlich[#Headers],0))","v":{"v":40,"d":"40.00 €"}},{"$f":"INDEX(BüroPlan[],MATCH(INDEX(BüroAbweichungen[],ROW()-ROW(BüroAbweichungen[[#Headers],[Okt]]),1),INDEX(BüroPlan[],,1),0),MATCH(BüroAbweichungen[[#Headers],[Okt]],BüroPlan[#Headers],0))-INDEX(BüroTatsächlich[],MATCH(INDEX(BüroAbweichungen[],ROW()-ROW(BüroAbweichungen[[#Headers],[Okt]]),1),INDEX(BüroPlan[],,1),0),MATCH(BüroAbweichungen[[#Headers],[Okt]],BüroTatsächlich[#Headers],0))","v":{"v":40,"d":"40.00 €"}},{"$f":"INDEX(BüroPlan[],MATCH(INDEX(BüroAbweichungen[],ROW()-ROW(BüroAbweichungen[[#Headers],[Nov]]),1),INDEX(BüroPlan[],,1),0),MATCH(BüroAbweichungen[[#Headers],[Nov]],BüroPlan[#Headers],0))-INDEX(BüroTatsächlich[],MATCH(INDEX(BüroAbweichungen[],ROW()-ROW(BüroAbweichungen[[#Headers],[Nov]]),1),INDEX(BüroPlan[],,1),0),MATCH(BüroAbweichungen[[#Headers],[Nov]],BüroTatsächlich[#Headers],0))","v":{"v":40,"d":"40.00 €"}},{"$f":"INDEX(BüroPlan[],MATCH(INDEX(BüroAbweichungen[],ROW()-ROW(BüroAbweichungen[[#Headers],[Dez]]),1),INDEX(BüroPlan[],,1),0),MATCH(BüroAbweichungen[[#Headers],[Dez]],BüroPlan[#Headers],0))-INDEX(BüroTatsächlich[],MATCH(INDEX(BüroAbweichungen[],ROW()-ROW(BüroAbweichungen[[#Headers],[Dez]]),1),INDEX(BüroPlan[],,1),0),MATCH(BüroAbweichungen[[#Headers],[Dez]],BüroTatsächlich[#Headers],0))","v":{"v":40,"d":"40.00 €"}},{"$f":"SUM(BüroAbweichungen[[#This Row],[Jan]:[Dez]])","v":{"v":272,"d":"272.00 €"}}]
[null,"Telefon",{"$f":"INDEX(BüroPlan[],MATCH(INDEX(BüroAbweichungen[],ROW()-ROW(BüroAbweichungen[[#Headers],[Jan]]),1),INDEX(BüroPlan[],,1),0),MATCH(BüroAbweichungen[[#Headers],[Jan]],BüroPlan[#Headers],0))-INDEX(BüroTatsächlich[],MATCH(INDEX(BüroAbweichungen[],ROW()-ROW(BüroAbweichungen[[#Headers],[Jan]]),1),INDEX(BüroPlan[],,1),0),MATCH(BüroAbweichungen[[#Headers],[Jan]],BüroTatsächlich[#Headers],0))","v":{"v":26,"d":"26.00 €"}},{"$f":"INDEX(BüroPlan[],MATCH(INDEX(BüroAbweichungen[],ROW()-ROW(BüroAbweichungen[[#Headers],[Feb]]),1),INDEX(BüroPlan[],,1),0),MATCH(BüroAbweichungen[[#Headers],[Feb]],BüroPlan[#Headers],0))-INDEX(BüroTatsächlich[],MATCH(INDEX(BüroAbweichungen[],ROW()-ROW(BüroAbweichungen[[#Headers],[Feb]]),1),INDEX(BüroPlan[],,1),0),MATCH(BüroAbweichungen[[#Headers],[Feb]],BüroTatsächlich[#Headers],0))","v":{"v":15,"d":"15.00 €"}},{"$f":"INDEX(BüroPlan[],MATCH(INDEX(BüroAbweichungen[],ROW()-ROW(BüroAbweichungen[[#Headers],[Mrz]]),1),INDEX(BüroPlan[],,1),0),MATCH(BüroAbweichungen[[#Headers],[Mrz]],BüroPlan[#Headers],0))-INDEX(BüroTatsächlich[],MATCH(INDEX(BüroAbweichungen[],ROW()-ROW(BüroAbweichungen[[#Headers],[Mrz]]),1),INDEX(BüroPlan[],,1),0),MATCH(BüroAbweichungen[[#Headers],[Mrz]],BüroTatsächlich[#Headers],0))","v":{"v":-15,"d":"-15.00 €"}},{"$f":"INDEX(BüroPlan[],MATCH(INDEX(BüroAbweichungen[],ROW()-ROW(BüroAbweichungen[[#Headers],[Apr]]),1),INDEX(BüroPlan[],,1),0),MATCH(BüroAbweichungen[[#Headers],[Apr]],BüroPlan[#Headers],0))-INDEX(BüroTatsächlich[],MATCH(INDEX(BüroAbweichungen[],ROW()-ROW(BüroAbweichungen[[#Headers],[Apr]]),1),INDEX(BüroPlan[],,1),0),MATCH(BüroAbweichungen[[#Headers],[Apr]],BüroTatsächlich[#Headers],0))","v":{"v":5,"d":"5.00 €"}},{"$f":"INDEX(BüroPlan[],MATCH(INDEX(BüroAbweichungen[],ROW()-ROW(BüroAbweichungen[[#Headers],[Mai]]),1),INDEX(BüroPlan[],,1),0),MATCH(BüroAbweichungen[[#Headers],[Mai]],BüroPlan[#Headers],0))-INDEX(BüroTatsächlich[],MATCH(INDEX(BüroAbweichungen[],ROW()-ROW(BüroAbweichungen[[#Headers],[Mai]]),1),INDEX(BüroPlan[],,1),0),MATCH(BüroAbweichungen[[#Headers],[Mai]],BüroTatsächlich[#Headers],0))","v":{"v":5,"d":"5.00 €"}},{"$f":"INDEX(BüroPlan[],MATCH(INDEX(BüroAbweichungen[],ROW()-ROW(BüroAbweichungen[[#Headers],[Jun]]),1),INDEX(BüroPlan[],,1),0),MATCH(BüroAbweichungen[[#Headers],[Jun]],BüroPlan[#Headers],0))-INDEX(BüroTatsächlich[],MATCH(INDEX(BüroAbweichungen[],ROW()-ROW(BüroAbweichungen[[#Headers],[Jun]]),1),INDEX(BüroPlan[],,1),0),MATCH(BüroAbweichungen[[#Headers],[Jun]],BüroTatsächlich[#Headers],0))","v":{"v":30,"d":"30.00 €"}},{"$f":"INDEX(BüroPlan[],MATCH(INDEX(BüroAbweichungen[],ROW()-ROW(BüroAbweichungen[[#Headers],[Jul]]),1),INDEX(BüroPlan[],,1),0),MATCH(BüroAbweichungen[[#Headers],[Jul]],BüroPlan[#Headers],0))-INDEX(BüroTatsächlich[],MATCH(INDEX(BüroAbweichungen[],ROW()-ROW(BüroAbweichungen[[#Headers],[Jul]]),1),INDEX(BüroPlan[],,1),0),MATCH(BüroAbweichungen[[#Headers],[Jul]],BüroTatsächlich[#Headers],0))","v":{"v":250,"d":"250.00 €"}},{"$f":"INDEX(BüroPlan[],MATCH(INDEX(BüroAbweichungen[],ROW()-ROW(BüroAbweichungen[[#Headers],[Aug]]),1),INDEX(BüroPlan[],,1),0),MATCH(BüroAbweichungen[[#Headers],[Aug]],BüroPlan[#Headers],0))-INDEX(BüroTatsächlich[],MATCH(INDEX(BüroAbweichungen[],ROW()-ROW(BüroAbweichungen[[#Headers],[Aug]]),1),INDEX(BüroPlan[],,1),0),MATCH(BüroAbweichungen[[#Headers],[Aug]],BüroTatsächlich[#Headers],0))","v":{"v":250,"d":"250.00 €"}},{"$f":"INDEX(BüroPlan[],MATCH(INDEX(BüroAbweichungen[],ROW()-ROW(BüroAbweichungen[[#Headers],[Sep]]),1),INDEX(BüroPlan[],,1),0),MATCH(BüroAbweichungen[[#Headers],[Sep]],BüroPlan[#Headers],0))-INDEX(BüroTatsächlich[],MATCH(INDEX(BüroAbweichungen[],ROW()-ROW(BüroAbweichungen[[#Headers],[Sep]]),1),INDEX(BüroPlan[],,1),0),MATCH(BüroAbweichungen[[#Headers],[Sep]],BüroTatsächlich[#Headers],0))","v":{"v":250,"d":"250.00 €"}},{"$f":"INDEX(BüroPlan[],MATCH(INDEX(BüroAbweichungen[],ROW()-ROW(BüroAbweichungen[[#Headers],[Okt]]),1),INDEX(BüroPlan[],,1),0),MATCH(BüroAbweichungen[[#Headers],[Okt]],BüroPlan[#Headers],0))-INDEX(BüroTatsächlich[],MATCH(INDEX(BüroAbweichungen[],ROW()-ROW(BüroAbweichungen[[#Headers],[Okt]]),1),INDEX(BüroPlan[],,1),0),MATCH(BüroAbweichungen[[#Headers],[Okt]],BüroTatsächlich[#Headers],0))","v":{"v":250,"d":"250.00 €"}},{"$f":"INDEX(BüroPlan[],MATCH(INDEX(BüroAbweichungen[],ROW()-ROW(BüroAbweichungen[[#Headers],[Nov]]),1),INDEX(BüroPlan[],,1),0),MATCH(BüroAbweichungen[[#Headers],[Nov]],BüroPlan[#Headers],0))-INDEX(BüroTatsächlich[],MATCH(INDEX(BüroAbweichungen[],ROW()-ROW(BüroAbweichungen[[#Headers],[Nov]]),1),INDEX(BüroPlan[],,1),0),MATCH(BüroAbweichungen[[#Headers],[Nov]],BüroTatsächlich[#Headers],0))","v":{"v":250,"d":"250.00 €"}},{"$f":"INDEX(BüroPlan[],MATCH(INDEX(BüroAbweichungen[],ROW()-ROW(BüroAbweichungen[[#Headers],[Dez]]),1),INDEX(BüroPlan[],,1),0),MATCH(BüroAbweichungen[[#Headers],[Dez]],BüroPlan[#Headers],0))-INDEX(BüroTatsächlich[],MATCH(INDEX(BüroAbweichungen[],ROW()-ROW(BüroAbweichungen[[#Headers],[Dez]]),1),INDEX(BüroPlan[],,1),0),MATCH(BüroAbweichungen[[#Headers],[Dez]],BüroTatsächlich[#Headers],0))","v":{"v":250,"d":"250.00 €"}},{"$f":"SUM(BüroAbweichungen[[#This Row],[Jan]:[Dez]])","v":{"v":1566,"d":"1,566.00 €"}}]
[null,"Internetzugang",{"$f":"INDEX(BüroPlan[],MATCH(INDEX(BüroAbweichungen[],ROW()-ROW(BüroAbweichungen[[#Headers],[Jan]]),1),INDEX(BüroPlan[],,1),0),MATCH(BüroAbweichungen[[#Headers],[Jan]],BüroPlan[#Headers],0))-INDEX(BüroTatsächlich[],MATCH(INDEX(BüroAbweichungen[],ROW()-ROW(BüroAbweichungen[[#Headers],[Jan]]),1),INDEX(BüroPlan[],,1),0),MATCH(BüroAbweichungen[[#Headers],[Jan]],BüroTatsächlich[#Headers],0))","v":{"v":0,"d":"0.00 €"}},{"$f":"INDEX(BüroPlan[],MATCH(INDEX(BüroAbweichungen[],ROW()-ROW(BüroAbweichungen[[#Headers],[Feb]]),1),INDEX(BüroPlan[],,1),0),MATCH(BüroAbweichungen[[#Headers],[Feb]],BüroPlan[#Headers],0))-INDEX(BüroTatsächlich[],MATCH(INDEX(BüroAbweichungen[],ROW()-ROW(BüroAbweichungen[[#Headers],[Feb]]),1),INDEX(BüroPlan[],,1),0),MATCH(BüroAbweichungen[[#Headers],[Feb]],BüroTatsächlich[#Headers],0))","v":{"v":0,"d":"0.00 €"}},{"$f":"INDEX(BüroPlan[],MATCH(INDEX(BüroAbweichungen[],ROW()-ROW(BüroAbweichungen[[#Headers],[Mrz]]),1),INDEX(BüroPlan[],,1),0),MATCH(BüroAbweichungen[[#Headers],[Mrz]],BüroPlan[#Headers],0))-INDEX(BüroTatsächlich[],MATCH(INDEX(BüroAbweichungen[],ROW()-ROW(BüroAbweichungen[[#Headers],[Mrz]]),1),INDEX(BüroPlan[],,1),0),MATCH(BüroAbweichungen[[#Headers],[Mrz]],BüroTatsächlich[#Headers],0))","v":{"v":0,"d":"0.00 €"}},{"$f":"INDEX(BüroPlan[],MATCH(INDEX(BüroAbweichungen[],ROW()-ROW(BüroAbweichungen[[#Headers],[Apr]]),1),INDEX(BüroPlan[],,1),0),MATCH(BüroAbweichungen[[#Headers],[Apr]],BüroPlan[#Headers],0))-INDEX(BüroTatsächlich[],MATCH(INDEX(BüroAbweichungen[],ROW()-ROW(BüroAbweichungen[[#Headers],[Apr]]),1),INDEX(BüroPlan[],,1),0),MATCH(BüroAbweichungen[[#Headers],[Apr]],BüroTatsächlich[#Headers],0))","v":{"v":0,"d":"0.00 €"}},{"$f":"INDEX(BüroPlan[],MATCH(INDEX(BüroAbweichungen[],ROW()-ROW(BüroAbweichungen[[#Headers],[Mai]]),1),INDEX(BüroPlan[],,1),0),MATCH(BüroAbweichungen[[#Headers],[Mai]],BüroPlan[#Headers],0))-INDEX(BüroTatsächlich[],MATCH(INDEX(BüroAbweichungen[],ROW()-ROW(BüroAbweichungen[[#Headers],[Mai]]),1),INDEX(BüroPlan[],,1),0),MATCH(BüroAbweichungen[[#Headers],[Mai]],BüroTatsächlich[#Headers],0))","v":{"v":0,"d":"0.00 €"}},{"$f":"INDEX(BüroPlan[],MATCH(INDEX(BüroAbweichungen[],ROW()-ROW(BüroAbweichungen[[#Headers],[Jun]]),1),INDEX(BüroPlan[],,1),0),MATCH(BüroAbweichungen[[#Headers],[Jun]],BüroPlan[#Headers],0))-INDEX(BüroTatsächlich[],MATCH(INDEX(BüroAbweichungen[],ROW()-ROW(BüroAbweichungen[[#Headers],[Jun]]),1),INDEX(BüroPlan[],,1),0),MATCH(BüroAbweichungen[[#Headers],[Jun]],BüroTatsächlich[#Headers],0))","v":{"v":0,"d":"0.00 €"}},{"$f":"INDEX(BüroPlan[],MATCH(INDEX(BüroAbweichungen[],ROW()-ROW(BüroAbweichungen[[#Headers],[Jul]]),1),INDEX(BüroPlan[],,1),0),MATCH(BüroAbweichungen[[#Headers],[Jul]],BüroPlan[#Headers],0))-INDEX(BüroTatsächlich[],MATCH(INDEX(BüroAbweichungen[],ROW()-ROW(BüroAbweichungen[[#Headers],[Jul]]),1),INDEX(BüroPlan[],,1),0),MATCH(BüroAbweichungen[[#Headers],[Jul]],BüroTatsächlich[#Headers],0))","v":{"v":180,"d":"180.00 €"}},{"$f":"INDEX(BüroPlan[],MATCH(INDEX(BüroAbweichungen[],ROW()-ROW(BüroAbweichungen[[#Headers],[Aug]]),1),INDEX(BüroPlan[],,1),0),MATCH(BüroAbweichungen[[#Headers],[Aug]],BüroPlan[#Headers],0))-INDEX(BüroTatsächlich[],MATCH(INDEX(BüroAbweichungen[],ROW()-ROW(BüroAbweichungen[[#Headers],[Aug]]),1),INDEX(BüroPlan[],,1),0),MATCH(BüroAbweichungen[[#Headers],[Aug]],BüroTatsächlich[#Headers],0))","v":{"v":180,"d":"180.00 €"}},{"$f":"INDEX(BüroPlan[],MATCH(INDEX(BüroAbweichungen[],ROW()-ROW(BüroAbweichungen[[#Headers],[Sep]]),1),INDEX(BüroPlan[],,1),0),MATCH(BüroAbweichungen[[#Headers],[Sep]],BüroPlan[#Headers],0))-INDEX(BüroTatsächlich[],MATCH(INDEX(BüroAbweichungen[],ROW()-ROW(BüroAbweichungen[[#Headers],[Sep]]),1),INDEX(BüroPlan[],,1),0),MATCH(BüroAbweichungen[[#Headers],[Sep]],BüroTatsächlich[#Headers],0))","v":{"v":180,"d":"180.00 €"}},{"$f":"INDEX(BüroPlan[],MATCH(INDEX(BüroAbweichungen[],ROW()-ROW(BüroAbweichungen[[#Headers],[Okt]]),1),INDEX(BüroPlan[],,1),0),MATCH(BüroAbweichungen[[#Headers],[Okt]],BüroPlan[#Headers],0))-INDEX(BüroTatsächlich[],MATCH(INDEX(BüroAbweichungen[],ROW()-ROW(BüroAbweichungen[[#Headers],[Okt]]),1),INDEX(BüroPlan[],,1),0),MATCH(BüroAbweichungen[[#Headers],[Okt]],BüroTatsächlich[#Headers],0))","v":{"v":180,"d":"180.00 €"}},{"$f":"INDEX(BüroPlan[],MATCH(INDEX(BüroAbweichungen[],ROW()-ROW(BüroAbweichungen[[#Headers],[Nov]]),1),INDEX(BüroPlan[],,1),0),MATCH(BüroAbweichungen[[#Headers],[Nov]],BüroPlan[#Headers],0))-INDEX(BüroTatsächlich[],MATCH(INDEX(BüroAbweichungen[],ROW()-ROW(BüroAbweichungen[[#Headers],[Nov]]),1),INDEX(BüroPlan[],,1),0),MATCH(BüroAbweichungen[[#Headers],[Nov]],BüroTatsächlich[#Headers],0))","v":{"v":180,"d":"180.00 €"}},{"$f":"INDEX(BüroPlan[],MATCH(INDEX(BüroAbweichungen[],ROW()-ROW(BüroAbweichungen[[#Headers],[Dez]]),1),INDEX(BüroPlan[],,1),0),MATCH(BüroAbweichungen[[#Headers],[Dez]],BüroPlan[#Headers],0))-INDEX(BüroTatsächlich[],MATCH(INDEX(BüroAbweichungen[],ROW()-ROW(BüroAbweichungen[[#Headers],[Dez]]),1),INDEX(BüroPlan[],,1),0),MATCH(BüroAbweichungen[[#Headers],[Dez]],BüroTatsächlich[#Headers],0))","v":{"v":180,"d":"180.00 €"}},{"$f":"SUM(BüroAbweichungen[[#This Row],[Jan]:[Dez]])","v":{"v":1080,"d":"1,080.00 €"}}]
[null,"Büromaterial",{"$f":"INDEX(BüroPlan[],MATCH(INDEX(BüroAbweichungen[],ROW()-ROW(BüroAbweichungen[[#Headers],[Jan]]),1),INDEX(BüroPlan[],,1),0),MATCH(BüroAbweichungen[[#Headers],[Jan]],BüroPlan[#Headers],0))-INDEX(BüroTatsächlich[],MATCH(INDEX(BüroAbweichungen[],ROW()-ROW(BüroAbweichungen[[#Headers],[Jan]]),1),INDEX(BüroPlan[],,1),0),MATCH(BüroAbweichungen[[#Headers],[Jan]],BüroTatsächlich[#Headers],0))","v":{"v":-56,"d":"-56.00 €"}},{"$f":"INDEX(BüroPlan[],MATCH(INDEX(BüroAbweichungen[],ROW()-ROW(BüroAbweichungen[[#Headers],[Feb]]),1),INDEX(BüroPlan[],,1),0),MATCH(BüroAbweichungen[[#Headers],[Feb]],BüroPlan[#Headers],0))-INDEX(BüroTatsächlich[],MATCH(INDEX(BüroAbweichungen[],ROW()-ROW(BüroAbweichungen[[#Headers],[Feb]]),1),INDEX(BüroPlan[],,1),0),MATCH(BüroAbweichungen[[#Headers],[Feb]],BüroTatsächlich[#Headers],0))","v":{"v":58,"d":"58.00 €"}},{"$f":"INDEX(BüroPlan[],MATCH(INDEX(BüroAbweichungen[],ROW()-ROW(BüroAbweichungen[[#Headers],[Mrz]]),1),INDEX(BüroPlan[],,1),0),MATCH(BüroAbweichungen[[#Headers],[Mrz]],BüroPlan[#Headers],0))-INDEX(BüroTatsächlich[],MATCH(INDEX(BüroAbweichungen[],ROW()-ROW(BüroAbweichungen[[#Headers],[Mrz]]),1),INDEX(BüroPlan[],,1),0),MATCH(BüroAbweichungen[[#Headers],[Mrz]],BüroTatsächlich[#Headers],0))","v":{"v":40,"d":"40.00 €"}},{"$f":"INDEX(BüroPlan[],MATCH(INDEX(BüroAbweichungen[],ROW()-ROW(BüroAbweichungen[[#Headers],[Apr]]),1),INDEX(BüroPlan[],,1),0),MATCH(BüroAbweichungen[[#Headers],[Apr]],BüroPlan[#Headers],0))-INDEX(BüroTatsächlich[],MATCH(INDEX(BüroAbweichungen[],ROW()-ROW(BüroAbweichungen[[#Headers],[Apr]]),1),INDEX(BüroPlan[],,1),0),MATCH(BüroAbweichungen[[#Headers],[Apr]],BüroTatsächlich[#Headers],0))","v":{"v":-21,"d":"-21.00 €"}},{"$f":"INDEX(BüroPlan[],MATCH(INDEX(BüroAbweichungen[],ROW()-ROW(BüroAbweichungen[[#Headers],[Mai]]),1),INDEX(BüroPlan[],,1),0),MATCH(BüroAbweichungen[[#Headers],[Mai]],BüroPlan[#Headers],0))-INDEX(BüroTatsächlich[],MATCH(INDEX(BüroAbweichungen[],ROW()-ROW(BüroAbweichungen[[#Headers],[Mai]]),1),INDEX(BüroPlan[],,1),0),MATCH(BüroAbweichungen[[#Headers],[Mai]],BüroTatsächlich[#Headers],0))","v":{"v":-56,"d":"-56.00 €"}},{"$f":"INDEX(BüroPlan[],MATCH(INDEX(BüroAbweichungen[],ROW()-ROW(BüroAbweichungen[[#Headers],[Jun]]),1),INDEX(BüroPlan[],,1),0),MATCH(BüroAbweichungen[[#Headers],[Jun]],BüroPlan[#Headers],0))-INDEX(BüroTatsächlich[],MATCH(INDEX(BüroAbweichungen[],ROW()-ROW(BüroAbweichungen[[#Headers],[Jun]]),1),INDEX(BüroPlan[],,1),0),MATCH(BüroAbweichungen[[#Headers],[Jun]],BüroTatsächlich[#Headers],0))","v":{"v":-40,"d":"-40.00 €"}},{"$f":"INDEX(BüroPlan[],MATCH(INDEX(BüroAbweichungen[],ROW()-ROW(BüroAbweichungen[[#Headers],[Jul]]),1),INDEX(BüroPlan[],,1),0),MATCH(BüroAbweichungen[[#Headers],[Jul]],BüroPlan[#Headers],0))-INDEX(BüroTatsächlich[],MATCH(INDEX(BüroAbweichungen[],ROW()-ROW(BüroAbweichungen[[#Headers],[Jul]]),1),INDEX(BüroPlan[],,1),0),MATCH(BüroAbweichungen[[#Headers],[Jul]],BüroTatsächlich[#Headers],0))","v":{"v":200,"d":"200.00 €"}},{"$f":"INDEX(BüroPlan[],MATCH(INDEX(BüroAbweichungen[],ROW()-ROW(BüroAbweichungen[[#Headers],[Aug]]),1),INDEX(BüroPlan[],,1),0),MATCH(BüroAbweichungen[[#Headers],[Aug]],BüroPlan[#Headers],0))-INDEX(BüroTatsächlich[],MATCH(INDEX(BüroAbweichungen[],ROW()-ROW(BüroAbweichungen[[#Headers],[Aug]]),1),INDEX(BüroPlan[],,1),0),MATCH(BüroAbweichungen[[#Headers],[Aug]],BüroTatsächlich[#Headers],0))","v":{"v":200,"d":"200.00 €"}},{"$f":"INDEX(BüroPlan[],MATCH(INDEX(BüroAbweichungen[],ROW()-ROW(BüroAbweichungen[[#Headers],[Sep]]),1),INDEX(BüroPlan[],,1),0),MATCH(BüroAbweichungen[[#Headers],[Sep]],BüroPlan[#Headers],0))-INDEX(BüroTatsächlich[],MATCH(INDEX(BüroAbweichungen[],ROW()-ROW(BüroAbweichungen[[#Headers],[Sep]]),1),INDEX(BüroPlan[],,1),0),MATCH(BüroAbweichungen[[#Headers],[Sep]],BüroTatsächlich[#Headers],0))","v":{"v":200,"d":"200.00 €"}},{"$f":"INDEX(BüroPlan[],MATCH(INDEX(BüroAbweichungen[],ROW()-ROW(BüroAbweichungen[[#Headers],[Okt]]),1),INDEX(BüroPlan[],,1),0),MATCH(BüroAbweichungen[[#Headers],[Okt]],BüroPlan[#Headers],0))-INDEX(BüroTatsächlich[],MATCH(INDEX(BüroAbweichungen[],ROW()-ROW(BüroAbweichungen[[#Headers],[Okt]]),1),INDEX(BüroPlan[],,1),0),MATCH(BüroAbweichungen[[#Headers],[Okt]],BüroTatsächlich[#Headers],0))","v":{"v":200,"d":"200.00 €"}},{"$f":"INDEX(BüroPlan[],MATCH(INDEX(BüroAbweichungen[],ROW()-ROW(BüroAbweichungen[[#Headers],[Nov]]),1),INDEX(BüroPlan[],,1),0),MATCH(BüroAbweichungen[[#Headers],[Nov]],BüroPlan[#Headers],0))-INDEX(BüroTatsächlich[],MATCH(INDEX(BüroAbweichungen[],ROW()-ROW(BüroAbweichungen[[#Headers],[Nov]]),1),INDEX(BüroPlan[],,1),0),MATCH(BüroAbweichungen[[#Headers],[Nov]],BüroTatsächlich[#Headers],0))","v":{"v":200,"d":"200.00 €"}},{"$f":"INDEX(BüroPlan[],MATCH(INDEX(BüroAbweichungen[],ROW()-ROW(BüroAbweichungen[[#Headers],[Dez]]),1),INDEX(BüroPlan[],,1),0),MATCH(BüroAbweichungen[[#Headers],[Dez]],BüroPlan[#Headers],0))-INDEX(BüroTatsächlich[],MATCH(INDEX(BüroAbweichungen[],ROW()-ROW(BüroAbweichungen[[#Headers],[Dez]]),1),INDEX(BüroPlan[],,1),0),MATCH(BüroAbweichungen[[#Headers],[Dez]],BüroTatsächlich[#Headers],0))","v":{"v":200,"d":"200.00 €"}},{"$f":"SUM(BüroAbweichungen[[#This Row],[Jan]:[Dez]])","v":{"v":1125,"d":"1,125.00 €"}}]
[null,"Sicherheit",{"$f":"INDEX(BüroPlan[],MATCH(INDEX(BüroAbweichungen[],ROW()-ROW(BüroAbweichungen[[#Headers],[Jan]]),1),INDEX(BüroPlan[],,1),0),MATCH(BüroAbweichungen[[#Headers],[Jan]],BüroPlan[#Headers],0))-INDEX(BüroTatsächlich[],MATCH(INDEX(BüroAbweichungen[],ROW()-ROW(BüroAbweichungen[[#Headers],[Jan]]),1),INDEX(BüroPlan[],,1),0),MATCH(BüroAbweichungen[[#Headers],[Jan]],BüroTatsächlich[#Headers],0))","v":{"v":0,"d":"0.00 €"}},{"$f":"INDEX(BüroPlan[],MATCH(INDEX(BüroAbweichungen[],ROW()-ROW(BüroAbweichungen[[#Headers],[Feb]]),1),INDEX(BüroPlan[],,1),0),MATCH(BüroAbweichungen[[#Headers],[Feb]],BüroPlan[#Headers],0))-INDEX(BüroTatsächlich[],MATCH(INDEX(BüroAbweichungen[],ROW()-ROW(BüroAbweichungen[[#Headers],[Feb]]),1),INDEX(BüroPlan[],,1),0),MATCH(BüroAbweichungen[[#Headers],[Feb]],BüroTatsächlich[#Headers],0))","v":{"v":0,"d":"0.00 €"}},{"$f":"INDEX(BüroPlan[],MATCH(INDEX(BüroAbweichungen[],ROW()-ROW(BüroAbweichungen[[#Headers],[Mrz]]),1),INDEX(BüroPlan[],,1),0),MATCH(BüroAbweichungen[[#Headers],[Mrz]],BüroPlan[#Headers],0))-INDEX(BüroTatsächlich[],MATCH(INDEX(BüroAbweichungen[],ROW()-ROW(BüroAbweichungen[[#Headers],[Mrz]]),1),INDEX(BüroPlan[],,1),0),MATCH(BüroAbweichungen[[#Headers],[Mrz]],BüroTatsächlich[#Headers],0))","v":{"v":0,"d":"0.00 €"}},{"$f":"INDEX(BüroPlan[],MATCH(INDEX(BüroAbweichungen[],ROW()-ROW(BüroAbweichungen[[#Headers],[Apr]]),1),INDEX(BüroPlan[],,1),0),MATCH(BüroAbweichungen[[#Headers],[Apr]],BüroPlan[#Headers],0))-INDEX(BüroTatsächlich[],MATCH(INDEX(BüroAbweichungen[],ROW()-ROW(BüroAbweichungen[[#Headers],[Apr]]),1),INDEX(BüroPlan[],,1),0),MATCH(BüroAbweichungen[[#Headers],[Apr]],BüroTatsächlich[#Headers],0))","v":{"v":0,"d":"0.00 €"}},{"$f":"INDEX(BüroPlan[],MATCH(INDEX(BüroAbweichungen[],ROW()-ROW(BüroAbweichungen[[#Headers],[Mai]]),1),INDEX(BüroPlan[],,1),0),MATCH(BüroAbweichungen[[#Headers],[Mai]],BüroPlan[#Headers],0))-INDEX(BüroTatsächlich[],MATCH(INDEX(BüroAbweichungen[],ROW()-ROW(BüroAbweichungen[[#Headers],[Mai]]),1),INDEX(BüroPlan[],,1),0),MATCH(BüroAbweichungen[[#Headers],[Mai]],BüroTatsächlich[#Headers],0))","v":{"v":0,"d":"0.00 €"}},{"$f":"INDEX(BüroPlan[],MATCH(INDEX(BüroAbweichungen[],ROW()-ROW(BüroAbweichungen[[#Headers],[Jun]]),1),INDEX(BüroPlan[],,1),0),MATCH(BüroAbweichungen[[#Headers],[Jun]],BüroPlan[#Headers],0))-INDEX(BüroTatsächlich[],MATCH(INDEX(BüroAbweichungen[],ROW()-ROW(BüroAbweichungen[[#Headers],[Jun]]),1),INDEX(BüroPlan[],,1),0),MATCH(BüroAbweichungen[[#Headers],[Jun]],BüroTatsächlich[#Headers],0))","v":{"v":0,"d":"0.00 €"}},{"$f":"INDEX(BüroPlan[],MATCH(INDEX(BüroAbweichungen[],ROW()-ROW(BüroAbweichungen[[#Headers],[Jul]]),1),INDEX(BüroPlan[],,1),0),MATCH(BüroAbweichungen[[#Headers],[Jul]],BüroPlan[#Headers],0))-INDEX(BüroTatsächlich[],MATCH(INDEX(BüroAbweichungen[],ROW()-ROW(BüroAbweichungen[[#Headers],[Jul]]),1),INDEX(BüroPlan[],,1),0),MATCH(BüroAbweichungen[[#Headers],[Jul]],BüroTatsächlich[#Headers],0))","v":{"v":600,"d":"600.00 €"}},{"$f":"INDEX(BüroPlan[],MATCH(INDEX(BüroAbweichungen[],ROW()-ROW(BüroAbweichungen[[#Headers],[Aug]]),1),INDEX(BüroPlan[],,1),0),MATCH(BüroAbweichungen[[#Headers],[Aug]],BüroPlan[#Headers],0))-INDEX(BüroTatsächlich[],MATCH(INDEX(BüroAbweichungen[],ROW()-ROW(BüroAbweichungen[[#Headers],[Aug]]),1),INDEX(BüroPlan[],,1),0),MATCH(BüroAbweichungen[[#Headers],[Aug]],BüroTatsächlich[#Headers],0))","v":{"v":600,"d":"600.00 €"}},{"$f":"INDEX(BüroPlan[],MATCH(INDEX(BüroAbweichungen[],ROW()-ROW(BüroAbweichungen[[#Headers],[Sep]]),1),INDEX(BüroPlan[],,1),0),MATCH(BüroAbweichungen[[#Headers],[Sep]],BüroPlan[#Headers],0))-INDEX(BüroTatsächlich[],MATCH(INDEX(BüroAbweichungen[],ROW()-ROW(BüroAbweichungen[[#Headers],[Sep]]),1),INDEX(BüroPlan[],,1),0),MATCH(BüroAbweichungen[[#Headers],[Sep]],BüroTatsächlich[#Headers],0))","v":{"v":600,"d":"600.00 €"}},{"$f":"INDEX(BüroPlan[],MATCH(INDEX(BüroAbweichungen[],ROW()-ROW(BüroAbweichungen[[#Headers],[Okt]]),1),INDEX(BüroPlan[],,1),0),MATCH(BüroAbweichungen[[#Headers],[Okt]],BüroPlan[#Headers],0))-INDEX(BüroTatsächlich[],MATCH(INDEX(BüroAbweichungen[],ROW()-ROW(BüroAbweichungen[[#Headers],[Okt]]),1),INDEX(BüroPlan[],,1),0),MATCH(BüroAbweichungen[[#Headers],[Okt]],BüroTatsächlich[#Headers],0))","v":{"v":600,"d":"600.00 €"}},{"$f":"INDEX(BüroPlan[],MATCH(INDEX(BüroAbweichungen[],ROW()-ROW(BüroAbweichungen[[#Headers],[Nov]]),1),INDEX(BüroPlan[],,1),0),MATCH(BüroAbweichungen[[#Headers],[Nov]],BüroPlan[#Headers],0))-INDEX(BüroTatsächlich[],MATCH(INDEX(BüroAbweichungen[],ROW()-ROW(BüroAbweichungen[[#Headers],[Nov]]),1),INDEX(BüroPlan[],,1),0),MATCH(BüroAbweichungen[[#Headers],[Nov]],BüroTatsächlich[#Headers],0))","v":{"v":600,"d":"600.00 €"}},{"$f":"INDEX(BüroPlan[],MATCH(INDEX(BüroAbweichungen[],ROW()-ROW(BüroAbweichungen[[#Headers],[Dez]]),1),INDEX(BüroPlan[],,1),0),MATCH(BüroAbweichungen[[#Headers],[Dez]],BüroPlan[#Headers],0))-INDEX(BüroTatsächlich[],MATCH(INDEX(BüroAbweichungen[],ROW()-ROW(BüroAbweichungen[[#Headers],[Dez]]),1),INDEX(BüroPlan[],,1),0),MATCH(BüroAbweichungen[[#Headers],[Dez]],BüroTatsächlich[#Headers],0))","v":{"v":600,"d":"600.00 €"}},{"$f":"SUM(BüroAbweichungen[[#This Row],[Jan]:[Dez]])","v":{"v":3600,"d":"3,600.00 €"}}]
[null,"Zwischensumme",{"$f":"SUBTOTAL(109,BüroAbweichungen[Jan])","v":{"v":-17,"d":"-17.00 €"}},{"$f":"SUBTOTAL(109,BüroAbweichungen[Feb])","v":{"v":72,"d":"72.00 €"}},{"$f":"SUBTOTAL(109,BüroAbweichungen[Mrz])","v":{"v":78,"d":"78.00 €"}},{"$f":"SUBTOTAL(109,BüroAbweichungen[Apr])","v":{"v":-141,"d":"-141.00 €"}},{"$f":"SUBTOTAL(109,BüroAbweichungen[Mai])","v":{"v":-38,"d":"-38.00 €"}},{"$f":"SUBTOTAL(109,BüroAbweichungen[Jun])","v":{"v":16,"d":"16.00 €"}},{"$f":"SUBTOTAL(109,BüroAbweichungen[Jul])","v":{"v":11470,"d":"11,470.00 €"}},{"$f":"SUBTOTAL(109,BüroAbweichungen[Aug])","v":{"v":11470,"d":"11,470.00 €"}},{"$f":"SUBTOTAL(109,BüroAbweichungen[Sep])","v":{"v":11470,"d":"11,470.00 €"}},{"$f":"SUBTOTAL(109,BüroAbweichungen[Okt])","v":{"v":11470,"d":"11,470.00 €"}},{"$f":"SUBTOTAL(109,BüroAbweichungen[Nov])","v":{"v":11770,"d":"11,770.00 €"}},{"$f":"SUBTOTAL(109,BüroAbweichungen[Dez])","v":{"v":11770,"d":"11,770.00 €"}},{"$f":"SUBTOTAL(109,BüroAbweichungen[JAHR])","v":{"v":69390,"d":"69,390.00 €"}}]
[]
[null,"Marketingkosten","Jan","Feb","Mrz","Apr","Mai","Jun","Jul","Aug","Sep","Okt","Nov","Dez","JAHR"]
[null,"Websitehosting",{"$f":"INDEX(MarketingPlan[],MATCH(INDEX(MarketingAbweichungen[],ROW()-ROW(MarketingAbweichungen[[#Headers],[Jan]]),1),INDEX(MarketingPlan[],,1),0),MATCH(MarketingAbweichungen[[#Headers],[Jan]],MarketingPlan[#Headers],0))-INDEX(MarketingTatsächlich[],MATCH(INDEX(MarketingAbweichungen[],ROW()-ROW(MarketingAbweichungen[[#Headers],[Jan]]),1),INDEX(MarketingPlan[],,1),0),MATCH(MarketingAbweichungen[[#Headers],[Jan]],MarketingTatsächlich[#Headers],0))","v":{"v":0,"d":"0.00 €"}},{"$f":"INDEX(MarketingPlan[],MATCH(INDEX(MarketingAbweichungen[],ROW()-ROW(MarketingAbweichungen[[#Headers],[Feb]]),1),INDEX(MarketingPlan[],,1),0),MATCH(MarketingAbweichungen[[#Headers],[Feb]],MarketingPlan[#Headers],0))-INDEX(MarketingTatsächlich[],MATCH(INDEX(MarketingAbweichungen[],ROW()-ROW(MarketingAbweichungen[[#Headers],[Feb]]),1),INDEX(MarketingPlan[],,1),0),MATCH(MarketingAbweichungen[[#Headers],[Feb]],MarketingTatsächlich[#Headers],0))","v":{"v":0,"d":"0.00 €"}},{"$f":"INDEX(MarketingPlan[],MATCH(INDEX(MarketingAbweichungen[],ROW()-ROW(MarketingAbweichungen[[#Headers],[Mrz]]),1),INDEX(MarketingPlan[],,1),0),MATCH(MarketingAbweichungen[[#Headers],[Mrz]],MarketingPlan[#Headers],0))-INDEX(MarketingTatsächlich[],MATCH(INDEX(MarketingAbweichungen[],ROW()-ROW(MarketingAbweichungen[[#Headers],[Mrz]]),1),INDEX(MarketingPlan[],,1),0),MATCH(MarketingAbweichungen[[#Headers],[Mrz]],MarketingTatsächlich[#Headers],0))","v":{"v":0,"d":"0.00 €"}},{"$f":"INDEX(MarketingPlan[],MATCH(INDEX(MarketingAbweichungen[],ROW()-ROW(MarketingAbweichungen[[#Headers],[Apr]]),1),INDEX(MarketingPlan[],,1),0),MATCH(MarketingAbweichungen[[#Headers],[Apr]],MarketingPlan[#Headers],0))-INDEX(MarketingTatsächlich[],MATCH(INDEX(MarketingAbweichungen[],ROW()-ROW(MarketingAbweichungen[[#Headers],[Apr]]),1),INDEX(MarketingPlan[],,1),0),MATCH(MarketingAbweichungen[[#Headers],[Apr]],MarketingTatsächlich[#Headers],0))","v":{"v":0,"d":"0.00 €"}},{"$f":"INDEX(MarketingPlan[],MATCH(INDEX(MarketingAbweichungen[],ROW()-ROW(MarketingAbweichungen[[#Headers],[Mai]]),1),INDEX(MarketingPlan[],,1),0),MATCH(MarketingAbweichungen[[#Headers],[Mai]],MarketingPlan[#Headers],0))-INDEX(MarketingTatsächlich[],MATCH(INDEX(MarketingAbweichungen[],ROW()-ROW(MarketingAbweichungen[[#Headers],[Mai]]),1),INDEX(MarketingPlan[],,1),0),MATCH(MarketingAbweichungen[[#Headers],[Mai]],MarketingTatsächlich[#Headers],0))","v":{"v":0,"d":"0.00 €"}},{"$f":"INDEX(MarketingPlan[],MATCH(INDEX(MarketingAbweichungen[],ROW()-ROW(MarketingAbweichungen[[#Headers],[Jun]]),1),INDEX(MarketingPlan[],,1),0),MATCH(MarketingAbweichungen[[#Headers],[Jun]],MarketingPlan[#Headers],0))-INDEX(MarketingTatsächlich[],MATCH(INDEX(MarketingAbweichungen[],ROW()-ROW(MarketingAbweichungen[[#Headers],[Jun]]),1),INDEX(MarketingPlan[],,1),0),MATCH(MarketingAbweichungen[[#Headers],[Jun]],MarketingTatsächlich[#Headers],0))","v":{"v":0,"d":"0.00 €"}},{"$f":"INDEX(MarketingPlan[],MATCH(INDEX(MarketingAbweichungen[],ROW()-ROW(MarketingAbweichungen[[#Headers],[Jul]]),1),INDEX(MarketingPlan[],,1),0),MATCH(MarketingAbweichungen[[#Headers],[Jul]],MarketingPlan[#Headers],0))-INDEX(MarketingTatsächlich[],MATCH(INDEX(MarketingAbweichungen[],ROW()-ROW(MarketingAbweichungen[[#Headers],[Jul]]),1),INDEX(MarketingPlan[],,1),0),MATCH(MarketingAbweichungen[[#Headers],[Jul]],MarketingTatsächlich[#Headers],0))","v":{"v":500,"d":"500.00 €"}},{"$f":"INDEX(MarketingPlan[],MATCH(INDEX(MarketingAbweichungen[],ROW()-ROW(MarketingAbweichungen[[#Headers],[Aug]]),1),INDEX(MarketingPlan[],,1),0),MATCH(MarketingAbweichungen[[#Headers],[Aug]],MarketingPlan[#Headers],0))-INDEX(MarketingTatsächlich[],MATCH(INDEX(MarketingAbweichungen[],ROW()-ROW(MarketingAbweichungen[[#Headers],[Aug]]),1),INDEX(MarketingPlan[],,1),0),MATCH(MarketingAbweichungen[[#Headers],[Aug]],MarketingTatsächlich[#Headers],0))","v":{"v":500,"d":"500.00 €"}},{"$f":"INDEX(MarketingPlan[],MATCH(INDEX(MarketingAbweichungen[],ROW()-ROW(MarketingAbweichungen[[#Headers],[Sep]]),1),INDEX(MarketingPlan[],,1),0),MATCH(MarketingAbweichungen[[#Headers],[Sep]],MarketingPlan[#Headers],0))-INDEX(MarketingTatsächlich[],MATCH(INDEX(MarketingAbweichungen[],ROW()-ROW(MarketingAbweichungen[[#Headers],[Sep]]),1),INDEX(MarketingPlan[],,1),0),MATCH(MarketingAbweichungen[[#Headers],[Sep]],MarketingTatsächlich[#Headers],0))","v":{"v":500,"d":"500.00 €"}},{"$f":"INDEX(MarketingPlan[],MATCH(INDEX(MarketingAbweichungen[],ROW()-ROW(MarketingAbweichungen[[#Headers],[Okt]]),1),INDEX(MarketingPlan[],,1),0),MATCH(MarketingAbweichungen[[#Headers],[Okt]],MarketingPlan[#Headers],0))-INDEX(MarketingTatsächlich[],MATCH(INDEX(MarketingAbweichungen[],ROW()-ROW(MarketingAbweichungen[[#Headers],[Okt]]),1),INDEX(MarketingPlan[],,1),0),MATCH(MarketingAbweichungen[[#Headers],[Okt]],MarketingTatsächlich[#Headers],0))","v":{"v":500,"d":"500.00 €"}},{"$f":"INDEX(MarketingPlan[],MATCH(INDEX(MarketingAbweichungen[],ROW()-ROW(MarketingAbweichungen[[#Headers],[Nov]]),1),INDEX(MarketingPlan[],,1),0),MATCH(MarketingAbweichungen[[#Headers],[Nov]],MarketingPlan[#Headers],0))-INDEX(MarketingTatsächlich[],MATCH(INDEX(MarketingAbweichungen[],ROW()-ROW(MarketingAbweichungen[[#Headers],[Nov]]),1),INDEX(MarketingPlan[],,1),0),MATCH(MarketingAbweichungen[[#Headers],[Nov]],MarketingTatsächlich[#Headers],0))","v":{"v":500,"d":"500.00 €"}},{"$f":"INDEX(MarketingPlan[],MATCH(INDEX(MarketingAbweichungen[],ROW()-ROW(MarketingAbweichungen[[#Headers],[Dez]]),1),INDEX(MarketingPlan[],,1),0),MATCH(MarketingAbweichungen[[#Headers],[Dez]],MarketingPlan[#Headers],0))-INDEX(MarketingTatsächlich[],MATCH(INDEX(MarketingAbweichungen[],ROW()-ROW(MarketingAbweichungen[[#Headers],[Dez]]),1),INDEX(MarketingPlan[],,1),0),MATCH(MarketingAbweichungen[[#Headers],[Dez]],MarketingTatsächlich[#Headers],0))","v":{"v":500,"d":"500.00 €"}},{"$f":"SUM(MarketingAbweichungen[[#This Row],[Jan]:[Dez]])","v":{"v":3000,"d":"3,000.00 €"}}]
[null,"Websiteaktualisierungen",{"$f":"INDEX(MarketingPlan[],MATCH(INDEX(MarketingAbweichungen[],ROW()-ROW(MarketingAbweichungen[[#Headers],[Jan]]),1),INDEX(MarketingPlan[],,1),0),MATCH(MarketingAbweichungen[[#Headers],[Jan]],MarketingPlan[#Headers],0))-INDEX(MarketingTatsächlich[],MATCH(INDEX(MarketingAbweichungen[],ROW()-ROW(MarketingAbweichungen[[#Headers],[Jan]]),1),INDEX(MarketingPlan[],,1),0),MATCH(MarketingAbweichungen[[#Headers],[Jan]],MarketingTatsächlich[#Headers],0))","v":{"v":0,"d":"0.00 €"}},{"$f":"INDEX(MarketingPlan[],MATCH(INDEX(MarketingAbweichungen[],ROW()-ROW(MarketingAbweichungen[[#Headers],[Feb]]),1),INDEX(MarketingPlan[],,1),0),MATCH(MarketingAbweichungen[[#Headers],[Feb]],MarketingPlan[#Headers],0))-INDEX(MarketingTatsächlich[],MATCH(INDEX(MarketingAbweichungen[],ROW()-ROW(MarketingAbweichungen[[#Headers],[Feb]]),1),INDEX(MarketingPlan[],,1),0),MATCH(MarketingAbweichungen[[#Headers],[Feb]],MarketingTatsächlich[#Headers],0))","v":{"v":0,"d":"0.00 €"}},{"$f":"INDEX(MarketingPlan[],MATCH(INDEX(MarketingAbweichungen[],ROW()-ROW(MarketingAbweichungen[[#Headers],[Mrz]]),1),INDEX(MarketingPlan[],,1),0),MATCH(MarketingAbweichungen[[#Headers],[Mrz]],MarketingPlan[#Headers],0))-INDEX(MarketingTatsächlich[],MATCH(INDEX(MarketingAbweichungen[],ROW()-ROW(MarketingAbweichungen[[#Headers],[Mrz]]),1),INDEX(MarketingPlan[],,1),0),MATCH(MarketingAbweichungen[[#Headers],[Mrz]],MarketingTatsächlich[#Headers],0))","v":{"v":0,"d":"0.00 €"}},{"$f":"INDEX(MarketingPlan[],MATCH(INDEX(MarketingAbweichungen[],ROW()-ROW(MarketingAbweichungen[[#Headers],[Apr]]),1),INDEX(MarketingPlan[],,1),0),MATCH(MarketingAbweichungen[[#Headers],[Apr]],MarketingPlan[#Headers],0))-INDEX(MarketingTatsächlich[],MATCH(INDEX(MarketingAbweichungen[],ROW()-ROW(MarketingAbweichungen[[#Headers],[Apr]]),1),INDEX(MarketingPlan[],,1),0),MATCH(MarketingAbweichungen[[#Headers],[Apr]],MarketingTatsächlich[#Headers],0))","v":{"v":0,"d":"0.00 €"}},{"$f":"INDEX(MarketingPlan[],MATCH(INDEX(MarketingAbweichungen[],ROW()-ROW(MarketingAbweichungen[[#Headers],[Mai]]),1),INDEX(MarketingPlan[],,1),0),MATCH(MarketingAbweichungen[[#Headers],[Mai]],MarketingPlan[#Headers],0))-INDEX(MarketingTatsächlich[],MATCH(INDEX(MarketingAbweichungen[],ROW()-ROW(MarketingAbweichungen[[#Headers],[Mai]]),1),INDEX(MarketingPlan[],,1),0),MATCH(MarketingAbweichungen[[#Headers],[Mai]],MarketingTatsächlich[#Headers],0))","v":{"v":0,"d":"0.00 €"}},{"$f":"INDEX(MarketingPlan[],MATCH(INDEX(MarketingAbweichungen[],ROW()-ROW(MarketingAbweichungen[[#Headers],[Jun]]),1),INDEX(MarketingPlan[],,1),0),MATCH(MarketingAbweichungen[[#Headers],[Jun]],MarketingPlan[#Headers],0))-INDEX(MarketingTatsächlich[],MATCH(INDEX(MarketingAbweichungen[],ROW()-ROW(MarketingAbweichungen[[#Headers],[Jun]]),1),INDEX(MarketingPlan[],,1),0),MATCH(MarketingAbweichungen[[#Headers],[Jun]],MarketingTatsächlich[#Headers],0))","v":{"v":-500,"d":"-500.00 €"}},{"$f":"INDEX(MarketingPlan[],MATCH(INDEX(MarketingAbweichungen[],ROW()-ROW(MarketingAbweichungen[[#Headers],[Jul]]),1),INDEX(MarketingPlan[],,1),0),MATCH(MarketingAbweichungen[[#Headers],[Jul]],MarketingPlan[#Headers],0))-INDEX(MarketingTatsächlich[],MATCH(INDEX(MarketingAbweichungen[],ROW()-ROW(MarketingAbweichungen[[#Headers],[Jul]]),1),INDEX(MarketingPlan[],,1),0),MATCH(MarketingAbweichungen[[#Headers],[Jul]],MarketingTatsächlich[#Headers],0))","v":{"v":200,"d":"200.00 €"}},{"$f":"INDEX(MarketingPlan[],MATCH(INDEX(MarketingAbweichungen[],ROW()-ROW(MarketingAbweichungen[[#Headers],[Aug]]),1),INDEX(MarketingPlan[],,1),0),MATCH(MarketingAbweichungen[[#Headers],[Aug]],MarketingPlan[#Headers],0))-INDEX(MarketingTatsächlich[],MATCH(INDEX(MarketingAbweichungen[],ROW()-ROW(MarketingAbweichungen[[#Headers],[Aug]]),1),INDEX(MarketingPlan[],,1),0),MATCH(MarketingAbweichungen[[#Headers],[Aug]],MarketingTatsächlich[#Headers],0))","v":{"v":200,"d":"200.00 €"}},{"$f":"INDEX(MarketingPlan[],MATCH(INDEX(MarketingAbweichungen[],ROW()-ROW(MarketingAbweichungen[[#Headers],[Sep]]),1),INDEX(MarketingPlan[],,1),0),MATCH(MarketingAbweichungen[[#Headers],[Sep]],MarketingPlan[#Headers],0))-INDEX(MarketingTatsächlich[],MATCH(INDEX(MarketingAbweichungen[],ROW()-ROW(MarketingAbweichungen[[#Headers],[Sep]]),1),INDEX(MarketingPlan[],,1),0),MATCH(MarketingAbweichungen[[#Headers],[Sep]],MarketingTatsächlich[#Headers],0))","v":{"v":200,"d":"200.00 €"}},{"$f":"INDEX(MarketingPlan[],MATCH(INDEX(MarketingAbweichungen[],ROW()-ROW(MarketingAbweichungen[[#Headers],[Okt]]),1),INDEX(MarketingPlan[],,1),0),MATCH(MarketingAbweichungen[[#Headers],[Okt]],MarketingPlan[#Headers],0))-INDEX(MarketingTatsächlich[],MATCH(INDEX(MarketingAbweichungen[],ROW()-ROW(MarketingAbweichungen[[#Headers],[Okt]]),1),INDEX(MarketingPlan[],,1),0),MATCH(MarketingAbweichungen[[#Headers],[Okt]],MarketingTatsächlich[#Headers],0))","v":{"v":200,"d":"200.00 €"}},{"$f":"INDEX(MarketingPlan[],MATCH(INDEX(MarketingAbweichungen[],ROW()-ROW(MarketingAbweichungen[[#Headers],[Nov]]),1),INDEX(MarketingPlan[],,1),0),MATCH(MarketingAbweichungen[[#Headers],[Nov]],MarketingPlan[#Headers],0))-INDEX(MarketingTatsächlich[],MATCH(INDEX(MarketingAbweichungen[],ROW()-ROW(MarketingAbweichungen[[#Headers],[Nov]]),1),INDEX(MarketingPlan[],,1),0),MATCH(MarketingAbweichungen[[#Headers],[Nov]],MarketingTatsächlich[#Headers],0))","v":{"v":200,"d":"200.00 €"}},{"$f":"INDEX(MarketingPlan[],MATCH(INDEX(MarketingAbweichungen[],ROW()-ROW(MarketingAbweichungen[[#Headers],[Dez]]),1),INDEX(MarketingPlan[],,1),0),MATCH(MarketingAbweichungen[[#Headers],[Dez]],MarketingPlan[#Headers],0))-INDEX(MarketingTatsächlich[],MATCH(INDEX(MarketingAbweichungen[],ROW()-ROW(MarketingAbweichungen[[#Headers],[Dez]]),1),INDEX(MarketingPlan[],,1),0),MATCH(MarketingAbweichungen[[#Headers],[Dez]],MarketingTatsächlich[#Headers],0))","v":{"v":1000,"d":"1,000.00 €"}},{"$f":"SUM(MarketingAbweichungen[[#This Row],[Jan]:[Dez]])","v":{"v":1500,"d":"1,500.00 €"}}]
[null,"Vorbereitung von Begleitmaterialien",{"$f":"INDEX(MarketingPlan[],MATCH(INDEX(MarketingAbweichungen[],ROW()-ROW(MarketingAbweichungen[[#Headers],[Jan]]),1),INDEX(MarketingPlan[],,1),0),MATCH(MarketingAbweichungen[[#Headers],[Jan]],MarketingPlan[#Headers],0))-INDEX(MarketingTatsächlich[],MATCH(INDEX(MarketingAbweichungen[],ROW()-ROW(MarketingAbweichungen[[#Headers],[Jan]]),1),INDEX(MarketingPlan[],,1),0),MATCH(MarketingAbweichungen[[#Headers],[Jan]],MarketingTatsächlich[#Headers],0))","v":{"v":200,"d":"200.00 €"}},{"$f":"INDEX(MarketingPlan[],MATCH(INDEX(MarketingAbweichungen[],ROW()-ROW(MarketingAbweichungen[[#Headers],[Feb]]),1),INDEX(MarketingPlan[],,1),0),MATCH(MarketingAbweichungen[[#Headers],[Feb]],MarketingPlan[#Headers],0))-INDEX(MarketingTatsächlich[],MATCH(INDEX(MarketingAbweichungen[],ROW()-ROW(MarketingAbweichungen[[#Headers],[Feb]]),1),INDEX(MarketingPlan[],,1),0),MATCH(MarketingAbweichungen[[#Headers],[Feb]],MarketingTatsächlich[#Headers],0))","v":{"v":0,"d":"0.00 €"}},{"$f":"INDEX(MarketingPlan[],MATCH(INDEX(MarketingAbweichungen[],ROW()-ROW(MarketingAbweichungen[[#Headers],[Mrz]]),1),INDEX(MarketingPlan[],,1),0),MATCH(MarketingAbweichungen[[#Headers],[Mrz]],MarketingPlan[#Headers],0))-INDEX(MarketingTatsächlich[],MATCH(INDEX(MarketingAbweichungen[],ROW()-ROW(MarketingAbweichungen[[#Headers],[Mrz]]),1),INDEX(MarketingPlan[],,1),0),MATCH(MarketingAbweichungen[[#Headers],[Mrz]],MarketingTatsächlich[#Headers],0))","v":{"v":0,"d":"0.00 €"}},{"$f":"INDEX(MarketingPlan[],MATCH(INDEX(MarketingAbweichungen[],ROW()-ROW(MarketingAbweichungen[[#Headers],[Apr]]),1),INDEX(MarketingPlan[],,1),0),MATCH(MarketingAbweichungen[[#Headers],[Apr]],MarketingPlan[#Headers],0))-INDEX(MarketingTatsächlich[],MATCH(INDEX(MarketingAbweichungen[],ROW()-ROW(MarketingAbweichungen[[#Headers],[Apr]]),1),INDEX(MarketingPlan[],,1),0),MATCH(MarketingAbweichungen[[#Headers],[Apr]],MarketingTatsächlich[#Headers],0))","v":{"v":-500,"d":"-500.00 €"}},{"$f":"INDEX(MarketingPlan[],MATCH(INDEX(MarketingAbweichungen[],ROW()-ROW(MarketingAbweichungen[[#Headers],[Mai]]),1),INDEX(MarketingPlan[],,1),0),MATCH(MarketingAbweichungen[[#Headers],[Mai]],MarketingPlan[#Headers],0))-INDEX(MarketingTatsächlich[],MATCH(INDEX(MarketingAbweichungen[],ROW()-ROW(MarketingAbweichungen[[#Headers],[Mai]]),1),INDEX(MarketingPlan[],,1),0),MATCH(MarketingAbweichungen[[#Headers],[Mai]],MarketingTatsächlich[#Headers],0))","v":{"v":0,"d":"0.00 €"}},{"$f":"INDEX(MarketingPlan[],MATCH(INDEX(MarketingAbweichungen[],ROW()-ROW(MarketingAbweichungen[[#Headers],[Jun]]),1),INDEX(MarketingPlan[],,1),0),MATCH(MarketingAbweichungen[[#Headers],[Jun]],MarketingPlan[#Headers],0))-INDEX(MarketingTatsächlich[],MATCH(INDEX(MarketingAbweichungen[],ROW()-ROW(MarketingAbweichungen[[#Headers],[Jun]]),1),INDEX(MarketingPlan[],,1),0),MATCH(MarketingAbweichungen[[#Headers],[Jun]],MarketingTatsächlich[#Headers],0))","v":{"v":0,"d":"0.00 €"}},{"$f":"INDEX(MarketingPlan[],MATCH(INDEX(MarketingAbweichungen[],ROW()-ROW(MarketingAbweichungen[[#Headers],[Jul]]),1),INDEX(MarketingPlan[],,1),0),MATCH(MarketingAbweichungen[[#Headers],[Jul]],MarketingPlan[#Headers],0))-INDEX(MarketingTatsächlich[],MATCH(INDEX(MarketingAbweichungen[],ROW()-ROW(MarketingAbweichungen[[#Headers],[Jul]]),1),INDEX(MarketingPlan[],,1),0),MATCH(MarketingAbweichungen[[#Headers],[Jul]],MarketingTatsächlich[#Headers],0))","v":{"v":5000,"d":"5,000.00 €"}},{"$f":"INDEX(MarketingPlan[],MATCH(INDEX(MarketingAbweichungen[],ROW()-ROW(MarketingAbweichungen[[#Headers],[Aug]]),1),INDEX(MarketingPlan[],,1),0),MATCH(MarketingAbweichungen[[#Headers],[Aug]],MarketingPlan[#Headers],0))-INDEX(MarketingTatsächlich[],MATCH(INDEX(MarketingAbweichungen[],ROW()-ROW(MarketingAbweichungen[[#Headers],[Aug]]),1),INDEX(MarketingPlan[],,1),0),MATCH(MarketingAbweichungen[[#Headers],[Aug]],MarketingTatsächlich[#Headers],0))","v":{"v":0,"d":"0.00 €"}},{"$f":"INDEX(MarketingPlan[],MATCH(INDEX(MarketingAbweichungen[],ROW()-ROW(MarketingAbweichungen[[#Headers],[Sep]]),1),INDEX(MarketingPlan[],,1),0),MATCH(MarketingAbweichungen[[#Headers],[Sep]],MarketingPlan[#Headers],0))-INDEX(MarketingTatsächlich[],MATCH(INDEX(MarketingAbweichungen[],ROW()-ROW(MarketingAbweichungen[[#Headers],[Sep]]),1),INDEX(MarketingPlan[],,1),0),MATCH(MarketingAbweichungen[[#Headers],[Sep]],MarketingTatsächlich[#Headers],0))","v":{"v":0,"d":"0.00 €"}},{"$f":"INDEX(MarketingPlan[],MATCH(INDEX(MarketingAbweichungen[],ROW()-ROW(MarketingAbweichungen[[#Headers],[Okt]]),1),INDEX(MarketingPlan[],,1),0),MATCH(MarketingAbweichungen[[#Headers],[Okt]],MarketingPlan[#Headers],0))-INDEX(MarketingTatsächlich[],MATCH(INDEX(MarketingAbweichungen[],ROW()-ROW(MarketingAbweichungen[[#Headers],[Okt]]),1),INDEX(MarketingPlan[],,1),0),MATCH(MarketingAbweichungen[[#Headers],[Okt]],MarketingTatsächlich[#Headers],0))","v":{"v":5000,"d":"5,000.00 €"}},{"$f":"INDEX(MarketingPlan[],MATCH(INDEX(MarketingAbweichungen[],ROW()-ROW(MarketingAbweichungen[[#Headers],[Nov]]),1),INDEX(MarketingPlan[],,1),0),MATCH(MarketingAbweichungen[[#Headers],[Nov]],MarketingPlan[#Headers],0))-INDEX(MarketingTatsächlich[],MATCH(INDEX(MarketingAbweichungen[],ROW()-ROW(MarketingAbweichungen[[#Headers],[Nov]]),1),INDEX(MarketingPlan[],,1),0),MATCH(MarketingAbweichungen[[#Headers],[Nov]],MarketingTatsächlich[#Headers],0))","v":{"v":0,"d":"0.00 €"}},{"$f":"INDEX(MarketingPlan[],MATCH(INDEX(MarketingAbweichungen[],ROW()-ROW(MarketingAbweichungen[[#Headers],[Dez]]),1),INDEX(MarketingPlan[],,1),0),MATCH(MarketingAbweichungen[[#Headers],[Dez]],MarketingPlan[#Headers],0))-INDEX(MarketingTatsächlich[],MATCH(INDEX(MarketingAbweichungen[],ROW()-ROW(MarketingAbweichungen[[#Headers],[Dez]]),1),INDEX(MarketingPlan[],,1),0),MATCH(MarketingAbweichungen[[#Headers],[Dez]],MarketingTatsächlich[#Headers],0))","v":{"v":0,"d":"0.00 €"}},{"$f":"SUM(MarketingAbweichungen[[#This Row],[Jan]:[Dez]])","v":{"v":9700,"d":"9,700.00 €"}}]
[null,"Druck von Begleitmaterialien",{"$f":"INDEX(MarketingPlan[],MATCH(INDEX(MarketingAbweichungen[],ROW()-ROW(MarketingAbweichungen[[#Headers],[Jan]]),1),INDEX(MarketingPlan[],,1),0),MATCH(MarketingAbweichungen[[#Headers],[Jan]],MarketingPlan[#Headers],0))-INDEX(MarketingTatsächlich[],MATCH(INDEX(MarketingAbweichungen[],ROW()-ROW(MarketingAbweichungen[[#Headers],[Jan]]),1),INDEX(MarketingPlan[],,1),0),MATCH(MarketingAbweichungen[[#Headers],[Jan]],MarketingTatsächlich[#Headers],0))","v":{"v":100,"d":"100.00 €"}},{"$f":"INDEX(MarketingPlan[],MATCH(INDEX(MarketingAbweichungen[],ROW()-ROW(MarketingAbweichungen[[#Headers],[Feb]]),1),INDEX(MarketingPlan[],,1),0),MATCH(MarketingAbweichungen[[#Headers],[Feb]],MarketingPlan[#Headers],0))-INDEX(MarketingTatsächlich[],MATCH(INDEX(MarketingAbweichungen[],ROW()-ROW(MarketingAbweichungen[[#Headers],[Feb]]),1),INDEX(MarketingPlan[],,1),0),MATCH(MarketingAbweichungen[[#Headers],[Feb]],MarketingTatsächlich[#Headers],0))","v":{"v":-300,"d":"-300.00 €"}},{"$f":"INDEX(MarketingPlan[],MATCH(INDEX(MarketingAbweichungen[],ROW()-ROW(MarketingAbweichungen[[#Headers],[Mrz]]),1),INDEX(MarketingPlan[],,1),0),MATCH(MarketingAbweichungen[[#Headers],[Mrz]],MarketingPlan[#Headers],0))-INDEX(MarketingTatsächlich[],MATCH(INDEX(MarketingAbweichungen[],ROW()-ROW(MarketingAbweichungen[[#Headers],[Mrz]]),1),INDEX(MarketingPlan[],,1),0),MATCH(MarketingAbweichungen[[#Headers],[Mrz]],MarketingTatsächlich[#Headers],0))","v":{"v":100,"d":"100.00 €"}},{"$f":"INDEX(MarketingPlan[],MATCH(INDEX(MarketingAbweichungen[],ROW()-ROW(MarketingAbweichungen[[#Headers],[Apr]]),1),INDEX(MarketingPlan[],,1),0),MATCH(MarketingAbweichungen[[#Headers],[Apr]],MarketingPlan[#Headers],0))-INDEX(MarketingTatsächlich[],MATCH(INDEX(MarketingAbweichungen[],ROW()-ROW(MarketingAbweichungen[[#Headers],[Apr]]),1),INDEX(MarketingPlan[],,1),0),MATCH(MarketingAbweichungen[[#Headers],[Apr]],MarketingTatsächlich[#Headers],0))","v":{"v":100,"d":"100.00 €"}},{"$f":"INDEX(MarketingPlan[],MATCH(INDEX(MarketingAbweichungen[],ROW()-ROW(MarketingAbweichungen[[#Headers],[Mai]]),1),INDEX(MarketingPlan[],,1),0),MATCH(MarketingAbweichungen[[#Headers],[Mai]],MarketingPlan[#Headers],0))-INDEX(MarketingTatsächlich[],MATCH(INDEX(MarketingAbweichungen[],ROW()-ROW(MarketingAbweichungen[[#Headers],[Mai]]),1),INDEX(MarketingPlan[],,1),0),MATCH(MarketingAbweichungen[[#Headers],[Mai]],MarketingTatsächlich[#Headers],0))","v":{"v":-400,"d":"-400.00 €"}},{"$f":"INDEX(MarketingPlan[],MATCH(INDEX(MarketingAbweichungen[],ROW()-ROW(MarketingAbweichungen[[#Headers],[Jun]]),1),INDEX(MarketingPlan[],,1),0),MATCH(MarketingAbweichungen[[#Headers],[Jun]],MarketingPlan[#Headers],0))-INDEX(MarketingTatsächlich[],MATCH(INDEX(MarketingAbweichungen[],ROW()-ROW(MarketingAbweichungen[[#Headers],[Jun]]),1),INDEX(MarketingPlan[],,1),0),MATCH(MarketingAbweichungen[[#Headers],[Jun]],MarketingTatsächlich[#Headers],0))","v":{"v":20,"d":"20.00 €"}},{"$f":"INDEX(MarketingPlan[],MATCH(INDEX(MarketingAbweichungen[],ROW()-ROW(MarketingAbweichungen[[#Headers],[Jul]]),1),INDEX(MarketingPlan[],,1),0),MATCH(MarketingAbweichungen[[#Headers],[Jul]],MarketingPlan[#Headers],0))-INDEX(MarketingTatsächlich[],MATCH(INDEX(MarketingAbweichungen[],ROW()-ROW(MarketingAbweichungen[[#Headers],[Jul]]),1),INDEX(MarketingPlan[],,1),0),MATCH(MarketingAbweichungen[[#Headers],[Jul]],MarketingTatsächlich[#Headers],0))","v":{"v":200,"d":"200.00 €"}},{"$f":"INDEX(MarketingPlan[],MATCH(INDEX(MarketingAbweichungen[],ROW()-ROW(MarketingAbweichungen[[#Headers],[Aug]]),1),INDEX(MarketingPlan[],,1),0),MATCH(MarketingAbweichungen[[#Headers],[Aug]],MarketingPlan[#Headers],0))-INDEX(MarketingTatsächlich[],MATCH(INDEX(MarketingAbweichungen[],ROW()-ROW(MarketingAbweichungen[[#Headers],[Aug]]),1),INDEX(MarketingPlan[],,1),0),MATCH(MarketingAbweichungen[[#Headers],[Aug]],MarketingTatsächlich[#Headers],0))","v":{"v":200,"d":"200.00 €"}},{"$f":"INDEX(MarketingPlan[],MATCH(INDEX(MarketingAbweichungen[],ROW()-ROW(MarketingAbweichungen[[#Headers],[Sep]]),1),INDEX(MarketingPlan[],,1),0),MATCH(MarketingAbweichungen[[#Headers],[Sep]],MarketingPlan[#Headers],0))-INDEX(MarketingTatsächlich[],MATCH(INDEX(MarketingAbweichungen[],ROW()-ROW(MarketingAbweichungen[[#Headers],[Sep]]),1),INDEX(MarketingPlan[],,1),0),MATCH(MarketingAbweichungen[[#Headers],[Sep]],MarketingTatsächlich[#Headers],0))","v":{"v":200,"d":"200.00 €"}},{"$f":"INDEX(MarketingPlan[],MATCH(INDEX(MarketingAbweichungen[],ROW()-ROW(MarketingAbweichungen[[#Headers],[Okt]]),1),INDEX(MarketingPlan[],,1),0),MATCH(MarketingAbweichungen[[#Headers],[Okt]],MarketingPlan[#Headers],0))-INDEX(MarketingTatsächlich[],MATCH(INDEX(MarketingAbweichungen[],ROW()-ROW(MarketingAbweichungen[[#Headers],[Okt]]),1),INDEX(MarketingPlan[],,1),0),MATCH(MarketingAbweichungen[[#Headers],[Okt]],MarketingTatsächlich[#Headers],0))","v":{"v":200,"d":"200.00 €"}},{"$f":"INDEX(MarketingPlan[],MATCH(INDEX(MarketingAbweichungen[],ROW()-ROW(MarketingAbweichungen[[#Headers],[Nov]]),1),INDEX(MarketingPlan[],,1),0),MATCH(MarketingAbweichungen[[#Headers],[Nov]],MarketingPlan[#Headers],0))-INDEX(MarketingTatsächlich[],MATCH(INDEX(MarketingAbweichungen[],ROW()-ROW(MarketingAbweichungen[[#Headers],[Nov]]),1),INDEX(MarketingPlan[],,1),0),MATCH(MarketingAbweichungen[[#Headers],[Nov]],MarketingTatsächlich[#Headers],0))","v":{"v":200,"d":"200.00 €"}},{"$f":"INDEX(MarketingPlan[],MATCH(INDEX(MarketingAbweichungen[],ROW()-ROW(MarketingAbweichungen[[#Headers],[Dez]]),1),INDEX(MarketingPlan[],,1),0),MATCH(MarketingAbweichungen[[#Headers],[Dez]],MarketingPlan[#Headers],0))-INDEX(MarketingTatsächlich[],MATCH(INDEX(MarketingAbweichungen[],ROW()-ROW(MarketingAbweichungen[[#Headers],[Dez]]),1),INDEX(MarketingPlan[],,1),0),MATCH(MarketingAbweichungen[[#Headers],[Dez]],MarketingTatsächlich[#Headers],0))","v":{"v":200,"d":"200.00 €"}},{"$f":"SUM(MarketingAbweichungen[[#This Row],[Jan]:[Dez]])","v":{"v":820,"d":"820.00 €"}}]
[null,"Marketingveranstaltungen",{"$f":"INDEX(MarketingPlan[],MATCH(INDEX(MarketingAbweichungen[],ROW()-ROW(MarketingAbweichungen[[#Headers],[Jan]]),1),INDEX(MarketingPlan[],,1),0),MATCH(MarketingAbweichungen[[#Headers],[Jan]],MarketingPlan[#Headers],0))-INDEX(MarketingTatsächlich[],MATCH(INDEX(MarketingAbweichungen[],ROW()-ROW(MarketingAbweichungen[[#Headers],[Jan]]),1),INDEX(MarketingPlan[],,1),0),MATCH(MarketingAbweichungen[[#Headers],[Jan]],MarketingTatsächlich[#Headers],0))","v":{"v":200,"d":"200.00 €"}},{"$f":"INDEX(MarketingPlan[],MATCH(INDEX(MarketingAbweichungen[],ROW()-ROW(MarketingAbweichungen[[#Headers],[Feb]]),1),INDEX(MarketingPlan[],,1),0),MATCH(MarketingAbweichungen[[#Headers],[Feb]],MarketingPlan[#Headers],0))-INDEX(MarketingTatsächlich[],MATCH(INDEX(MarketingAbweichungen[],ROW()-ROW(MarketingAbweichungen[[#Headers],[Feb]]),1),INDEX(MarketingPlan[],,1),0),MATCH(MarketingAbweichungen[[#Headers],[Feb]],MarketingTatsächlich[#Headers],0))","v":{"v":-200,"d":"-200.00 €"}},{"$f":"INDEX(MarketingPlan[],MATCH(INDEX(MarketingAbweichungen[],ROW()-ROW(MarketingAbweichungen[[#Headers],[Mrz]]),1),INDEX(MarketingPlan[],,1),0),MATCH(MarketingAbweichungen[[#Headers],[Mrz]],MarketingPlan[#Headers],0))-INDEX(MarketingTatsächlich[],MATCH(INDEX(MarketingAbweichungen[],ROW()-ROW(MarketingAbweichungen[[#Headers],[Mrz]]),1),INDEX(MarketingPlan[],,1),0),MATCH(MarketingAbweichungen[[#Headers],[Mrz]],MarketingTatsächlich[#Headers],0))","v":{"v":-200,"d":"-200.00 €"}},{"$f":"INDEX(MarketingPlan[],MATCH(INDEX(MarketingAbweichungen[],ROW()-ROW(MarketingAbweichungen[[#Headers],[Apr]]),1),INDEX(MarketingPlan[],,1),0),MATCH(MarketingAbweichungen[[#Headers],[Apr]],MarketingPlan[#Headers],0))-INDEX(MarketingTatsächlich[],MATCH(INDEX(MarketingAbweichungen[],ROW()-ROW(MarketingAbweichungen[[#Headers],[Apr]]),1),INDEX(MarketingPlan[],,1),0),MATCH(MarketingAbweichungen[[#Headers],[Apr]],MarketingTatsächlich[#Headers],0))","v":{"v":300,"d":"300.00 €"}},{"$f":"INDEX(MarketingPlan[],MATCH(INDEX(MarketingAbweichungen[],ROW()-ROW(MarketingAbweichungen[[#Headers],[Mai]]),1),INDEX(MarketingPlan[],,1),0),MATCH(MarketingAbweichungen[[#Headers],[Mai]],MarketingPlan[#Headers],0))-INDEX(MarketingTatsächlich[],MATCH(INDEX(MarketingAbweichungen[],ROW()-ROW(MarketingAbweichungen[[#Headers],[Mai]]),1),INDEX(MarketingPlan[],,1),0),MATCH(MarketingAbweichungen[[#Headers],[Mai]],MarketingTatsächlich[#Headers],0))","v":{"v":500,"d":"500.00 €"}},{"$f":"INDEX(MarketingPlan[],MATCH(INDEX(MarketingAbweichungen[],ROW()-ROW(MarketingAbweichungen[[#Headers],[Jun]]),1),INDEX(MarketingPlan[],,1),0),MATCH(MarketingAbweichungen[[#Headers],[Jun]],MarketingPlan[#Headers],0))-INDEX(MarketingTatsächlich[],MATCH(INDEX(MarketingAbweichungen[],ROW()-ROW(MarketingAbweichungen[[#Headers],[Jun]]),1),INDEX(MarketingPlan[],,1),0),MATCH(MarketingAbweichungen[[#Headers],[Jun]],MarketingTatsächlich[#Headers],0))","v":{"v":-300,"d":"-300.00 €"}},{"$f":"INDEX(MarketingPlan[],MATCH(INDEX(MarketingAbweichungen[],ROW()-ROW(MarketingAbweichungen[[#Headers],[Jul]]),1),INDEX(MarketingPlan[],,1),0),MATCH(MarketingAbweichungen[[#Headers],[Jul]],MarketingPlan[#Headers],0))-INDEX(MarketingTatsächlich[],MATCH(INDEX(MarketingAbweichungen[],ROW()-ROW(MarketingAbweichungen[[#Headers],[Jul]]),1),INDEX(MarketingPlan[],,1),0),MATCH(MarketingAbweichungen[[#Headers],[Jul]],MarketingTatsächlich[#Headers],0))","v":{"v":2000,"d":"2,000.00 €"}},{"$f":"INDEX(MarketingPlan[],MATCH(INDEX(MarketingAbweichungen[],ROW()-ROW(MarketingAbweichungen[[#Headers],[Aug]]),1),INDEX(MarketingPlan[],,1),0),MATCH(MarketingAbweichungen[[#Headers],[Aug]],MarketingPlan[#Headers],0))-INDEX(MarketingTatsächlich[],MATCH(INDEX(MarketingAbweichungen[],ROW()-ROW(MarketingAbweichungen[[#Headers],[Aug]]),1),INDEX(MarketingPlan[],,1),0),MATCH(MarketingAbweichungen[[#Headers],[Aug]],MarketingTatsächlich[#Headers],0))","v":{"v":5000,"d":"5,000.00 €"}},{"$f":"INDEX(MarketingPlan[],MATCH(INDEX(MarketingAbweichungen[],ROW()-ROW(MarketingAbweichungen[[#Headers],[Sep]]),1),INDEX(MarketingPlan[],,1),0),MATCH(MarketingAbweichungen[[#Headers],[Sep]],MarketingPlan[#Headers],0))-INDEX(MarketingTatsächlich[],MATCH(INDEX(MarketingAbweichungen[],ROW()-ROW(MarketingAbweichungen[[#Headers],[Sep]]),1),INDEX(MarketingPlan[],,1),0),MATCH(MarketingAbweichungen[[#Headers],[Sep]],MarketingTatsächlich[#Headers],0))","v":{"v":2000,"d":"2,000.00 €"}},{"$f":"INDEX(MarketingPlan[],MATCH(INDEX(MarketingAbweichungen[],ROW()-ROW(MarketingAbweichungen[[#Headers],[Okt]]),1),INDEX(MarketingPlan[],,1),0),MATCH(MarketingAbweichungen[[#Headers],[Okt]],MarketingPlan[#Headers],0))-INDEX(MarketingTatsächlich[],MATCH(INDEX(MarketingAbweichungen[],ROW()-ROW(MarketingAbweichungen[[#Headers],[Okt]]),1),INDEX(MarketingPlan[],,1),0),MATCH(MarketingAbweichungen[[#Headers],[Okt]],MarketingTatsächlich[#Headers],0))","v":{"v":2000,"d":"2,000.00 €"}},{"$f":"INDEX(MarketingPlan[],MATCH(INDEX(MarketingAbweichungen[],ROW()-ROW(MarketingAbweichungen[[#Headers],[Nov]]),1),INDEX(MarketingPlan[],,1),0),MATCH(MarketingAbweichungen[[#Headers],[Nov]],MarketingPlan[#Headers],0))-INDEX(MarketingTatsächlich[],MATCH(INDEX(MarketingAbweichungen[],ROW()-ROW(MarketingAbweichungen[[#Headers],[Nov]]),1),INDEX(MarketingPlan[],,1),0),MATCH(MarketingAbweichungen[[#Headers],[Nov]],MarketingTatsächlich[#Headers],0))","v":{"v":2000,"d":"2,000.00 €"}},{"$f":"INDEX(MarketingPlan[],MATCH(INDEX(MarketingAbweichungen[],ROW()-ROW(MarketingAbweichungen[[#Headers],[Dez]]),1),INDEX(MarketingPlan[],,1),0),MATCH(MarketingAbweichungen[[#Headers],[Dez]],MarketingPlan[#Headers],0))-INDEX(MarketingTatsächlich[],MATCH(INDEX(MarketingAbweichungen[],ROW()-ROW(MarketingAbweichungen[[#Headers],[Dez]]),1),INDEX(MarketingPlan[],,1),0),MATCH(MarketingAbweichungen[[#Headers],[Dez]],MarketingTatsächlich[#Headers],0))","v":{"v":5000,"d":"5,000.00 €"}},{"$f":"SUM(MarketingAbweichungen[[#This Row],[Jan]:[Dez]])","v":{"v":18300,"d":"18,300.00 €"}}]
[null,"Sonstige Ausgaben",{"$f":"INDEX(MarketingPlan[],MATCH(INDEX(MarketingAbweichungen[],ROW()-ROW(MarketingAbweichungen[[#Headers],[Jan]]),1),INDEX(MarketingPlan[],,1),0),MATCH(MarketingAbweichungen[[#Headers],[Jan]],MarketingPlan[#Headers],0))-INDEX(MarketingTatsächlich[],MATCH(INDEX(MarketingAbweichungen[],ROW()-ROW(MarketingAbweichungen[[#Headers],[Jan]]),1),INDEX(MarketingPlan[],,1),0),MATCH(MarketingAbweichungen[[#Headers],[Jan]],MarketingTatsächlich[#Headers],0))","v":{"v":55,"d":"55.00 €"}},{"$f":"INDEX(MarketingPlan[],MATCH(INDEX(MarketingAbweichungen[],ROW()-ROW(MarketingAbweichungen[[#Headers],[Feb]]),1),INDEX(MarketingPlan[],,1),0),MATCH(MarketingAbweichungen[[#Headers],[Feb]],MarketingPlan[#Headers],0))-INDEX(MarketingTatsächlich[],MATCH(INDEX(MarketingAbweichungen[],ROW()-ROW(MarketingAbweichungen[[#Headers],[Feb]]),1),INDEX(MarketingPlan[],,1),0),MATCH(MarketingAbweichungen[[#Headers],[Feb]],MarketingTatsächlich[#Headers],0))","v":{"v":44,"d":"44.00 €"}},{"$f":"INDEX(MarketingPlan[],MATCH(INDEX(MarketingAbweichungen[],ROW()-ROW(MarketingAbweichungen[[#Headers],[Mrz]]),1),INDEX(MarketingPlan[],,1),0),MATCH(MarketingAbweichungen[[#Headers],[Mrz]],MarketingPlan[#Headers],0))-INDEX(MarketingTatsächlich[],MATCH(INDEX(MarketingAbweichungen[],ROW()-ROW(MarketingAbweichungen[[#Headers],[Mrz]]),1),INDEX(MarketingPlan[],,1),0),MATCH(MarketingAbweichungen[[#Headers],[Mrz]],MarketingTatsächlich[#Headers],0))","v":{"v":77,"d":"77.00 €"}},{"$f":"INDEX(MarketingPlan[],MATCH(INDEX(MarketingAbweichungen[],ROW()-ROW(MarketingAbweichungen[[#Headers],[Apr]]),1),INDEX(MarketingPlan[],,1),0),MATCH(MarketingAbweichungen[[#Headers],[Apr]],MarketingPlan[#Headers],0))-INDEX(MarketingTatsächlich[],MATCH(INDEX(MarketingAbweichungen[],ROW()-ROW(MarketingAbweichungen[[#Headers],[Apr]]),1),INDEX(MarketingPlan[],,1),0),MATCH(MarketingAbweichungen[[#Headers],[Apr]],MarketingTatsächlich[#Headers],0))","v":{"v":-23,"d":"-23.00 €"}},{"$f":"INDEX(MarketingPlan[],MATCH(INDEX(MarketingAbweichungen[],ROW()-ROW(MarketingAbweichungen[[#Headers],[Mai]]),1),INDEX(MarketingPlan[],,1),0),MATCH(MarketingAbweichungen[[#Headers],[Mai]],MarketingPlan[#Headers],0))-INDEX(MarketingTatsächlich[],MATCH(INDEX(MarketingAbweichungen[],ROW()-ROW(MarketingAbweichungen[[#Headers],[Mai]]),1),INDEX(MarketingPlan[],,1),0),MATCH(MarketingAbweichungen[[#Headers],[Mai]],MarketingTatsächlich[#Headers],0))","v":{"v":13,"d":"13.00 €"}},{"$f":"INDEX(MarketingPlan[],MATCH(INDEX(MarketingAbweichungen[],ROW()-ROW(MarketingAbweichungen[[#Headers],[Jun]]),1),INDEX(MarketingPlan[],,1),0),MATCH(MarketingAbweichungen[[#Headers],[Jun]],MarketingPlan[#Headers],0))-INDEX(MarketingTatsächlich[],MATCH(INDEX(MarketingAbweichungen[],ROW()-ROW(MarketingAbweichungen[[#Headers],[Jun]]),1),INDEX(MarketingPlan[],,1),0),MATCH(MarketingAbweichungen[[#Headers],[Jun]],MarketingTatsächlich[#Headers],0))","v":{"v":-45,"d":"-45.00 €"}},{"$f":"INDEX(MarketingPlan[],MATCH(INDEX(MarketingAbweichungen[],ROW()-ROW(MarketingAbweichungen[[#Headers],[Jul]]),1),INDEX(MarketingPlan[],,1),0),MATCH(MarketingAbweichungen[[#Headers],[Jul]],MarketingPlan[#Headers],0))-INDEX(MarketingTatsächlich[],MATCH(INDEX(MarketingAbweichungen[],ROW()-ROW(MarketingAbweichungen[[#Headers],[Jul]]),1),INDEX(MarketingPlan[],,1),0),MATCH(MarketingAbweichungen[[#Headers],[Jul]],MarketingTatsächlich[#Headers],0))","v":{"v":200,"d":"200.00 €"}},{"$f":"INDEX(MarketingPlan[],MATCH(INDEX(MarketingAbweichungen[],ROW()-ROW(MarketingAbweichungen[[#Headers],[Aug]]),1),INDEX(MarketingPlan[],,1),0),MATCH(MarketingAbweichungen[[#Headers],[Aug]],MarketingPlan[#Headers],0))-INDEX(MarketingTatsächlich[],MATCH(INDEX(MarketingAbweichungen[],ROW()-ROW(MarketingAbweichungen[[#Headers],[Aug]]),1),INDEX(MarketingPlan[],,1),0),MATCH(MarketingAbweichungen[[#Headers],[Aug]],MarketingTatsächlich[#Headers],0))","v":{"v":200,"d":"200.00 €"}},{"$f":"INDEX(MarketingPlan[],MATCH(INDEX(MarketingAbweichungen[],ROW()-ROW(MarketingAbweichungen[[#Headers],[Sep]]),1),INDEX(MarketingPlan[],,1),0),MATCH(MarketingAbweichungen[[#Headers],[Sep]],MarketingPlan[#Headers],0))-INDEX(MarketingTatsächlich[],MATCH(INDEX(MarketingAbweichungen[],ROW()-ROW(MarketingAbweichungen[[#Headers],[Sep]]),1),INDEX(MarketingPlan[],,1),0),MATCH(MarketingAbweichungen[[#Headers],[Sep]],MarketingTatsächlich[#Headers],0))","v":{"v":200,"d":"200.00 €"}},{"$f":"INDEX(MarketingPlan[],MATCH(INDEX(MarketingAbweichungen[],ROW()-ROW(MarketingAbweichungen[[#Headers],[Okt]]),1),INDEX(MarketingPlan[],,1),0),MATCH(MarketingAbweichungen[[#Headers],[Okt]],MarketingPlan[#Headers],0))-INDEX(MarketingTatsächlich[],MATCH(INDEX(MarketingAbweichungen[],ROW()-ROW(MarketingAbweichungen[[#Headers],[Okt]]),1),INDEX(MarketingPlan[],,1),0),MATCH(MarketingAbweichungen[[#Headers],[Okt]],MarketingTatsächlich[#Headers],0))","v":{"v":200,"d":"200.00 €"}},{"$f":"INDEX(MarketingPlan[],MATCH(INDEX(MarketingAbweichungen[],ROW()-ROW(MarketingAbweichungen[[#Headers],[Nov]]),1),INDEX(MarketingPlan[],,1),0),MATCH(MarketingAbweichungen[[#Headers],[Nov]],MarketingPlan[#Headers],0))-INDEX(MarketingTatsächlich[],MATCH(INDEX(MarketingAbweichungen[],ROW()-ROW(MarketingAbweichungen[[#Headers],[Nov]]),1),INDEX(MarketingPlan[],,1),0),MATCH(MarketingAbweichungen[[#Headers],[Nov]],MarketingTatsächlich[#Headers],0))","v":{"v":200,"d":"200.00 €"}},{"$f":"INDEX(MarketingPlan[],MATCH(INDEX(MarketingAbweichungen[],ROW()-ROW(MarketingAbweichungen[[#Headers],[Dez]]),1),INDEX(MarketingPlan[],,1),0),MATCH(MarketingAbweichungen[[#Headers],[Dez]],MarketingPlan[#Headers],0))-INDEX(MarketingTatsächlich[],MATCH(INDEX(MarketingAbweichungen[],ROW()-ROW(MarketingAbweichungen[[#Headers],[Dez]]),1),INDEX(MarketingPlan[],,1),0),MATCH(MarketingAbweichungen[[#Headers],[Dez]],MarketingTatsächlich[#Headers],0))","v":{"v":200,"d":"200.00 €"}},{"$f":"SUM(MarketingAbweichungen[[#This Row],[Jan]:[Dez]])","v":{"v":1321,"d":"1,321.00 €"}}]
[null,"Zwischensumme",{"$f":"SUBTOTAL(109,MarketingAbweichungen[Jan])","v":{"v":555,"d":"555.00 €"}},{"$f":"SUBTOTAL(109,MarketingAbweichungen[Feb])","v":{"v":-456,"d":"-456.00 €"}},{"$f":"SUBTOTAL(109,MarketingAbweichungen[Mrz])","v":{"v":-23,"d":"-23.00 €"}},{"$f":"SUBTOTAL(109,MarketingAbweichungen[Apr])","v":{"v":-123,"d":"-123.00 €"}},{"$f":"SUBTOTAL(109,MarketingAbweichungen[Mai])","v":{"v":113,"d":"113.00 €"}},{"$f":"SUBTOTAL(109,MarketingAbweichungen[Jun])","v":{"v":-825,"d":"-825.00 €"}},{"$f":"SUBTOTAL(109,MarketingAbweichungen[Jul])","v":{"v":8100,"d":"8,100.00 €"}},{"$f":"SUBTOTAL(109,MarketingAbweichungen[Aug])","v":{"v":6100,"d":"6,100.00 €"}},{"$f":"SUBTOTAL(109,MarketingAbweichungen[Sep])","v":{"v":3100,"d":"3,100.00 €"}},{"$f":"SUBTOTAL(109,MarketingAbweichungen[Okt])","v":{"v":8100,"d":"8,100.00 €"}},{"$f":"SUBTOTAL(109,MarketingAbweichungen[Nov])","v":{"v":3100,"d":"3,100.00 €"}},{"$f":"SUBTOTAL(109,MarketingAbweichungen[Dez])","v":{"v":6900,"d":"6,900.00 €"}},{"$f":"SUBTOTAL(109,MarketingAbweichungen[JAHR])","v":{"v":34641,"d":"34,641.00 €"}}]
[]
[null,"Schulung/Reisen","Jan","Feb","Mrz","Apr","Mai","Jun","Jul","Aug","Sep","Okt","Nov","Dez","JAHR"]
[null,"Schulungskurse",{"$f":"INDEX(SchulungUndReisePlan[],MATCH(INDEX(SchulungsUndReiseAbweichungen[],ROW()-ROW(SchulungsUndReiseAbweichungen[[#Headers],[Jan]]),1),INDEX(SchulungUndReisePlan[],,1),0),MATCH(SchulungsUndReiseAbweichungen[[#Headers],[Jan]],SchulungUndReisePlan[#Headers],0))-INDEX(SchulungUndReiseTatsächlich[],MATCH(INDEX(SchulungsUndReiseAbweichungen[],ROW()-ROW(SchulungsUndReiseAbweichungen[[#Headers],[Jan]]),1),INDEX(SchulungUndReisePlan[],,1),0),MATCH(SchulungsUndReiseAbweichungen[[#Headers],[Jan]],SchulungUndReiseTatsächlich[#Headers],0))","v":{"v":400,"d":"400.00 €"}},{"$f":"INDEX(SchulungUndReisePlan[],MATCH(INDEX(SchulungsUndReiseAbweichungen[],ROW()-ROW(SchulungsUndReiseAbweichungen[[#Headers],[Feb]]),1),INDEX(SchulungUndReisePlan[],,1),0),MATCH(SchulungsUndReiseAbweichungen[[#Headers],[Feb]],SchulungUndReisePlan[#Headers],0))-INDEX(SchulungUndReiseTatsächlich[],MATCH(INDEX(SchulungsUndReiseAbweichungen[],ROW()-ROW(SchulungsUndReiseAbweichungen[[#Headers],[Feb]]),1),INDEX(SchulungUndReisePlan[],,1),0),MATCH(SchulungsUndReiseAbweichungen[[#Headers],[Feb]],SchulungUndReiseTatsächlich[#Headers],0))","v":{"v":-400,"d":"-400.00 €"}},{"$f":"INDEX(SchulungUndReisePlan[],MATCH(INDEX(SchulungsUndReiseAbweichungen[],ROW()-ROW(SchulungsUndReiseAbweichungen[[#Headers],[Mrz]]),1),INDEX(SchulungUndReisePlan[],,1),0),MATCH(SchulungsUndReiseAbweichungen[[#Headers],[Mrz]],SchulungUndReisePlan[#Headers],0))-INDEX(SchulungUndReiseTatsächlich[],MATCH(INDEX(SchulungsUndReiseAbweichungen[],ROW()-ROW(SchulungsUndReiseAbweichungen[[#Headers],[Mrz]]),1),INDEX(SchulungUndReisePlan[],,1),0),MATCH(SchulungsUndReiseAbweichungen[[#Headers],[Mrz]],SchulungUndReiseTatsächlich[#Headers],0))","v":{"v":600,"d":"600.00 €"}},{"$f":"INDEX(SchulungUndReisePlan[],MATCH(INDEX(SchulungsUndReiseAbweichungen[],ROW()-ROW(SchulungsUndReiseAbweichungen[[#Headers],[Apr]]),1),INDEX(SchulungUndReisePlan[],,1),0),MATCH(SchulungsUndReiseAbweichungen[[#Headers],[Apr]],SchulungUndReisePlan[#Headers],0))-INDEX(SchulungUndReiseTatsächlich[],MATCH(INDEX(SchulungsUndReiseAbweichungen[],ROW()-ROW(SchulungsUndReiseAbweichungen[[#Headers],[Apr]]),1),INDEX(SchulungUndReisePlan[],,1),0),MATCH(SchulungsUndReiseAbweichungen[[#Headers],[Apr]],SchulungUndReiseTatsächlich[#Headers],0))","v":{"v":400,"d":"400.00 €"}},{"$f":"INDEX(SchulungUndReisePlan[],MATCH(INDEX(SchulungsUndReiseAbweichungen[],ROW()-ROW(SchulungsUndReiseAbweichungen[[#Headers],[Mai]]),1),INDEX(SchulungUndReisePlan[],,1),0),MATCH(SchulungsUndReiseAbweichungen[[#Headers],[Mai]],SchulungUndReisePlan[#Headers],0))-INDEX(SchulungUndReiseTatsächlich[],MATCH(INDEX(SchulungsUndReiseAbweichungen[],ROW()-ROW(SchulungsUndReiseAbweichungen[[#Headers],[Mai]]),1),INDEX(SchulungUndReisePlan[],,1),0),MATCH(SchulungsUndReiseAbweichungen[[#Headers],[Mai]],SchulungUndReiseTatsächlich[#Headers],0))","v":{"v":800,"d":"800.00 €"}},{"$f":"INDEX(SchulungUndReisePlan[],MATCH(INDEX(SchulungsUndReiseAbweichungen[],ROW()-ROW(SchulungsUndReiseAbweichungen[[#Headers],[Jun]]),1),INDEX(SchulungUndReisePlan[],,1),0),MATCH(SchulungsUndReiseAbweichungen[[#Headers],[Jun]],SchulungUndReisePlan[#Headers],0))-INDEX(SchulungUndReiseTatsächlich[],MATCH(INDEX(SchulungsUndReiseAbweichungen[],ROW()-ROW(SchulungsUndReiseAbweichungen[[#Headers],[Jun]]),1),INDEX(SchulungUndReisePlan[],,1),0),MATCH(SchulungsUndReiseAbweichungen[[#Headers],[Jun]],SchulungUndReiseTatsächlich[#Headers],0))","v":{"v":-800,"d":"-800.00 €"}},{"$f":"INDEX(SchulungUndReisePlan[],MATCH(INDEX(SchulungsUndReiseAbweichungen[],ROW()-ROW(SchulungsUndReiseAbweichungen[[#Headers],[Jul]]),1),INDEX(SchulungUndReisePlan[],,1),0),MATCH(SchulungsUndReiseAbweichungen[[#Headers],[Jul]],SchulungUndReisePlan[#Headers],0))-INDEX(SchulungUndReiseTatsächlich[],MATCH(INDEX(SchulungsUndReiseAbweichungen[],ROW()-ROW(SchulungsUndReiseAbweichungen[[#Headers],[Jul]]),1),INDEX(SchulungUndReisePlan[],,1),0),MATCH(SchulungsUndReiseAbweichungen[[#Headers],[Jul]],SchulungUndReiseTatsächlich[#Headers],0))","v":{"v":2000,"d":"2,000.00 €"}},{"$f":"INDEX(SchulungUndReisePlan[],MATCH(INDEX(SchulungsUndReiseAbweichungen[],ROW()-ROW(SchulungsUndReiseAbweichungen[[#Headers],[Aug]]),1),INDEX(SchulungUndReisePlan[],,1),0),MATCH(SchulungsUndReiseAbweichungen[[#Headers],[Aug]],SchulungUndReisePlan[#Headers],0))-INDEX(SchulungUndReiseTatsächlich[],MATCH(INDEX(SchulungsUndReiseAbweichungen[],ROW()-ROW(SchulungsUndReiseAbweichungen[[#Headers],[Aug]]),1),INDEX(SchulungUndReisePlan[],,1),0),MATCH(SchulungsUndReiseAbweichungen[[#Headers],[Aug]],SchulungUndReiseTatsächlich[#Headers],0))","v":{"v":2000,"d":"2,000.00 €"}},{"$f":"INDEX(SchulungUndReisePlan[],MATCH(INDEX(SchulungsUndReiseAbweichungen[],ROW()-ROW(SchulungsUndReiseAbweichungen[[#Headers],[Sep]]),1),INDEX(SchulungUndReisePlan[],,1),0),MATCH(SchulungsUndReiseAbweichungen[[#Headers],[Sep]],SchulungUndReisePlan[#Headers],0))-INDEX(SchulungUndReiseTatsächlich[],MATCH(INDEX(SchulungsUndReiseAbweichungen[],ROW()-ROW(SchulungsUndReiseAbweichungen[[#Headers],[Sep]]),1),INDEX(SchulungUndReisePlan[],,1),0),MATCH(SchulungsUndReiseAbweichungen[[#Headers],[Sep]],SchulungUndReiseTatsächlich[#Headers],0))","v":{"v":2000,"d":"2,000.00 €"}},{"$f":"INDEX(SchulungUndReisePlan[],MATCH(INDEX(SchulungsUndReiseAbweichungen[],ROW()-ROW(SchulungsUndReiseAbweichungen[[#Headers],[Okt]]),1),INDEX(SchulungUndReisePlan[],,1),0),MATCH(SchulungsUndReiseAbweichungen[[#Headers],[Okt]],SchulungUndReisePlan[#Headers],0))-INDEX(SchulungUndReiseTatsächlich[],MATCH(INDEX(SchulungsUndReiseAbweichungen[],ROW()-ROW(SchulungsUndReiseAbweichungen[[#Headers],[Okt]]),1),INDEX(SchulungUndReisePlan[],,1),0),MATCH(SchulungsUndReiseAbweichungen[[#Headers],[Okt]],SchulungUndReiseTatsächlich[#Headers],0))","v":{"v":2000,"d":"2,000.00 €"}},{"$f":"INDEX(SchulungUndReisePlan[],MATCH(INDEX(SchulungsUndReiseAbweichungen[],ROW()-ROW(SchulungsUndReiseAbweichungen[[#Headers],[Nov]]),1),INDEX(SchulungUndReisePlan[],,1),0),MATCH(SchulungsUndReiseAbweichungen[[#Headers],[Nov]],SchulungUndReisePlan[#Headers],0))-INDEX(SchulungUndReiseTatsächlich[],MATCH(INDEX(SchulungsUndReiseAbweichungen[],ROW()-ROW(SchulungsUndReiseAbweichungen[[#Headers],[Nov]]),1),INDEX(SchulungUndReisePlan[],,1),0),MATCH(SchulungsUndReiseAbweichungen[[#Headers],[Nov]],SchulungUndReiseTatsächlich[#Headers],0))","v":{"v":2000,"d":"2,000.00 €"}},{"$f":"INDEX(SchulungUndReisePlan[],MATCH(INDEX(SchulungsUndReiseAbweichungen[],ROW()-ROW(SchulungsUndReiseAbweichungen[[#Headers],[Dez]]),1),INDEX(SchulungUndReisePlan[],,1),0),MATCH(SchulungsUndReiseAbweichungen[[#Headers],[Dez]],SchulungUndReisePlan[#Headers],0))-INDEX(SchulungUndReiseTatsächlich[],MATCH(INDEX(SchulungsUndReiseAbweichungen[],ROW()-ROW(SchulungsUndReiseAbweichungen[[#Headers],[Dez]]),1),INDEX(SchulungUndReisePlan[],,1),0),MATCH(SchulungsUndReiseAbweichungen[[#Headers],[Dez]],SchulungUndReiseTatsächlich[#Headers],0))","v":{"v":2000,"d":"2,000.00 €"}},{"$f":"SUM(SchulungsUndReiseAbweichungen[[#This Row],[Jan]:[Dez]])","v":{"v":13000,"d":"13,000.00 €"}}]
[null,"Schulungsbezogene Reisekosten",{"$f":"INDEX(SchulungUndReisePlan[],MATCH(INDEX(SchulungsUndReiseAbweichungen[],ROW()-ROW(SchulungsUndReiseAbweichungen[[#Headers],[Jan]]),1),INDEX(SchulungUndReisePlan[],,1),0),MATCH(SchulungsUndReiseAbweichungen[[#Headers],[Jan]],SchulungUndReisePlan[#Headers],0))-INDEX(SchulungUndReiseTatsächlich[],MATCH(INDEX(SchulungsUndReiseAbweichungen[],ROW()-ROW(SchulungsUndReiseAbweichungen[[#Headers],[Jan]]),1),INDEX(SchulungUndReisePlan[],,1),0),MATCH(SchulungsUndReiseAbweichungen[[#Headers],[Jan]],SchulungUndReiseTatsächlich[#Headers],0))","v":{"v":800,"d":"800.00 €"}},{"$f":"INDEX(SchulungUndReisePlan[],MATCH(INDEX(SchulungsUndReiseAbweichungen[],ROW()-ROW(SchulungsUndReiseAbweichungen[[#Headers],[Feb]]),1),INDEX(SchulungUndReisePlan[],,1),0),MATCH(SchulungsUndReiseAbweichungen[[#Headers],[Feb]],SchulungUndReisePlan[#Headers],0))-INDEX(SchulungUndReiseTatsächlich[],MATCH(INDEX(SchulungsUndReiseAbweichungen[],ROW()-ROW(SchulungsUndReiseAbweichungen[[#Headers],[Feb]]),1),INDEX(SchulungUndReisePlan[],,1),0),MATCH(SchulungsUndReiseAbweichungen[[#Headers],[Feb]],SchulungUndReiseTatsächlich[#Headers],0))","v":{"v":-200,"d":"-200.00 €"}},{"$f":"INDEX(SchulungUndReisePlan[],MATCH(INDEX(SchulungsUndReiseAbweichungen[],ROW()-ROW(SchulungsUndReiseAbweichungen[[#Headers],[Mrz]]),1),INDEX(SchulungUndReisePlan[],,1),0),MATCH(SchulungsUndReiseAbweichungen[[#Headers],[Mrz]],SchulungUndReisePlan[#Headers],0))-INDEX(SchulungUndReiseTatsächlich[],MATCH(INDEX(SchulungsUndReiseAbweichungen[],ROW()-ROW(SchulungsUndReiseAbweichungen[[#Headers],[Mrz]]),1),INDEX(SchulungUndReisePlan[],,1),0),MATCH(SchulungsUndReiseAbweichungen[[#Headers],[Mrz]],SchulungUndReiseTatsächlich[#Headers],0))","v":{"v":600,"d":"600.00 €"}},{"$f":"INDEX(SchulungUndReisePlan[],MATCH(INDEX(SchulungsUndReiseAbweichungen[],ROW()-ROW(SchulungsUndReiseAbweichungen[[#Headers],[Apr]]),1),INDEX(SchulungUndReisePlan[],,1),0),MATCH(SchulungsUndReiseAbweichungen[[#Headers],[Apr]],SchulungUndReisePlan[#Headers],0))-INDEX(SchulungUndReiseTatsächlich[],MATCH(INDEX(SchulungsUndReiseAbweichungen[],ROW()-ROW(SchulungsUndReiseAbweichungen[[#Headers],[Apr]]),1),INDEX(SchulungUndReisePlan[],,1),0),MATCH(SchulungsUndReiseAbweichungen[[#Headers],[Apr]],SchulungUndReiseTatsächlich[#Headers],0))","v":{"v":800,"d":"800.00 €"}},{"$f":"INDEX(SchulungUndReisePlan[],MATCH(INDEX(SchulungsUndReiseAbweichungen[],ROW()-ROW(SchulungsUndReiseAbweichungen[[#Headers],[Mai]]),1),INDEX(SchulungUndReisePlan[],,1),0),MATCH(SchulungsUndReiseAbweichungen[[#Headers],[Mai]],SchulungUndReisePlan[#Headers],0))-INDEX(SchulungUndReiseTatsächlich[],MATCH(INDEX(SchulungsUndReiseAbweichungen[],ROW()-ROW(SchulungsUndReiseAbweichungen[[#Headers],[Mai]]),1),INDEX(SchulungUndReisePlan[],,1),0),MATCH(SchulungsUndReiseAbweichungen[[#Headers],[Mai]],SchulungUndReiseTatsächlich[#Headers],0))","v":{"v":1200,"d":"1,200.00 €"}},{"$f":"INDEX(SchulungUndReisePlan[],MATCH(INDEX(SchulungsUndReiseAbweichungen[],ROW()-ROW(SchulungsUndReiseAbweichungen[[#Headers],[Jun]]),1),INDEX(SchulungUndReisePlan[],,1),0),MATCH(SchulungsUndReiseAbweichungen[[#Headers],[Jun]],SchulungUndReisePlan[#Headers],0))-INDEX(SchulungUndReiseTatsächlich[],MATCH(INDEX(SchulungsUndReiseAbweichungen[],ROW()-ROW(SchulungsUndReiseAbweichungen[[#Headers],[Jun]]),1),INDEX(SchulungUndReisePlan[],,1),0),MATCH(SchulungsUndReiseAbweichungen[[#Headers],[Jun]],SchulungUndReiseTatsächlich[#Headers],0))","v":{"v":-1500,"d":"-1,500.00 €"}},{"$f":"INDEX(SchulungUndReisePlan[],MATCH(INDEX(SchulungsUndReiseAbweichungen[],ROW()-ROW(SchulungsUndReiseAbweichungen[[#Headers],[Jul]]),1),INDEX(SchulungUndReisePlan[],,1),0),MATCH(SchulungsUndReiseAbweichungen[[#Headers],[Jul]],SchulungUndReisePlan[#Headers],0))-INDEX(SchulungUndReiseTatsächlich[],MATCH(INDEX(SchulungsUndReiseAbweichungen[],ROW()-ROW(SchulungsUndReiseAbweichungen[[#Headers],[Jul]]),1),INDEX(SchulungUndReisePlan[],,1),0),MATCH(SchulungsUndReiseAbweichungen[[#Headers],[Jul]],SchulungUndReiseTatsächlich[#Headers],0))","v":{"v":2000,"d":"2,000.00 €"}},{"$f":"INDEX(SchulungUndReisePlan[],MATCH(INDEX(SchulungsUndReiseAbweichungen[],ROW()-ROW(SchulungsUndReiseAbweichungen[[#Headers],[Aug]]),1),INDEX(SchulungUndReisePlan[],,1),0),MATCH(SchulungsUndReiseAbweichungen[[#Headers],[Aug]],SchulungUndReisePlan[#Headers],0))-INDEX(SchulungUndReiseTatsächlich[],MATCH(INDEX(SchulungsUndReiseAbweichungen[],ROW()-ROW(SchulungsUndReiseAbweichungen[[#Headers],[Aug]]),1),INDEX(SchulungUndReisePlan[],,1),0),MATCH(SchulungsUndReiseAbweichungen[[#Headers],[Aug]],SchulungUndReiseTatsächlich[#Headers],0))","v":{"v":2000,"d":"2,000.00 €"}},{"$f":"INDEX(SchulungUndReisePlan[],MATCH(INDEX(SchulungsUndReiseAbweichungen[],ROW()-ROW(SchulungsUndReiseAbweichungen[[#Headers],[Sep]]),1),INDEX(SchulungUndReisePlan[],,1),0),MATCH(SchulungsUndReiseAbweichungen[[#Headers],[Sep]],SchulungUndReisePlan[#Headers],0))-INDEX(SchulungUndReiseTatsächlich[],MATCH(INDEX(SchulungsUndReiseAbweichungen[],ROW()-ROW(SchulungsUndReiseAbweichungen[[#Headers],[Sep]]),1),INDEX(SchulungUndReisePlan[],,1),0),MATCH(SchulungsUndReiseAbweichungen[[#Headers],[Sep]],SchulungUndReiseTatsächlich[#Headers],0))","v":{"v":2000,"d":"2,000.00 €"}},{"$f":"INDEX(SchulungUndReisePlan[],MATCH(INDEX(SchulungsUndReiseAbweichungen[],ROW()-ROW(SchulungsUndReiseAbweichungen[[#Headers],[Okt]]),1),INDEX(SchulungUndReisePlan[],,1),0),MATCH(SchulungsUndReiseAbweichungen[[#Headers],[Okt]],SchulungUndReisePlan[#Headers],0))-INDEX(SchulungUndReiseTatsächlich[],MATCH(INDEX(SchulungsUndReiseAbweichungen[],ROW()-ROW(SchulungsUndReiseAbweichungen[[#Headers],[Okt]]),1),INDEX(SchulungUndReisePlan[],,1),0),MATCH(SchulungsUndReiseAbweichungen[[#Headers],[Okt]],SchulungUndReiseTatsächlich[#Headers],0))","v":{"v":2000,"d":"2,000.00 €"}},{"$f":"INDEX(SchulungUndReisePlan[],MATCH(INDEX(SchulungsUndReiseAbweichungen[],ROW()-ROW(SchulungsUndReiseAbweichungen[[#Headers],[Nov]]),1),INDEX(SchulungUndReisePlan[],,1),0),MATCH(SchulungsUndReiseAbweichungen[[#Headers],[Nov]],SchulungUndReisePlan[#Headers],0))-INDEX(SchulungUndReiseTatsächlich[],MATCH(INDEX(SchulungsUndReiseAbweichungen[],ROW()-ROW(SchulungsUndReiseAbweichungen[[#Headers],[Nov]]),1),INDEX(SchulungUndReisePlan[],,1),0),MATCH(SchulungsUndReiseAbweichungen[[#Headers],[Nov]],SchulungUndReiseTatsächlich[#Headers],0))","v":{"v":2000,"d":"2,000.00 €"}},{"$f":"INDEX(SchulungUndReisePlan[],MATCH(INDEX(SchulungsUndReiseAbweichungen[],ROW()-ROW(SchulungsUndReiseAbweichungen[[#Headers],[Dez]]),1),INDEX(SchulungUndReisePlan[],,1),0),MATCH(SchulungsUndReiseAbweichungen[[#Headers],[Dez]],SchulungUndReisePlan[#Headers],0))-INDEX(SchulungUndReiseTatsächlich[],MATCH(INDEX(SchulungsUndReiseAbweichungen[],ROW()-ROW(SchulungsUndReiseAbweichungen[[#Headers],[Dez]]),1),INDEX(SchulungUndReisePlan[],,1),0),MATCH(SchulungsUndReiseAbweichungen[[#Headers],[Dez]],SchulungUndReiseTatsächlich[#Headers],0))","v":{"v":2000,"d":"2,000.00 €"}},{"$f":"SUM(SchulungsUndReiseAbweichungen[[#This Row],[Jan]:[Dez]])","v":{"v":13700,"d":"13,700.00 €"}}]
[null,"Zwischensumme",{"$f":"SUBTOTAL(109,SchulungsUndReiseAbweichungen[Jan])","v":{"v":1200,"d":"1,200.00 €"}},{"$f":"SUBTOTAL(109,SchulungsUndReiseAbweichungen[Feb])","v":{"v":-600,"d":"-600.00 €"}},{"$f":"SUBTOTAL(109,SchulungsUndReiseAbweichungen[Mrz])","v":{"v":1200,"d":"1,200.00 €"}},{"$f":"SUBTOTAL(109,SchulungsUndReiseAbweichungen[Apr])","v":{"v":1200,"d":"1,200.00 €"}},{"$f":"SUBTOTAL(109,SchulungsUndReiseAbweichungen[Mai])","v":{"v":2000,"d":"2,000.00 €"}},{"$f":"SUBTOTAL(109,SchulungsUndReiseAbweichungen[Jun])","v":{"v":-2300,"d":"-2,300.00 €"}},{"$f":"SUBTOTAL(109,SchulungsUndReiseAbweichungen[Jul])","v":{"v":4000,"d":"4,000.00 €"}},{"$f":"SUBTOTAL(109,SchulungsUndReiseAbweichungen[Aug])","v":{"v":4000,"d":"4,000.00 €"}},{"$f":"SUBTOTAL(109,SchulungsUndReiseAbweichungen[Sep])","v":{"v":4000,"d":"4,000.00 €"}},{"$f":"SUBTOTAL(109,SchulungsUndReiseAbweichungen[Okt])","v":{"v":4000,"d":"4,000.00 €"}},{"$f":"SUBTOTAL(109,SchulungsUndReiseAbweichungen[Nov])","v":{"v":4000,"d":"4,000.00 €"}},{"$f":"SUBTOTAL(109,SchulungsUndReiseAbweichungen[Dez])","v":{"v":4000,"d":"4,000.00 €"}},{"$f":"SUBTOTAL(109,SchulungsUndReiseAbweichungen[JAHR])","v":{"v":26700,"d":"26,700.00 €"}}]
[]
[null,"SUMMEN","Jan","Feb","Mrz","Apr","Mai","Jun","Jul","Aug","Sep","Okt","Nov","Dez","Jahr"]
[null,"Tatsächliche monatliche Kosten",{"$f":"SchulungsUndReiseAbweichungen[[#Totals],[Jan]]+MarketingAbweichungen[[#Totals],[Jan]]+BüroAbweichungen[[#Totals],[Jan]]+MitarbeiterAbweichungen[[#Totals],[Jan]]","v":{"v":1738,"d":"1,738.00 €"}},{"$f":"SchulungsUndReiseAbweichungen[[#Totals],[Feb]]+MarketingAbweichungen[[#Totals],[Feb]]+BüroAbweichungen[[#Totals],[Feb]]+MitarbeiterAbweichungen[[#Totals],[Feb]]","v":{"v":-984,"d":"-984.00 €"}},{"$f":"SchulungsUndReiseAbweichungen[[#Totals],[Mrz]]+MarketingAbweichungen[[#Totals],[Mrz]]+BüroAbweichungen[[#Totals],[Mrz]]+MitarbeiterAbweichungen[[#Totals],[Mrz]]","v":{"v":1255,"d":"1,255.00 €"}},{"$f":"SchulungsUndReiseAbweichungen[[#Totals],[Apr]]+MarketingAbweichungen[[#Totals],[Apr]]+BüroAbweichungen[[#Totals],[Apr]]+MitarbeiterAbweichungen[[#Totals],[Apr]]","v":{"v":301,"d":"301.00 €"}},{"$f":"SchulungsUndReiseAbweichungen[[#Totals],[Mai]]+MarketingAbweichungen[[#Totals],[Mai]]+BüroAbweichungen[[#Totals],[Mai]]+MitarbeiterAbweichungen[[#Totals],[Mai]]","v":{"v":1440,"d":"1,440.00 €"}},{"$f":"SchulungsUndReiseAbweichungen[[#Totals],[Jun]]+MarketingAbweichungen[[#Totals],[Jun]]+BüroAbweichungen[[#Totals],[Jun]]+MitarbeiterAbweichungen[[#Totals],[Jun]]","v":{"v":-3744,"d":"-3,744.00 €"}},{"$f":"SchulungsUndReiseAbweichungen[[#Totals],[Jul]]+MarketingAbweichungen[[#Totals],[Jul]]+BüroAbweichungen[[#Totals],[Jul]]+MitarbeiterAbweichungen[[#Totals],[Jul]]","v":{"v":134695,"d":"134,695.00 €"}},{"$f":"SchulungsUndReiseAbweichungen[[#Totals],[Aug]]+MarketingAbweichungen[[#Totals],[Aug]]+BüroAbweichungen[[#Totals],[Aug]]+MitarbeiterAbweichungen[[#Totals],[Aug]]","v":{"v":138918,"d":"138,918.00 €"}},{"$f":"SchulungsUndReiseAbweichungen[[#Totals],[Sep]]+MarketingAbweichungen[[#Totals],[Sep]]+BüroAbweichungen[[#Totals],[Sep]]+MitarbeiterAbweichungen[[#Totals],[Sep]]","v":{"v":135918,"d":"135,918.00 €"}},{"$f":"SchulungsUndReiseAbweichungen[[#Totals],[Okt]]+MarketingAbweichungen[[#Totals],[Okt]]+BüroAbweichungen[[#Totals],[Okt]]+MitarbeiterAbweichungen[[#Totals],[Okt]]","v":{"v":140918,"d":"140,918.00 €"}},{"$f":"SchulungsUndReiseAbweichungen[[#Totals],[Nov]]+MarketingAbweichungen[[#Totals],[Nov]]+BüroAbweichungen[[#Totals],[Nov]]+MitarbeiterAbweichungen[[#Totals],[Nov]]","v":{"v":136218,"d":"136,218.00 €"}},{"$f":"SchulungsUndReiseAbweichungen[[#Totals],[Dez]]+MarketingAbweichungen[[#Totals],[Dez]]+BüroAbweichungen[[#Totals],[Dez]]+MitarbeiterAbweichungen[[#Totals],[Dez]]","v":{"v":140018,"d":"140,018.00 €"}},{"$f":"SchulungsUndReiseAbweichungen[[#Totals],[JAHR]]+MarketingAbweichungen[[#Totals],[JAHR]]+BüroAbweichungen[[#Totals],[JAHR]]+MitarbeiterAbweichungen[[#Totals],[JAHR]]","v":{"v":826691,"d":"826,691.00 €"}}]
[null,"SUMME der tatsächlichen Kosten",{"$f":"SUM($C$36:C36)","v":{"v":1738,"d":"1,738.00 €"}},{"$f":"SUM($C$36:D36)","v":{"v":754,"d":"754.00 €"}},{"$f":"SUM($C$36:E36)","v":{"v":2009,"d":"2,009.00 €"}},{"$f":"SUM($C$36:F36)","v":{"v":2310,"d":"2,310.00 €"}},{"$f":"SUM($C$36:G36)","v":{"v":3750,"d":"3,750.00 €"}},{"$f":"SUM($C$36:H36)","v":{"v":6,"d":"6.00 €"}},{"$f":"SUM($C$36:I36)","v":{"v":134701,"d":"134,701.00 €"}},{"$f":"SUM($C$36:J36)","v":{"v":273619,"d":"273,619.00 €"}},{"$f":"SUM($C$36:K36)","v":{"v":409537,"d":"409,537.00 €"}},{"$f":"SUM($C$36:L36)","v":{"v":550455,"d":"550,455.00 €"}},{"$f":"SUM($C$36:M36)","v":{"v":686673,"d":"686,673.00 €"}},{"$f":"SUM($C$36:N36)","v":{"v":826691,"d":"826,691.00 €"}}]

{"sheet":"AUSGABENANALYSE","index":4,"n_rows":10,"n_cols":16,"rows_kept":10,"merged":[[2,4,2,6],[11,1,11,5]]}
[{"$nulls":6}," ",{"$nulls":8}," "]
[null,{"$f":"'GEPLANTE KOSTEN'!B2:D3","v":"Firmenname"}]
[{"$nulls":4},{"$f":"worksheet_title","v":"Detaillierte Kostenschätzungen"}]
[]
[null,"Kostenkategorie","Geplante Kosten","Tatsächliche Kosten","Kostenabweichungen","Prozentsatz der Abweichung"]
[null,"Mitarbeiterkosten",{"$f":"MitarbeiterPlan[[#Totals],[JAHR]]","v":{"v":1355090,"d":"1,355,090.00 €"}},{"$f":"MitarbeiterTatsächlich[[#Totals],[JAHR]]","v":{"v":659130,"d":"659,130.00 €"}},{"$f":"C6-D6","v":{"v":695960,"d":"695,960.00 €"}},{"$f":"E6/C6","v":{"v":0.5135895032802249,"d":"51%"}}]
[null,{"$f":"'GEPLANTE KOSTEN'!B10","v":"Bürokosten"},{"$f":"BüroPlan[[#Totals],[JAHR]]","v":{"v":138740,"d":"138,740.00 €"}},{"$f":"BüroTatsächlich[[#Totals],[JAHR]]","v":{"v":69350,"d":"69,350.00 €"}},{"$f":"C7-D7","v":{"v":69390,"d":"69,390.00 €"}},{"$f":"E7/C7","v":{"v":0.5001441545336601,"d":"50%"}}]
[null,{"$f":"'GEPLANTE KOSTEN'!B21","v":"Marketingkosten"},{"$f":"MarketingPlan[[#Totals],[JAHR]]","v":{"v":67800,"d":"67,800.00 €"}},{"$f":"MarketingTatsächlich[[#Totals],[JAHR]]","v":{"v":33159,"d":"33,159.00 €"}},{"$f":"C8-D8","v":{"v":34641,"d":"34,641.00 €"}},{"$f":"E8/C8","v":{"v":0.510929203539823,"d":"51%"}}]
[null,{"$f":"'GEPLANTE KOSTEN'!B30","v":"Schulung/Reisen"},{"$f":"SchulungUndReisePlan[[#Totals],[JAHR]]","v":{"v":48000,"d":"48,000.00 €"}},{"$f":"SchulungUndReiseTatsächlich[[#Totals],[JAHR]]","v":{"v":21300,"d":"21,300.00 €"}},{"$f":"C9-D9","v":{"v":26700,"d":"26,700.00 €"}},{"$f":"E9/C9","v":{"v":0.55625,"d":"56%"}}]
[null,{"$f":"'GEPLANTE KOSTEN'!B35","v":"SUMMEN"},{"$f":"'GEPLANTE KOSTEN'!O36","v":{"v":1609630,"d":"1,609,630.00 €"}},{"$f":"'TATSÄCHLICHE KOSTEN'!O36","v":{"v":782939,"d":"782,939.00 €"}},{"$f":"C10-D10","v":{"v":826691,"d":"826,691.00 €"}},{"$f":"E10/C10","v":{"v":0.5135907009685455,"d":"51%"}}]